Workbook

Sheet League News
B2: Team Standings | I2: Scoring This Week | M2: Team Fees | P2: Box Scores Week 2
A3: Prince of Wales Conference
B4: W | C4: L | D4: T | E4: Pts | F4: CP | H4: BPF | I4: BPA | J4: Streak | L4: Moves | M4: Paid | N4: Owed | P4: Grumpy Old Men | Q4: 35 | R4: 10 | S4: 8 | T4: 53
A5: Grumpy Old Men | B5: ='Grumpy Old Men'!B57 -> 2 | C5: ='Grumpy Old Men'!C57 -> 0 | D5: ='Grumpy Old Men'!D57 -> 0 | E5: ='Grumpy Old Men'!E57 -> 4 | F5: ='Grumpy Old Men'!F57 -> 122 | H5: ='Grumpy Old Men'!G57 -> 112 | I5: ='Grumpy Old Men'!H57 -> 96 | J5: ='Just Chillin'!I57 -> Won 2 | L5: 18 | M5: 0 | N5: 101 | P5: Team LIRHL | Q5: 33 | R5: 8 | S5: 3 | T5: 44
A6: Fantasy Hockey Club | B6: ='Fantasy Hockey Club'!B57 -> 1 | C6: ='Fantasy Hockey Club'!C57 -> 1 | D6: ='Fantasy Hockey Club'!D57 -> 0 | E6: ='Fantasy Hockey Club'!E57 -> 2 | F6: ='Fantasy Hockey Club'!F57 -> 142 | H6: ='Fantasy Hockey Club'!G57 -> 122 | I6: ='Fantasy Hockey Club'!H57 -> 98 | J6: ='Fantasy Hockey Club'!I57 -> Won 1 | L6: 15 | M6: 0 | N6: 101
A7: Team LIRHL | B7: ='Team LIRHL'!B57 -> 1 | C7: ='Team LIRHL'!C57 -> 1 | D7: ='Team LIRHL'!D57 -> 0 | E7: ='Team LIRHL'!E57 -> 2 | F7: ='Team LIRHL'!F57 -> 101 | H7: ='Team LIRHL'!G57 -> 91 | I7: ='Team LIRHL'!H57 -> 94 | J7: ='Team LIRHL'!I57 -> Lost 1 | L7: 20 | M7: 0 | N7: 100 | P7: Fantasy Hockey Club | Q7: 43 | R7: 16 | S7: 11 | T7: 70
A8: Riketorians | B8: =Riketorians!B57 -> 0 | C8: =Riketorians!C57 -> 1 | D8: =Riketorians!D57 -> 1 | E8: =Riketorians!E57 -> 1 | F8: =Riketorians!F57 -> 85 | H8: =Riketorians!G57 -> 81 | I8: =Riketorians!H57 -> 112 | J8: =Riketorians!I57 -> Lost 1 | L8: 20 | M8: 0 | N8: 100 | P8: Riketorians | Q8: 27 | R8: 10 | S8: 2 | T8: 39
A9: Damn Yankees | B9: ='Damn Yankees'!B57 -> 0 | C9: ='Damn Yankees'!C57 -> 2 | D9: ='Damn Yankees'!D57 -> 0 | E9: ='Damn Yankees'!E57 -> 0 | F9: ='Damn Yankees'!F57 -> 111 | H9: ='Damn Yankees'!G57 -> 102 | I9: ='Damn Yankees'!H57 -> 110 | J9: ='Damn Yankees'!I57 -> Lost 2 | L9: 16 | M9: 0 | N9: 104
P10: Damn Yankees | Q10: 30 | R10: 13 | S10: 18 | T10: 61
A11: Campbell Conference | P11: Slappers | Q11: 44 | R11: 10 | S11: 9 | T11: 63
B12: W | C12: L | D12: T | E12: Pts | F12: CP | H12: BPF | I12: BPA | J12: Streak | L12: Moves | M12: Paid | N12: Owed
A13: Just Chillin | B13: ='Just Chillin'!B57 -> 2 | C13: ='Just Chillin'!C57 -> 0 | D13: ='Just Chillin'!D57 -> 0 | E13: ='Just Chillin'!E57 -> 4 | F13: ='Just Chillin'!F57 -> 130 | H13: ='Just Chillin'!G57 -> 116 | I13: ='Just Chillin'!H57 -> 87 | J13: ='Just Chillin'!I57 -> Won 2 | L13: 17 | M13: 101 | N13: -1 | P13: District 5 | Q13: 43 | R13: 13 | S13: 6 | T13: 62
A14: District 5 | B14: ='District 5'!B57 -> 1 | C14: ='District 5'!C57 -> 0 | D14: ='District 5'!D57 -> 1 | E14: ='District 5'!E57 -> 3 | F14: ='District 5'!F57 -> 114 | H14: ='District 5'!G57 -> 104 | I14: ='District 5'!H57 -> 75 | J14: ='District 5'!I57 -> Won 1 | L14: 18 | M14: 0 | N14: 100 | P14: Shawnee Tribe | Q14: 24 | R14: 6 | S14: 3 | T14: 33
A15: Highlanders | B15: =Highlanders!B57 -> 1 | C15: =Highlanders!C57 -> 1 | D15: =Highlanders!D57 -> 0 | E15: =Highlanders!E57 -> 2 | F15: =Highlanders!F57 -> 127 | H15: =Highlanders!G57 -> 118 | I15: =Highlanders!H57 -> 100 | J15: =Highlanders!I57 -> Lost 1 | L15: 16 | M15: 100 | N15: 3
A16: Slappers | B16: =Slappers!B57 -> 1 | C16: =Slappers!C57 -> 1 | D16: =Slappers!D57 -> 0 | E16: =Slappers!E57 -> 2 | F16: =Slappers!F57 -> 110 | H16: =Slappers!G57 -> 101 | I16: =Slappers!H57 -> 110 | J16: =Slappers!I57 -> Won 1 | L16: 19 | M16: 0 | N16: 100 | P16: Just Chillin | Q16: 46 | R16: 8 | S16: 13 | T16: 67
A17: Shawnee Tribe | B17: ='Shawnee Tribe'!B57 -> 0 | C17: ='Shawnee Tribe'!C57 -> 2 | D17: ='Shawnee Tribe'!D57 -> 0 | E17: ='Shawnee Tribe'!E57 -> 0 | F17: ='Shawnee Tribe'!F57 -> 75 | H17: ='Shawnee Tribe'!G57 -> 66 | I17: ='Shawnee Tribe'!H57 -> 131 | J17: ='Shawnee Tribe'!I57 -> Lost 2 | L17: 18 | M17: 0 | N17: 102 | P17: Highlanders | Q17: 41 | R17: 4 | S17: 4 | T17: 49
K19: Totals | M19: =SUM(M5:M17) -> 201 | N19: =SUM(N5:N17) -> 810 | P19: League Fees | Q19: 100
P20: Total Prizes | Q20: =M19+N19-Q19 -> 911
A21: Offensive Leaders | G21: Defensive Leaders | O21: Goaltender Leaders
A22: ='Total Calc'!A2 -> Seth Jarvis | C22: ='Total Calc'!B2 -> (HGL) | E22: ='Total Calc'!C2 -> 19 | G22: ='Total Calc'!E2 -> Adam Fox | J22: ='Total Calc'!F2 -> (HGL) | L22: ='Total Calc'!G2 -> 9 | O22: ='Total Calc'!I2 -> Scott Wedgewood | Q22: ='Total Calc'!J2 -> (DYK) | S22: ='Total Calc'!K2 -> 31
A23: ='Total Calc'!A3 -> Jack Eichel | C23: ='Total Calc'!B3 -> (JCH) | E23: ='Total Calc'!C3 -> 17 | G23: ='Total Calc'!E3 -> Cale Makar | J23: ='Total Calc'!F3 -> (DI5) | L23: ='Total Calc'!G3 -> 9 | O23: ='Total Calc'!I3 -> Igor Shesterkin | Q23: ='Total Calc'!J3 -> (GOM) | S23: ='Total Calc'!K3 -> 27
A24: ='Total Calc'!A4 -> Cole Caufield | C24: ='Total Calc'!B4 -> (FHC) | E24: ='Total Calc'!C4 -> 15 | G24: ='Total Calc'!E4 -> Morgan Rielly | J24: ='Total Calc'!F4 -> (JCH) | L24: ='Total Calc'!G4 -> 8 | O24: ='Total Calc'!I4 -> Logan Thompson | Q24: ='Total Calc'!J4 -> (FHC) | S24: ='Total Calc'!K4 -> 20
A25: ='Total Calc'!A5 -> Mark Stone | C25: ='Total Calc'!B5 -> (GOM) | E25: ='Total Calc'!C5 -> 14 | G25: ='Total Calc'!E5 -> Jakob Chychrun | J25: ='Total Calc'!F5 -> (FHC) | L25: ='Total Calc'!G5 -> 7 | O25: ='Total Calc'!I5 -> Sergei Bobrovsky | Q25: ='Total Calc'!J5 -> (RIK) | S25: ='Total Calc'!K5 -> 17
A26: ='Total Calc'!A6 -> Nathan MacKinnon | C26: ='Total Calc'!B6 -> (GOM) | E26: ='Total Calc'!C6 -> 14 | G26: ='Total Calc'!E6 -> Shayne Gostisbehere | J26: ='Total Calc'!F6 -> (FHC) | L26: ='Total Calc'!G6 -> 7 | O26: ='Total Calc'!I6 -> Juuse Saros | Q26: ='Total Calc'!J6 -> (DI5) | S26: ='Total Calc'!K6 -> 17
A28: This Weeks Offensive Leaders | G28: This Weeks Defensive Leaders | O28: This Weeks Goaltending Leader
A29: ='Weekly Calc'!A2 -> Cole Caufield | C29: ='Weekly Calc'!B2 -> (FHC) | E29: ='Weekly Calc'!C2 -> 11 | G29: ='Weekly Calc'!E2 -> Cale Makar | J29: ='Weekly Calc'!F2 -> (DI5) | L29: ='Weekly Calc'!G2 -> 6 | O29: ='Weekly Calc'!I2 -> Scott Wedgewood | Q29: ='Weekly Calc'!J2 -> (DYK) | S29: ='Weekly Calc'!K2 -> 18
A30: ='Weekly Calc'!A3 -> Seth Jarvis | C30: ='Weekly Calc'!B3 -> (HGL) | E30: ='Weekly Calc'!C3 -> 11 | G30: ='Weekly Calc'!E3 -> Jakob Chychrun | J30: ='Weekly Calc'!F3 -> (FHC) | L30: ='Weekly Calc'!G3 -> 4 | O30: ='Weekly Calc'!I3 -> Connor Hellebuyck | Q30: ='Weekly Calc'!J3 -> (JCH) | S30: ='Weekly Calc'!K3 -> 13
A31: ='Weekly Calc'!A4 -> Auston Matthews | C31: ='Weekly Calc'!B4 -> (SLP) | E31: ='Weekly Calc'!C4 -> 10 | G31: ='Weekly Calc'!E4 -> Shayne Gostisbehere | J31: ='Weekly Calc'!F4 -> (FHC) | L31: ='Weekly Calc'!G4 -> 4 | O31: ='Weekly Calc'!I4 -> Jordan Binnington | Q31: ='Weekly Calc'!J4 -> (JCH) | S31: ='Weekly Calc'!K4 -> 12
A32: ='Weekly Calc'!A5 -> Jack Eichel | C32: ='Weekly Calc'!B5 -> (JCH) | E32: ='Weekly Calc'!C5 -> 10 | G32: ='Weekly Calc'!E5 -> Quinn Hughes | J32: ='Weekly Calc'!F5 -> (DYK) | L32: ='Weekly Calc'!G5 -> 4 | O32: ='Weekly Calc'!I5 -> Logan Thompson | Q32: ='Weekly Calc'!J5 -> (FHC) | S32: ='Weekly Calc'!K5 -> 11
A33: ='Weekly Calc'!A6 -> Mark Stone | C33: ='Weekly Calc'!B6 -> (GOM) | E33: ='Weekly Calc'!C6 -> 9 | G33: ='Weekly Calc'!E6 -> Jake Sanderson | J33: ='Weekly Calc'!F6 -> (RIK) | L33: ='Weekly Calc'!G6 -> 4 | O33: ='Weekly Calc'!I6 -> Jake Oettinger | Q33: ='Weekly Calc'!J6 -> (SLP) | S33: ='Weekly Calc'!K6 -> 9
A35: Transactions
A36: Shawnee Tribe: IR Markstrom sign Karel Vejmelka | G36: Damn Yankees: IR Durzi sign Jordan Spence
A37: Damn Yankees: IR Raymond sign Shane Pinto | G37: Highlanders: Release Eklund sign Vladimir Tarasenko
A38: Slappers: IR Kuemper sign Spencer Knight | G38: Fantasy Hockey Club: IR Bostisbehere sign Oliver Ekman-Larsson
A39: Highlanders: Release Holloway sign Leo Carlsson | G39: Distirict 5: Release DeAngelo sign Jamie Drysdale
A40: Fantasy Hockey Club: Release Toffoli sign Elias Lindholm | G40: Just Chillin: IR Hanifin sign Martin Fehervary
A41: District 5: IR Laine sign Josh Doan | G41: Damn Yankees: Release Ekholm sign Logan Stanley
A42: Just Chillin: IR Kopitar sign Bryan Rust | G42: Highlanders: Release Misa
A43: Shawnee Tribe: Release Byram activate Power

Sheet More Stats
B1: Team Offense | F1: Team Defense | J1: Team Goalie
A2: Fantasy Hockey Club | C2: ='Fantasy Hockey Club'!R34 -> 88 | E2: Highlanders | G2: =Highlanders!R35 -> 28 | I2: Damn Yankees | K2: ='Damn Yankees'!R38 -> 37
A3: Just Chillin | C3: ='Just Chillin'!R34 -> 82 | E3: Fantasy Hockey Club | G3: ='Fantasy Hockey Club'!R35 -> 25 | I3: Grumpy Old Men | K3: ='Grumpy Old Men'!R38 -> 36
A4: Highlanders | C4: =Highlanders!R34 -> 81 | E4: Just Chillin | G4: ='Just Chillin'!R35 -> 20 | I4: Fantasy Hockey Club | K4: ='Fantasy Hockey Club'!R38 -> 29
A5: Slappers | C5: =Slappers!R34 -> 73 | E5: Slappers | G5: =Slappers!R35 -> 20 | I5: Just Chillin | K5: ='Just Chillin'!R38 -> 28
A6: District 5 | C6: ='District 5'!R34 -> 71 | E6: District 5 | G6: ='District 5'!R35 -> 20 | I6: District 5 | K6: ='District 5'!R38 -> 23
A7: Grumpy Old Men | C7: ='Grumpy Old Men'!R34 -> 70 | E7: Damn Yankees | G7: ='Damn Yankees'!R35 -> 18 | I7: Team LIRHL | K7: ='Team LIRHL'!R38 -> 21
A8: Team LIRHL | C8: ='Team LIRHL'!R34 -> 63 | E8: Team LIRHL | G8: ='Team LIRHL'!R35 -> 17 | I8: Riketorians | K8: =Riketorians!R38 -> 20
A9: Damn Yankees | C9: ='Damn Yankees'!R34 -> 56 | E9: Grumpy Old Men | G9: ='Grumpy Old Men'!R35 -> 16 | I9: Highlanders | K9: =Highlanders!R38 -> 18
A10: Riketorians | C10: =Riketorians!R34 -> 50 | E10: Shawnee Tribe | G10: ='Shawnee Tribe'!R35 -> 15 | I10: Slappers | K10: =Slappers!R38 -> 17
A11: Shawnee Tribe | C11: ='Shawnee Tribe'!R34 -> 47 | E11: Riketorians | G11: =Riketorians!R35 -> 15 | I11: Shawnee Tribe | K11: ='Shawnee Tribe'!R38 -> 13
B13: Offensive Goals | F13: Defensive Goals | J13: Team Goals
A14: Just Chillin | C14: ='Just Chillin'!K34 -> 31 | E14: Highlanders | G14: =Highlanders!K35 -> 7 | I14: Just Chillin | K14: ='Just Chillin'!K36 -> 35
A15: Fantasy Hockey Club | C15: ='Fantasy Hockey Club'!K34 -> 28 | E15: Just Chillin | G15: ='Just Chillin'!K35 -> 4 | I15: Highlanders | K15: =Highlanders!K36 -> 34
A16: Highlanders | C16: =Highlanders!K34 -> 27 | E16: Slappers | G16: =Slappers!K35 -> 4 | I16: Fantasy Hockey Club | K16: ='Fantasy Hockey Club'!K36 -> 31
A17: Grumpy Old Men | C17: ='Grumpy Old Men'!K34 -> 23 | E17: District 5 | G17: ='District 5'!K35 -> 4 | I17: Slappers | K17: =Slappers!K36 -> 26
A18: Slappers | C18: =Slappers!K34 -> 22 | E18: Shawnee Tribe | G18: ='Shawnee Tribe'!K35 -> 3 | I18: District 5 | K18: ='District 5'!K36 -> 25
A19: District 5 | C19: ='District 5'!K34 -> 21 | E19: Fantasy Hockey Club | G19: ='Fantasy Hockey Club'!K35 -> 3 | I19: Grumpy Old Men | K19: ='Grumpy Old Men'!K36 -> 24
A20: Team LIRHL | C20: ='Team LIRHL'!K34 -> 20 | E20: Riketorians | G20: =Riketorians!K35 -> 2 | I20: Team LIRHL | K20: ='Team LIRHL'!K36 -> 22
A21: Damn Yankees | C21: ='Damn Yankees'!K34 -> 16 | E21: Team LIRHL | G21: ='Team LIRHL'!K35 -> 2 | I21: Damn Yankees | K21: ='Damn Yankees'!K36 -> 18
A22: Riketorians | C22: =Riketorians!K34 -> 13 | E22: Damn Yankees | G22: ='Damn Yankees'!K35 -> 2 | I22: Riketorians | K22: =Riketorians!K36 -> 15
A23: Shawnee Tribe | C23: ='Shawnee Tribe'!K34 -> 9 | E23: Grumpy Old Men | G23: ='Grumpy Old Men'!K35 -> 1 | I23: Shawnee Tribe | K23: ='Shawnee Tribe'!K36 -> 12
B25: Offensive Assists | F25: Defensive Assists | J25: Team Assists
A26: Fantasy Hockey Club | C26: ='Fantasy Hockey Club'!L34 -> 36 | E26: Fantasy Hockey Club | G26: ='Fantasy Hockey Club'!L35 -> 19 | I26: Fantasy Hockey Club | K26: ='Fantasy Hockey Club'!L36 -> 55
A27: District 5 | C27: ='District 5'!L34 -> 36 | E27: Slappers | G27: =Slappers!L35 -> 16 | I27: Team LIRHL | K27: ='Team LIRHL'!L36 -> 49
A28: Team LIRHL | C28: ='Team LIRHL'!L34 -> 35 | E28: Highlanders | G28: =Highlanders!L35 -> 15 | I28: District 5 | K28: ='District 5'!L36 -> 49
A29: Shawnee Tribe | C29: ='Shawnee Tribe'!L34 -> 32 | E29: Just Chillin | G29: ='Just Chillin'!L35 -> 14 | I29: Slappers | K29: =Slappers!L36 -> 46
A30: Just Chillin | C30: ='Just Chillin'!L34 -> 31 | E30: Team LIRHL | G30: ='Team LIRHL'!L35 -> 14 | I30: Just Chillin | K30: ='Just Chillin'!L36 -> 45
A31: Grumpy Old Men | C31: ='Grumpy Old Men'!L34 -> 30 | E31: Damn Yankees | G31: ='Damn Yankees'!L35 -> 14 | I31: Grumpy Old Men | K31: ='Grumpy Old Men'!L36 -> 44
A32: Slappers | C32: =Slappers!L34 -> 30 | E32: Grumpy Old Men | G32: ='Grumpy Old Men'!L35 -> 14 | I32: Shawnee Tribe | K32: ='Shawnee Tribe'!L36 -> 43
A33: Damn Yankees | C33: ='Damn Yankees'!L34 -> 29 | E33: District 5 | G33: ='District 5'!L35 -> 13 | I33: Damn Yankees | K33: ='Damn Yankees'!L36 -> 43
A34: Riketorians | C34: =Riketorians!L34 -> 28 | E34: Riketorians | G34: =Riketorians!L35 -> 12 | I34: Highlanders | K34: =Highlanders!L36 -> 42
A35: Highlanders | C35: =Highlanders!L34 -> 27 | E35: Shawnee Tribe | G35: ='Shawnee Tribe'!L35 -> 11 | I35: Riketorians | K35: =Riketorians!L36 -> 40
B37: Offensive PP Goals | F37: Defensive PP Goals | J37: Team PP Goals
A38: Fantasy Hockey Club | C38: ='Fantasy Hockey Club'!M34 -> 12 | E38: Highlanders | G38: =Highlanders!M35 -> 2 | I38: Fantasy Hockey Club | K38: ='Fantasy Hockey Club'!M36 -> 12
A39: Grumpy Old Men | C39: ='Grumpy Old Men'!M34 -> 11 | E39: Damn Yankees | G39: ='Damn Yankees'!M35 -> 2 | I39: Grumpy Old Men | K39: ='Grumpy Old Men'!M36 -> 12
A40: Highlanders | C40: =Highlanders!M34 -> 9 | E40: Shawnee Tribe | G40: ='Shawnee Tribe'!M35 -> 1 | I40: Highlanders | K40: =Highlanders!M36 -> 11
A41: District 5 | C41: ='District 5'!M34 -> 8 | E41: Grumpy Old Men | G41: ='Grumpy Old Men'!M35 -> 1 | I41: District 5 | K41: ='District 5'!M36 -> 9
A42: Just Chillin | C42: ='Just Chillin'!M34 -> 8 | E42: Team LIRHL | G42: ='Team LIRHL'!M35 -> 1 | I42: Just Chillin | K42: ='Just Chillin'!M36 -> 8
A43: Team LIRHL | C43: ='Team LIRHL'!M34 -> 5 | E43: Riketorians | G43: =Riketorians!M35 -> 1 | I43: Damn Yankees | K43: ='Damn Yankees'!M36 -> 7
A44: Damn Yankees | C44: ='Damn Yankees'!M34 -> 5 | E44: District 5 | G44: ='District 5'!M35 -> 1 | I44: Team LIRHL | K44: ='Team LIRHL'!M36 -> 6
A45: Riketorians | C45: =Riketorians!M34 -> 5 | E45: Just Chillin | G45: ='Just Chillin'!M35 -> 0 | I45: Riketorians | K45: =Riketorians!M36 -> 6
A46: Slappers | C46: =Slappers!M34 -> 5 | E46: Fantasy Hockey Club | G46: ='Fantasy Hockey Club'!M35 -> 0 | I46: Shawnee Tribe | K46: ='Shawnee Tribe'!M36 -> 5
A47: Shawnee Tribe | C47: ='Shawnee Tribe'!M34 -> 4 | E47: Slappers | G47: =Slappers!M35 -> 0 | I47: Slappers | K47: =Slappers!M36 -> 5
B49: Boxscore Points For | F49: Boxscore Points Against | J49: Boxscore Points Differential
A50: Fantasy Hockey Club | C50: ='Fantasy Hockey Club'!G57 -> 122 | E50: District 5 | G50: ='District 5'!H57 -> 75 | I50: Just Chillin | K50: ='Just Chillin'!G57-'Just Chillin'!H57 -> 29
A51: Highlanders | C51: =Highlanders!G57 -> 118 | E51: Just Chillin | G51: ='Just Chillin'!H57 -> 87 | I51: District 5 | K51: ='District 5'!G57-'District 5'!H57 -> 29
A52: Just Chillin | C52: ='Just Chillin'!G57 -> 116 | E52: Team LIRHL | G52: ='Team LIRHL'!H57 -> 94 | I52: Fantasy Hockey Club | K52: ='Fantasy Hockey Club'!G57-'Fantasy Hockey Club'!H57 -> 24
A53: Grumpy Old Men | C53: ='Grumpy Old Men'!G57 -> 112 | E53: Grumpy Old Men | G53: ='Grumpy Old Men'!H57 -> 96 | I53: Highlanders | K53: =Highlanders!G57-Highlanders!H57 -> 18
A54: District 5 | C54: ='District 5'!G57 -> 104 | E54: Fantasy Hockey Club | G54: ='Fantasy Hockey Club'!H57 -> 98 | I54: Grumpy Old Men | K54: ='Grumpy Old Men'!G57-'Grumpy Old Men'!H57 -> 16
A55: Damn Yankees | C55: ='Damn Yankees'!G57 -> 102 | E55: Highlanders | G55: =Highlanders!H57 -> 100 | I55: Team LIRHL | K55: ='Team LIRHL'!G57-'Team LIRHL'!H57 -> -3
A56: Slappers | C56: =Slappers!G57 -> 101 | E56: Slappers | G56: =Slappers!H57 -> 110 | I56: Damn Yankees | K56: ='Damn Yankees'!G57-'Damn Yankees'!H57 -> -8
A57: Team LIRHL | C57: ='Team LIRHL'!G57 -> 91 | E57: Damn Yankees | G57: ='Damn Yankees'!H57 -> 110 | I57: Slappers | K57: =Slappers!G57-Slappers!H57 -> -9
A58: Riketorians | C58: =Riketorians!G57 -> 81 | E58: Riketorians | G58: =Riketorians!H57 -> 112 | I58: Riketorians | K58: =Riketorians!G57-Riketorians!H57 -> -31
A59: Shawnee Tribe | C59: ='Shawnee Tribe'!G57 -> 66 | E59: Shawnee Tribe | G59: ='Shawnee Tribe'!H57 -> 131 | I59: Shawnee Tribe | K59: ='Shawnee Tribe'!G57-'Shawnee Tribe'!H57 -> -65

Sheet Shawnee Tribe
A1: Team: Shawnee Tribe | C1: General Manager: John Kaziun
D3: Scoring This Week | N3: Players Overall Scoring
A4: Forwards | B4: Gls | C4: Ast | D4: PP | E4: SH | F4: GW | G4: OT | H4: PSG | I4: PTS | K4: Gls | L4: Ast | M4: PP | N4: SH | O4: GW | P4: OT | Q4: PSG | R4: PTS
A5: Artemi Panarin | B5: 1 | C5: 3 | D5: 0 | E5: 0 | F5: 1 | G5: 0 | H5: 0 | I5: =(B5+C5+D5+(2*E5)+(2*F5)+G5+(4*H5)) -> 6 | K5: 1 | L5: 5 | M5: 0 | N5: 0 | O5: 1 | P5: 0 | Q5: 0 | R5: =(K5+L5+M5+(2*N5)+(2*O5)+P5+(4*Q5)) -> 8
A6: Connor McDavid | B6: 0 | C6: 4 | D6: 0 | E6: 0 | F6: 0 | G6: 0 | H6: 0 | I6: 4 | K6: 0 | L6: 7 | M6: 0 | N6: 0 | O6: 0 | P6: 0 | Q6: 0 | R6: 7
A7: Rickard Rakell | B7: 1 | C7: 2 | D7: 0 | E7: 0 | F7: 0 | G7: 0 | H7: 0 | I7: 3 | K7: 2 | L7: 3 | M7: 1 | N7: 0 | O7: 0 | P7: 0 | Q7: 0 | R7: 6
A8: Macklin Celebrini | B8: 1 | C8: 1 | D8: 1 | E8: 0 | F8: 0 | G8: 0 | H8: 0 | I8: 3 | K8: 1 | L8: 4 | M8: 1 | N8: 0 | O8: 0 | P8: 0 | Q8: 0 | R8: 6
A9: Ivan Demidov | B9: 1 | C9: 2 | D9: 0 | E9: 0 | F9: 0 | G9: 0 | H9: 0 | I9: 3 | K9: 1 | L9: 3 | M9: 0 | N9: 0 | O9: 0 | P9: 0 | Q9: 0 | R9: 4
A10: Jonathan Toews | B10: 0 | C10: 3 | D10: 0 | E10: 0 | F10: 0 | G10: 0 | H10: 0 | I10: 3 | K10: 0 | L10: 3 | M10: 0 | N10: 0 | O10: 0 | P10: 0 | Q10: 0 | R10: 3
A11: Juraj Slafkovský | B11: 1 | C11: 0 | D11: 0 | E11: 0 | F11: 0 | G11: 0 | H11: 0 | I11: 1 | K11: 2 | L11: 0 | M11: 1 | N11: 0 | O11: 0 | P11: 0 | Q11: 0 | R11: 3
A12: Matvei Michkov | B12: 1 | C12: 0 | D12: 0 | E12: 0 | F12: 0 | G12: 0 | H12: 0 | I12: 1 | K12: 1 | L12: 0 | M12: 0 | N12: 0 | O12: 0 | P12: 0 | Q12: 0 | R12: 1
A13: Will Smith | B13: 0 | C13: 1 | D13: 0 | E13: 0 | F13: 0 | G13: 0 | H13: 0 | I13: 1 | K13: 0 | L13: 4 | M13: 0 | N13: 0 | O13: 0 | P13: 0 | Q13: 0 | R13: 4
A14: Elias Pettersson | B14: 0 | C14: 1 | D14: 0 | E14: 0 | F14: 0 | G14: 0 | H14: 0 | I14: 1 | K14: 0 | L14: 2 | M14: 0 | N14: 0 | O14: 0 | P14: 0 | Q14: 0 | R14: 2
A15: Robert Thomas | B15: 0 | C15: 0 | D15: 0 | E15: 0 | F15: 0 | G15: 0 | H15: 0 | I15: 0 | K15: 1 | L15: 1 | M15: 1 | N15: 0 | O15: 0 | P15: 0 | Q15: 0 | R15: 3
A18: Defense | B18: Gls | C18: Ast | D18: PP | E18: SH | F18: GW | G18: OT | H18: PSG | I18: PTS | K18: Gls | L18: Ast | M18: PP | N18: SH | O18: GW | P18: OT | Q18: PSG | R18: PTS
A19: Lane Hutson | B19: 0 | C19: 3 | D19: 0 | E19: 0 | F19: 0 | G19: 0 | H19: 0 | I19: =(B19+C19+D19+(2*E19)+(2*F19)+G19+(4*H19)) -> 3 | K19: 0 | L19: 4 | M19: 0 | N19: 0 | O19: 0 | P19: 0 | Q19: 0 | R19: =(K19+L19+M19+(2*N19)+(2*O19)+P19+(4*Q19)) -> 4
A20: Vince Dunn | B20: 1 | C20: 1 | D20: 0 | E20: 0 | F20: 0 | G20: 0 | H20: 0 | I20: 2 | K20: 2 | L20: 3 | M20: 0 | N20: 0 | O20: 0 | P20: 0 | Q20: 0 | R20: 5
A21: Bowen Byram | B21: 0 | C21: 1 | D21: 0 | E21: 0 | F21: 0 | G21: 0 | H21: 0 | I21: 1 | K21: 0 | L21: 1 | M21: 0 | N21: 0 | O21: 0 | P21: 0 | Q21: 0 | R21: 1
A22: John Klingberg | B22: 0 | C22: 0 | D22: 0 | E22: 0 | F22: 0 | G22: 0 | H22: 0 | I22: 0 | K22: 1 | L22: 1 | M22: 1 | N22: 0 | O22: 0 | P22: 0 | Q22: 0 | R22: 3
A23: Shea Theodore | B23: 0 | C23: 0 | D23: 0 | E23: 0 | F23: 0 | G23: 0 | H23: 0 | I23: 0 | K23: 0 | L23: 1 | M23: 0 | N23: 0 | O23: 0 | P23: 0 | Q23: 0 | R23: 1
A24: Olen Zellweger | B24: 0 | C24: 0 | D24: 0 | E24: 0 | F24: 0 | G24: 0 | H24: 0 | I24: 0 | K24: 0 | L24: 1 | M24: 0 | N24: 0 | O24: 0 | P24: 0 | Q24: 0 | R24: 1
A25: Evan Bouchard | B25: 0 | C25: 0 | D25: 0 | E25: 0 | F25: 0 | G25: 0 | H25: 0 | I25: 0 | K25: 0 | L25: 0 | M25: 0 | N25: 0 | O25: 0 | P25: 0 | Q25: 0 | R25: 0
A27: Goalie | B27: W | C27: OT | D27: SO | E27: Gls | F27: Ast | G27: GAA | H27: SP | I27: PTS | K27: W | L27: OT | M27: SO | N27: Gls | O27: Ast | P27: GAA | Q27: SP | R27: PTS
A28: Sam Montembeault | B28: 1 | C28: 0 | D28: 0 | E28: 0 | F28: 0 | G28: 3.97 | H28: 0.818 | I28: =((3*B28)+C28+(3*D28)+(10*E28)+(3*F28)+G29+H29) -> 3 | K28: 2 | L28: 0 | M28: 0 | N28: 0 | O28: 0 | P28: 3.26 | Q28: 0.857 | R28: =((3*K28)+L28+(3*M28)+(10*N28)+(3*O28)+P29+Q29) -> 7
B29: 8 | C29: 120.76 | D29: 36 | E29: 44 | G29: 0 | H29: 0 | I29: =((3*B28)+C28+(3*D28)+(10*E28)+(3*F28)+G29+H29) -> 3 | P29: 1 | Q29: 0 | R29: =((2*K28)+L28+(3*M28)+(10*N28)+(3*O28)+P29+Q29) -> 5
A30: Jacob Markstrom | B30: 1 | C30: 0 | D30: 0 | E30: 0 | F30: 0 | G30: 3 | H30: 0.889 | I30: =((3*B30)+C30+(3*D30)+(10*E30)+(3*F30)+G31+H31) -> 3 | K30: 2 | L30: 0 | M30: 0 | N30: 0 | O30: 0 | P30: 3.89 | Q30: 0.845 | R30: =((3*K30)+L30+(3*M30)+(10*N30)+(3*O30)+P31+Q31) -> 6
B31: 1 | C31: 20 | D31: 8 | E31: 9 | G31: 0 | H31: 0 | I31: =((3*B30)+C30+(3*D30)+(10*E30)+(3*F30)+G31+H31) -> 3 | P31: 0 | Q31: 0 | R31: =((2*K30)+L30+(3*M30)+(10*N30)+(3*O30)+P31+Q31) -> 4
D32: All Playes Scoring This Week | N32: Cumulative Points
B33: Gls | C33: Ast | D33: PP | E33: SH | F33: GW | G33: OT | H33: PSG | K33: Gls | L33: Ast | M33: PP | N33: SH | O33: GW | P33: OT | Q33: PSG | R33: PTS
A34: Forwards | B34: =SUM(B5:B15) -> 6 | C34: =SUM(C5:C15) -> 17 | D34: 1 | E34: 0 | F34: 1 | G34: 0 | H34: 0 | K34: 9 | L34: 32 | M34: 4 | N34: 0 | O34: 1 | P34: 0 | Q34: 0 | R34: =(K34+L34+M34+(2*N34)+(2*O34)+P34+(4*Q34)) -> 47
A35: Defense | B35: =SUM(B19:B25) -> 1 | C35: =SUM(C19:C25) -> 5 | D35: 0 | E35: 0 | F35: 0 | G35: 0 | H35: 0 | K35: 3 | L35: 11 | M35: 1 | N35: 0 | O35: 0 | P35: 0 | Q35: 0 | R35: =(K35+L35+M35+(2*N35)+(2*O35)+P35+(4*Q35)) -> 15
A36: Total Scorers | B36: =SUM(B34:B35) -> 7 | C36: =SUM(C34:C35) -> 22 | D36: 1 | E36: 0 | F36: 1 | G36: 0 | H36: 0 | K36: =SUM(K34:K35) -> 12 | L36: 43 | M36: 5 | N36: 0 | O36: 1 | P36: 0 | Q36: 0 | R36: =(K36+L36+M36+(2*N36)+(2*O36)+P36+(4*Q36)) -> 62
B37: W | C37: OT | D37: SO | E37: Gls | F37: Ast | G37: GAA | H37: SP | K37: W | L37: OT | M37: SO | N37: Gls | O37: Ast | P37: GAA | Q37: SP | R37: PTS
A38: Goalie Totals | B38: =SUM(B28,B30) -> 2 | C38: =SUM(C28,C30) -> 0 | D38: =SUM(D28,D30) -> 0 | E38: =SUM(E28,E30) -> 0 | F38: =SUM(F28,F30) -> 0 | G38: =IF(C39=0,0,B39/(C39/60)) -> 3.836317136 | H38: =IF(E39=0,0,D39/E39) -> 0.8301886792 | K38: 4 | L38: 0 | M38: 0 | N38: 0 | O38: 0 | P38: =IF(L39=0,0,K39/(L39/60)) -> 3.492433062 | Q38: =IF(N39=0,0,M39/N39) -> 0.8523489933 | R38: =((3*K38)+L38+(3*M38)+(10*N38)+(3*O38)+P39+Q39) -> 13
B39: =SUM(B29,B31) -> 9 | C39: =SUM(C29,C31) -> 140.76 | D39: =SUM(D29,D31) -> 44 | E39: =SUM(E29,E31) -> 53 | K39: 22 | L39: 377.96 | M39: 127 | N39: 149 | P39: 1 | Q39: 0
K40: GA | L40: Time | M40: Saves | N40: Shots
B42: Injured Reserve | M42: This Weeks Totals
A43: Player | B43: P | C43: GP | D43: IR Weeks | E43: Pts | L43: Forwards | N43: =SUM(I5:I12) -> 24
B44: F | L44: Defense | N44: =SUM(I19:I23) -> 6
A45: Owen Power | B45: D | C45: 3 | D45: 2 | E45: 2 | L45: Goalie | N45: =I28 -> 3
B46: G
B47: Flex | L47: Total Points | N47: =SUM(N43:N45) -> 33
A49: Warning, Owen Power must be returned to lineup by start of Week 3
A56: Team Record | B56: W | C56: L | D56: T | E56: Pts | F56: CP | G56: BPF | H56: BFA | I56: Streak
A57: Shawnee Tribe | B57: 0 | C57: 2 | D57: 0 | E57: =2*B57+D57 -> 0 | F57: =R36+R38 -> 75 | G57: =SUM(B61,B65,B69,B73,B77,F61,F65,F69,F73,F77,J61,J65,J69,J73,J77,N61,N65,N69,N73,N77,R61,R65) -> 66 | H57: =SUM(B62,B66,B70,B74,B78,F62,F66,F70,F74,F78,J62,J66,J70,J74,J78,N62,N66,N70,N74,N78,R62,R66) -> 131 | I57: Lost 2
A60: Game 1 | B60: Score | D60: Game 6 | F60: Score | H60: Game 11 | J60: Score | L60: Game 16 | N60: Score | P60: Game 21 | R60: Score
A61: Shawnee Tribe | B61: 33 | D61: Shawnee Tribe | F61: 0 | H61: Shawnee Tribe | J61: 0 | L61: Shawnee Tribe | N61: 0 | P61: Shawnee Tribe | R61: 0
A62: Highlanders | B62: 69 | D62: Riketorians | F62: 0 | H62: Fantasy Hockey Club | J62: 0 | L62: Riketorians | N62: 0 | P62: District 5 | R62: 0
A64: Game 2 | B64: Score | D64: Game 7 | F64: Score | H64: Game 12 | J64: Score | L64: Game 17 | N64: Score | P64: Game 22 | R64: Score
A65: Shawnee Tribe | B65: 33 | D65: Shawnee Tribe | F65: 0 | H65: Shawnee Tribe | J65: 0 | L65: Shawnee Tribe | N65: 0 | P65: Shawnee Tribe | R65: 0
A66: District 5 | B66: 62 | D66: Fantasy Hockey Club | F66: 0 | H66: Highlanders | J66: 0 | L66: Slappers | N66: 0 | P66: Highlanders | R66: 0
A68: Game 3 | B68: Score | D68: Game 8 | F68: Score | H68: Game 13 | J68: Score | L68: Game 18 | N68: Score
A69: Shawnee Tribe | B69: 0 | D69: Shawnee Tribe | F69: 0 | H69: Shawnee Tribe | J69: 0 | L69: Shawnee Tribe | N69: 0
A70: Slappers | B70: 0 | D70: Slappers | F70: 0 | H70: District 5 | J70: 0 | L70: Just Chillin | N70: 0
A72: Game 4 | B72: Score | D72: Game 9 | F72: Score | H72: Game 14 | J72: Score | L72: Game 19 | N72: Score
A73: Shawnee Tribe | B73: 0 | D73: Shawnee Tribe | F73: 0 | H73: Shawnee Tribe | J73: 0 | L73: Shawnee Tribe | N73: 0
A74: Just Chillin | B74: 0 | D74: Damn Yankees | F74: 0 | H74: Just Chillin | J74: 0 | L74: Team LIRHL | N74: 0
A76: Game 5 | B76: Score | D76: Game 10 | F76: Score | H76: Game 15 | J76: Score | L76: Game 20 | N76: Score
A77: Shawnee Tribe | B77: 0 | D77: Shawnee Tribe | F77: 0 | H77: Shawnee Tribe | J77: 0 | L77: Shawnee Tribe | N77: 0
A78: Grumpy Old Men | B78: 0 | D78: Team LIRHL | F78: 0 | H78: Grumpy Old Men | J78: 0 | L78: Damn Yankees | N78: 0

Sheet Fantasy Hockey Club
A1: Team: Fantasy Hockey Club | D1: General Manager: Barrett Pagan
D3: Scoring This Week | N3: Players Overall Scoring
A4: Forwards | B4: Gls | C4: Ast | D4: PP | E4: SH | F4: GW | G4: OT | H4: PSG | I4: PTS | K4: Gls | L4: Ast | M4: PP | N4: SH | O4: GW | P4: OT | Q4: PSG | R4: PTS
A5: Cole Caufield | B5: 4 | C5: 1 | D5: 0 | E5: 0 | F5: 2 | G5: 2 | H5: 0 | I5: =(B5+C5+D5+(2*E5)+(2*F5)+G5+(4*H5)) -> 11 | K5: 5 | L5: 3 | M5: 1 | N5: 0 | O5: 2 | P5: 2 | Q5: 0 | R5: =(K5+L5+M5+(2*N5)+(2*O5)+P5+(4*Q5)) -> 15
A6: Bo Horvat | B6: 4 | C6: 0 | D6: 1 | E6: 1 | F6: 1 | G6: 0 | H6: 0 | I6: 9 | K6: 4 | L6: 2 | M6: 1 | N6: 1 | O6: 1 | P6: 0 | Q6: 0 | R6: 11
A7: Evgeni Malkin | B7: 2 | C7: 2 | D7: 1 | E7: 0 | F7: 0 | G7: 0 | H7: 0 | I7: 5 | K7: 2 | L7: 7 | M7: 1 | N7: 0 | O7: 0 | P7: 0 | Q7: 0 | R7: 10
A8: Dylan Cozens | B8: 2 | C8: 2 | D8: 0 | E8: 0 | F8: 0 | G8: 0 | H8: 0 | I8: 4 | K8: 3 | L8: 2 | M8: 1 | N8: 0 | O8: 0 | P8: 0 | Q8: 0 | R8: 6
A9: Sebastian Aho | B9: 1 | C9: 3 | D9: 0 | E9: 0 | F9: 0 | G9: 0 | H9: 0 | I9: 4 | K9: 1 | L9: 6 | M9: 0 | N9: 0 | O9: 0 | P9: 0 | Q9: 0 | R9: 7
A10: Artturi Lehkonen | B10: 0 | C10: 4 | D10: 0 | E10: 0 | F10: 0 | G10: 0 | H10: 0 | I10: 4 | K10: 2 | L10: 5 | M10: 0 | N10: 0 | O10: 0 | P10: 0 | Q10: 0 | R10: 7
A11: Tyler Toffoli | B11: 1 | C11: 1 | D11: 1 | E11: 0 | F11: 0 | G11: 0 | H11: 0 | I11: 3 | K11: 2 | L11: 1 | M11: 1 | N11: 0 | O11: 0 | P11: 0 | Q11: 0 | R11: 4
A12: Alex DeBrincat | B12: 0 | C12: 3 | D12: 0 | E12: 0 | F12: 0 | G12: 0 | H12: 0 | I12: 3 | K12: 0 | L12: 6 | M12: 0 | N12: 0 | O12: 0 | P12: 0 | Q12: 0 | R12: 6
A13: Pavel Dorofeyev | B13: 1 | C13: 1 | D13: 0 | E13: 0 | F13: 0 | G13: 0 | H13: 0 | I13: 2 | K13: 6 | L13: 1 | M13: 4 | N13: 0 | O13: 0 | P13: 0 | Q13: 0 | R13: 11
A14: Leon Draisaitl | B14: 1 | C14: 0 | D14: 1 | E14: 0 | F14: 0 | G14: 0 | H14: 0 | I14: 2 | K14: 3 | L14: 1 | M14: 2 | N14: 1 | O14: 0 | P14: 0 | Q14: 0 | R14: 8
A15: Brayden Point | B15: 1 | C15: 0 | D15: 1 | E15: 0 | F15: 0 | G15: 0 | H15: 0 | I15: 2 | K15: 2 | L15: 3 | M15: 1 | N15: 0 | O15: 0 | P15: 0 | Q15: 0 | R15: 6
A18: Defense | B18: Gls | C18: Ast | D18: PP | E18: SH | F18: GW | G18: OT | H18: PSG | I18: PTS | K18: Gls | L18: Ast | M18: PP | N18: SH | O18: GW | P18: OT | Q18: PSG | R18: PTS
A19: Jakob Chychrun | B19: 1 | C19: 0 | D19: 0 | E19: 0 | F19: 1 | G19: 1 | H19: 0 | I19: =(B19+C19+D19+(2*E19)+(2*F19)+G19+(4*H19)) -> 4 | K19: 1 | L19: 3 | M19: 0 | N19: 0 | O19: 1 | P19: 1 | Q19: 0 | R19: =(K19+L19+M19+(2*N19)+(2*O19)+P19+(4*Q19)) -> 7
A20: Shayne Gostisbehere | B20: 1 | C20: 3 | D20: 0 | E20: 0 | F20: 0 | G20: 0 | H20: 0 | I20: 4 | K20: 1 | L20: 6 | M20: 0 | N20: 0 | O20: 0 | P20: 0 | Q20: 0 | R20: 7
A21: Rasmus Dahlin | B21: 0 | C21: 4 | D21: 0 | E21: 0 | F21: 0 | G21: 0 | H21: 0 | I21: 4 | K21: 0 | L21: 4 | M21: 0 | N21: 0 | O21: 0 | P21: 0 | Q21: 0 | R21: 4
A22: Brady Skjei | B22: 0 | C22: 2 | D22: 0 | E22: 0 | F22: 0 | G22: 0 | H22: 0 | I22: 2 | K22: 0 | L22: 2 | M22: 0 | N22: 0 | O22: 0 | P22: 0 | Q22: 0 | R22: 2
A23: KAndre Miller | B23: 0 | C23: 2 | D23: 0 | E23: 0 | F23: 0 | G23: 0 | H23: 0 | I23: 2 | K23: 2 | L23: 2 | M23: 1 | N23: 0 | O23: 0 | P23: 0 | Q23: 0 | R23: 5
A24: Brandt Clarke | B24: 0 | C24: 1 | D24: 0 | E24: 0 | F24: 0 | G24: 0 | H24: 0 | I24: 1 | K24: 1 | L24: 1 | M24: 0 | N24: 0 | O24: 0 | P24: 0 | Q24: 0 | R24: 2
A25: Dylan DeMelo | B25: 0 | C25: 1 | D25: 0 | E25: 0 | F25: 0 | G25: 0 | H25: 0 | I25: 1 | K25: 0 | L25: 3 | M25: 0 | N25: 0 | O25: 0 | P25: 0 | Q25: 0 | R25: 3
A27: Goalie | B27: W | C27: OT | D27: SO | E27: Gls | F27: Ast | G27: GAA | H27: SP | I27: PTS | K27: W | L27: OT | M27: SO | N27: Gls | O27: Ast | P27: GAA | Q27: SP | R27: PTS
A28: Logan Thompson | B28: 2 | C28: 0 | D28: 0 | E28: 0 | F28: 0 | G28: 1.49 | H28: 0.909 | I28: =((3*B28)+C28+(3*D28)+(10*E28)+(3*F28)+G29+H29) -> 11 | K28: 3 | L28: 0 | M28: 0 | N28: 0 | O28: 0 | P28: 1.75 | Q28: 0.922 | R28: =((3*K28)+L28+(3*M28)+(10*N28)+(3*O28)+P29+Q29) -> 20
B29: 3 | C29: 121.17 | D29: 30 | E29: 33 | G29: 4 | H29: 1 | I29: =((3*B28)+C28+(3*D28)+(10*E28)+(3*F28)+G29+H29) -> 11 | P29: 6 | Q29: 5 | R29: =((2*K28)+L28+(3*M28)+(10*N28)+(3*O28)+P29+Q29) -> 17
A30: Adin Hill | B30: 1 | C30: 0 | D30: 0 | E30: 0 | F30: 0 | G30: 2.25 | H30: 0.919 | I30: =((3*B30)+C30+(3*D30)+(10*E30)+(3*F30)+G31+H31) -> 7 | K30: 1 | L30: 2 | M30: 0 | N30: 0 | O30: 0 | P30: 2.86 | Q30: 0.882 | R30: =((3*K30)+L30+(3*M30)+(10*N30)+(3*O30)+P31+Q31) -> 9
B31: 3 | C31: 79.96 | D31: 34 | E31: 37 | G31: 2 | H31: 2 | I31: =((3*B30)+C30+(3*D30)+(10*E30)+(3*F30)+G31+H31) -> 7 | P31: 2 | Q31: 2 | R31: =((2*K30)+L30+(3*M30)+(10*N30)+(3*O30)+P31+Q31) -> 8
D32: All Playes Scoring This Week | N32: Cumulative Points
B33: Gls | C33: Ast | D33: PP | E33: SH | F33: GW | G33: OT | H33: PSG | K33: Gls | L33: Ast | M33: PP | N33: SH | O33: GW | P33: OT | Q33: PSG | R33: PTS
A34: Forwards | B34: =SUM(B5:B15) -> 17 | C34: =SUM(C5:C15) -> 17 | D34: 5 | E34: 1 | F34: 3 | G34: 2 | H34: 0 | K34: 28 | L34: 36 | M34: 12 | N34: 2 | O34: 3 | P34: 2 | Q34: 0 | R34: =(K34+L34+M34+(2*N34)+(2*O34)+P34+(4*Q34)) -> 88
A35: Defense | B35: =SUM(B19:B25) -> 2 | C35: =SUM(C19:C25) -> 13 | D35: 0 | E35: 0 | F35: 1 | G35: 1 | H35: 0 | K35: 3 | L35: 19 | M35: 0 | N35: 0 | O35: 1 | P35: 1 | Q35: 0 | R35: =(K35+L35+M35+(2*N35)+(2*O35)+P35+(4*Q35)) -> 25
A36: Total Scorers | B36: =SUM(B34:B35) -> 19 | C36: =SUM(C34:C35) -> 30 | D36: 5 | E36: 1 | F36: 4 | G36: 3 | H36: 0 | K36: =SUM(K34:K35) -> 31 | L36: 55 | M36: 12 | N36: 2 | O36: 4 | P36: 3 | Q36: 0 | R36: =(K36+L36+M36+(2*N36)+(2*O36)+P36+(4*Q36)) -> 113
B37: W | C37: OT | D37: SO | E37: Gls | F37: Ast | G37: GAA | H37: SP | K37: W | L37: OT | M37: SO | N37: Gls | O37: Ast | P37: GAA | Q37: SP | R37: PTS
A38: Goalie Totals | B38: =SUM(B28,B30) -> 3 | C38: =SUM(C28,C30) -> 0 | D38: =SUM(D28,D30) -> 0 | E38: =SUM(E28,E30) -> 0 | F38: =SUM(F28,F30) -> 0 | G38: =IF(C39=0,0,B39/(C39/60)) -> 1.789887138 | H38: =IF(E39=0,0,D39/E39) -> 0.9142857143 | K38: 4 | L38: 2 | M38: 0 | N38: 0 | O38: 0 | P38: =IF(L39=0,0,K39/(L39/60)) -> 2.271057378 | Q38: =IF(N39=0,0,M39/N39) -> 0.9028571429 | R38: =((3*K38)+L38+(3*M38)+(10*N38)+(3*O38)+P39+Q39) -> 29
B39: =SUM(B29,B31) -> 6 | C39: =SUM(C29,C31) -> 201.13 | D39: =SUM(D29,D31) -> 64 | E39: =SUM(E29,E31) -> 70 | K39: 17 | L39: 449.13 | M39: 158 | N39: 175 | P39: 8 | Q39: 7
K40: GA | L40: Time | M40: Saves | N40: Shots
B42: Injured Reserve | M42: This Weeks Totals
A43: Player | B43: P | C43: GP | D43: IR Weeks | E43: Pts | L43: Forwards | N43: =SUM(I5:I12) -> 43
B44: F | L44: Defense | N44: =SUM(I19:I23) -> 16
B45: D | L45: Goalie | N45: =I28 -> 11
B46: G
B47: Flex | L47: Total Points | N47: =SUM(N43:N45) -> 70
A56: Team Record | B56: W | C56: L | D56: T | E56: Pts | F56: CP | G56: BPF | H56: BFA | I56: Streak
A57: Fantasy Hockey Club | B57: 1 | C57: 1 | D57: 0 | E57: =2*B57+D57 -> 2 | F57: =R36+R38 -> 142 | G57: =SUM(B61,B65,B69,B73,B77,F61,F65,F69,F73,F77,J61,J65,J69,J73,J77,N61,N65,N69,N73,N77,R61,R65) -> 122 | H57: =SUM(B62,B66,B70,B74,B78,F62,F66,F70,F74,F78,J62,J66,J70,J74,J78,N62,N66,N70,N74,N78,R62,R66) -> 98 | I57: Won 1
A60: Game 1 | B60: Score | D60: Game 6 | F60: Score | H60: Game 11 | J60: Score | L60: Game 16 | N60: Score | P60: Game 21 | R60: Score
A61: Fantasy Hockey Club | B61: 52 | D61: Fantasy Hockey Club | F61: 0 | H61: Fantasy Hockey Club | J61: 0 | L61: Fantasy Hockey Club | N61: 0 | P61: Fantasy Hockey Club | R61: 0
A62: Grumpy Old Men | B62: 59 | D62: Just Chillin | F62: 0 | H62: Shawnee Tribe | J62: 0 | L62: District 5 | N62: 0 | P62: Slappers | R62: 0
A64: Game 2 | B64: Score | D64: Game 7 | F64: Score | H64: Game 12 | J64: Score | L64: Game 17 | N64: Score | P64: Game 22 | R64: Score
A65: Fantasy Hockey Club | B65: 70 | D65: Fantasy Hockey Club | F65: 0 | H65: Fantasy Hockey Club | J65: 0 | L65: Fantasy Hockey Club | N65: 0 | P65: Fantasy Hockey Club | R65: 0
A66: Riketorians | B66: 39 | D66: Shawnee Tribe | F66: 0 | H66: Damn Yankees | J66: 0 | L66: Riketorians | N66: 0 | P66: Grumpy Old Men | R66: 0
A68: Game 3 | B68: Score | D68: Game 8 | F68: Score | H68: Game 13 | J68: Score | L68: Game 18 | N68: Score
A69: Fantasy Hockey Club | B69: 0 | D69: Fantasy Hockey Club | F69: 0 | H69: Fantasy Hockey Club | J69: 0 | L69: Fantasy Hockey Club | N69: 0
A70: Damn Yankees | B70: 0 | D70: Team LIRHL | F70: 0 | H70: Slappers | J70: 0 | L70: Team LIRHL | N70: 0
A72: Game 4 | B72: Score | D72: Game 9 | F72: Score | H72: Game 14 | J72: Score | L72: Game 19 | N72: Score
A73: Fantasy Hockey Club | B73: 0 | D73: Fantasy Hockey Club | F73: 0 | H73: Fantasy Hockey Club | J73: 0 | L73: Fantasy Hockey Club | N73: 0
A74: Highlanders | B74: 0 | D74: Riketorians | F74: 0 | H74: Grumpy Old Men | J74: 0 | L74: Just Chillin | N74: 0
A76: Game 5 | B76: Score | D76: Game 10 | F76: Score | H76: Game 15 | J76: Score | L76: Game 20 | N76: Score
A77: Fantasy Hockey Club | B77: 0 | D77: Fantasy Hockey Club | F77: 0 | H77: Fantasy Hockey Club | J77: 0 | L77: Fantasy Hockey Club | N77: 0
A78: Team LIRHL | B78: 0 | D78: District 5 | F78: 0 | H78: Damn Yankees | J78: 0 | L78: Highlanders | N78: 0

Sheet Grumpy Old Men
A1: Team: Grumpy Old Men | D1: General Manager: Tom Romano
D3: Scoring This Week | N3: Players Overall Scoring
A4: Forwards | B4: Gls | C4: Ast | D4: PP | E4: SH | F4: GW | G4: OT | H4: PSG | I4: PTS | K4: Gls | L4: Ast | M4: PP | N4: SH | O4: GW | P4: OT | Q4: PSG | R4: PTS
A5: Mark Stone | B5: 2 | C5: 6 | D5: 1 | E5: 0 | F5: 0 | G5: 0 | H5: 0 | I5: =(B5+C5+D5+(2*E5)+(2*F5)+G5+(4*H5)) -> 9 | K5: 2 | L5: 11 | M5: 1 | N5: 0 | O5: 0 | P5: 0 | Q5: 0 | R5: =(K5+L5+M5+(2*N5)+(2*O5)+P5+(4*Q5)) -> 14
A6: Chris Kreider | B6: 2 | C6: 1 | D6: 2 | E6: 0 | F6: 1 | G6: 0 | H6: 0 | I6: 7 | K6: 4 | L6: 1 | M6: 3 | N6: 0 | O6: 1 | P6: 0 | Q6: 0 | R6: 10
A7: Nathan MacKinnon | B7: 4 | C7: 0 | D7: 0 | E7: 0 | F7: 0 | G7: 0 | H7: 0 | I7: 4 | K7: 6 | L7: 4 | M7: 2 | N7: 0 | O7: 1 | P7: 0 | Q7: 0 | R7: 14
A8: Clayton Keller | B8: 1 | C8: 3 | D8: 0 | E8: 0 | F8: 0 | G8: 0 | H8: 0 | I8: 4 | K8: 1 | L8: 4 | M8: 0 | N8: 0 | O8: 0 | P8: 0 | Q8: 0 | R8: 5
A9: Jake Neighbours | B9: 2 | C9: 1 | D9: 0 | E9: 0 | F9: 0 | G9: 0 | H9: 0 | I9: 3 | K9: 4 | L9: 1 | M9: 0 | N9: 0 | O9: 1 | P9: 0 | Q9: 0 | R9: 7
A10: Mika Zibanejad | B10: 1 | C10: 1 | D10: 1 | E10: 0 | F10: 0 | G10: 0 | H10: 0 | I10: 3 | K10: 2 | L10: 1 | M10: 1 | N10: 1 | O10: 0 | P10: 0 | Q10: 0 | R10: 6
A11: Jason Robertson | B11: 0 | C11: 3 | D11: 0 | E11: 0 | F11: 0 | G11: 0 | H11: 0 | I11: 3 | K11: 2 | L11: 4 | M11: 1 | N11: 0 | O11: 0 | P11: 0 | Q11: 0 | R11: 7
A12: Sam Bennett | B12: 1 | C12: 0 | D12: 1 | E12: 0 | F12: 0 | G12: 0 | H12: 0 | I12: 2 | K12: 1 | L12: 0 | M12: 1 | N12: 0 | O12: 0 | P12: 0 | Q12: 0 | R12: 2
A13: Joel Eriksson Ek | B13: 0 | C13: 1 | D13: 0 | E13: 0 | F13: 0 | G13: 0 | H13: 0 | I13: 1 | K13: 1 | L13: 3 | M13: 1 | N13: 0 | O13: 0 | P13: 0 | Q13: 0 | R13: 5
A14: Matt Coronato | B14: 0 | C14: 0 | D14: 0 | E14: 0 | F14: 0 | G14: 0 | H14: 0 | I14: 0 | K14: 2 | L14: 1 | M14: 1 | N14: 0 | O14: 0 | P14: 0 | Q14: 0 | R14: 4
A15: Nikolaj Ehlers | B15: 0 | C15: 0 | D15: 0 | E15: 0 | F15: 0 | G15: 0 | H15: 0 | I15: 0 | K15: 0 | L15: 0 | M15: 0 | N15: 0 | O15: 0 | P15: 0 | Q15: 0 | R15: 0
A18: Defense | B18: Gls | C18: Ast | D18: PP | E18: SH | F18: GW | G18: OT | H18: PSG | I18: PTS | K18: Gls | L18: Ast | M18: PP | N18: SH | O18: GW | P18: OT | Q18: PSG | R18: PTS
A19: Matthew Schaefer | B19: 0 | C19: 3 | D19: 0 | E19: 0 | F19: 0 | G19: 0 | H19: 0 | I19: =(B19+C19+D19+(2*E19)+(2*F19)+G19+(4*H19)) -> 3 | K19: 1 | L19: 4 | M19: 1 | N19: 0 | O19: 0 | P19: 0 | Q19: 0 | R19: =(K19+L19+M19+(2*N19)+(2*O19)+P19+(4*Q19)) -> 6
A20: Thomas Chabot | B20: 0 | C20: 3 | D20: 0 | E20: 0 | F20: 0 | G20: 0 | H20: 0 | I20: 3 | K20: 0 | L20: 3 | M20: 0 | N20: 0 | O20: 0 | P20: 0 | Q20: 0 | R20: 3
A21: MacKenzie Weegar | B21: 0 | C21: 2 | D21: 0 | E21: 0 | F21: 0 | G21: 0 | H21: 0 | I21: 2 | K21: 0 | L21: 2 | M21: 0 | N21: 0 | O21: 0 | P21: 0 | Q21: 0 | R21: 2
A22: Miro Heiskanen | B22: 0 | C22: 1 | D22: 0 | E22: 0 | F22: 0 | G22: 0 | H22: 0 | I22: 1 | K22: 0 | L22: 2 | M22: 0 | N22: 0 | O22: 0 | P22: 0 | Q22: 0 | R22: 2
A23: Darnell Nurse | B23: 0 | C23: 1 | D23: 0 | E23: 0 | F23: 0 | G23: 0 | H23: 0 | I23: 1 | K23: 0 | L23: 2 | M23: 0 | N23: 0 | O23: 0 | P23: 0 | Q23: 0 | R23: 2
A24: Josh Morrissey | B24: 0 | C24: 0 | D24: 0 | E24: 0 | F24: 0 | G24: 0 | H24: 0 | I24: 0 | K24: 0 | L24: 1 | M24: 0 | N24: 0 | O24: 0 | P24: 0 | Q24: 0 | R24: 1
A25: Artem Zub | B25: 0 | C25: 0 | D25: 0 | E25: 0 | F25: 0 | G25: 0 | H25: 0 | I25: 0 | K25: 1 | L25: 2 | M25: 0 | N25: 0 | O25: 0 | P25: 0 | Q25: 0 | R25: 3
A27: Goalie | B27: W | C27: OT | D27: SO | E27: Gls | F27: Ast | G27: GAA | H27: SP | I27: PTS | K27: W | L27: OT | M27: SO | N27: Gls | O27: Ast | P27: GAA | Q27: SP | R27: PTS
A28: Igor Shesterkin | B28: 0 | C28: 1 | D28: 0 | E28: 0 | F28: 0 | G28: 1.5 | H28: 0.933 | I28: =((3*B28)+C28+(3*D28)+(10*E28)+(3*F28)+G29+H29) -> 8 | K28: 2 | L28: 1 | M28: 1 | N28: 0 | O28: 0 | P28: 1 | Q28: 0.962 | R28: =((3*K28)+L28+(3*M28)+(10*N28)+(3*O28)+P29+Q29) -> 27
B29: 3 | C29: 119.97 | D29: 42 | E29: 45 | G29: 3 | H29: 4 | I29: =((3*B28)+C28+(3*D28)+(10*E28)+(3*F28)+G29+H29) -> 8 | P29: 8 | Q29: 9 | R29: =((2*K28)+L28+(3*M28)+(10*N28)+(3*O28)+P29+Q29) -> 25
A30: Anthony Stolarz | B30: 1 | C30: 1 | D30: 0 | E30: 0 | F30: 0 | G30: 2.62 | H30: 0.889 | I30: =((3*B30)+C30+(3*D30)+(10*E30)+(3*F30)+G31+H31) -> 5 | K30: 2 | L30: 1 | M30: 0 | N30: 0 | O30: 0 | P30: 2.79 | Q30: 0.897 | R30: =((3*K30)+L30+(3*M30)+(10*N30)+(3*O30)+P31+Q31) -> 9
B31: 8 | C31: 182.97 | D31: 64 | E31: 72 | G31: 1 | H31: 0 | I31: =((3*B30)+C30+(3*D30)+(10*E30)+(3*F30)+G31+H31) -> 5 | P31: 1 | Q31: 1 | R31: =((2*K30)+L30+(3*M30)+(10*N30)+(3*O30)+P31+Q31) -> 7
D32: All Playes Scoring This Week | N32: Cumulative Points
B33: Gls | C33: Ast | D33: PP | E33: SH | F33: GW | G33: OT | H33: PSG | K33: Gls | L33: Ast | M33: PP | N33: SH | O33: GW | P33: OT | Q33: PSG | R33: PTS
A34: Forwards | B34: =SUM(B5:B15) -> 13 | C34: =SUM(C5:C15) -> 16 | D34: 5 | E34: 0 | F34: 1 | G34: 0 | H34: 0 | K34: 23 | L34: 30 | M34: 11 | N34: 1 | O34: 2 | P34: 0 | Q34: 0 | R34: =(K34+L34+M34+(2*N34)+(2*O34)+P34+(4*Q34)) -> 70
A35: Defense | B35: =SUM(B19:B25) -> 0 | C35: =SUM(C19:C25) -> 10 | D35: 0 | E35: 0 | F35: 0 | G35: 0 | H35: 0 | K35: 1 | L35: 14 | M35: 1 | N35: 0 | O35: 0 | P35: 0 | Q35: 0 | R35: =(K35+L35+M35+(2*N35)+(2*O35)+P35+(4*Q35)) -> 16
A36: Total Scorers | B36: =SUM(B34:B35) -> 13 | C36: =SUM(C34:C35) -> 26 | D36: 5 | E36: 0 | F36: 1 | G36: 0 | H36: 0 | K36: =SUM(K34:K35) -> 24 | L36: 44 | M36: 12 | N36: 1 | O36: 2 | P36: 0 | Q36: 0 | R36: =(K36+L36+M36+(2*N36)+(2*O36)+P36+(4*Q36)) -> 86
B37: W | C37: OT | D37: SO | E37: Gls | F37: Ast | G37: GAA | H37: SP | K37: W | L37: OT | M37: SO | N37: Gls | O37: Ast | P37: GAA | Q37: SP | R37: PTS
A38: Goalie Totals | B38: =SUM(B28,B30) -> 1 | C38: =SUM(C28,C30) -> 2 | D38: =SUM(D28,D30) -> 0 | E38: =SUM(E28,E30) -> 0 | F38: =SUM(F28,F30) -> 0 | G38: =IF(C39=0,0,B39/(C39/60)) -> 2.178649237 | H38: =IF(E39=0,0,D39/E39) -> 0.905982906 | K38: 4 | L38: 2 | M38: 1 | N38: 0 | O38: 0 | P38: =IF(L39=0,0,K39/(L39/60)) -> 1.898987207 | Q38: =IF(N39=0,0,M39/N39) -> 0.9285714286 | R38: =((3*K38)+L38+(3*M38)+(10*N38)+(3*O38)+P39+Q39) -> 36
B39: =SUM(B29,B31) -> 11 | C39: =SUM(C29,C31) -> 302.94 | D39: =SUM(D29,D31) -> 106 | E39: =SUM(E29,E31) -> 117 | K39: 19 | L39: 600.32 | M39: 247 | N39: 266 | P39: 9 | Q39: 10
K40: GA | L40: Time | M40: Saves | N40: Shots
B42: Injured Reserve | M42: This Weeks Totals
A43: Player | B43: P | C43: GP | D43: IR Weeks | E43: Pts | L43: Forwards | N43: =SUM(I5:I12) -> 35
A44: Aleksander Barkov | B44: F | C44: 0 | D44: 1 | E44: 0 | L44: Defense | N44: =SUM(I19:I23) -> 10
B45: D | L45: Goalie | N45: =I28 -> 8
B46: G
B47: Flex | L47: Total Points | N47: =SUM(N43:N45) -> 53
A56: Team Record | B56: W | C56: L | D56: T | E56: Pts | F56: CP | G56: BPF | H56: BFA | I56: Streak
A57: Grumpy Old Men | B57: 2 | C57: 0 | D57: 0 | E57: =2*B57+D57 -> 4 | F57: =R36+R38 -> 122 | G57: =SUM(B61,B65,B69,B73,B77,F61,F65,F69,F73,F77,J61,J65,J69,J73,J77,N61,N65,N69,N73,N77,R61,R65) -> 112 | H57: =SUM(B62,B66,B70,B74,B78,F62,F66,F70,F74,F78,J62,J66,J70,J74,J78,N62,N66,N70,N74,N78,R62,R66) -> 96 | I57: Won 2
A60: Game 1 | B60: Score | D60: Game 6 | F60: Score | H60: Game 11 | J60: Score | L60: Game 16 | N60: Score | P60: Game 21 | R60: Score
A61: Grumpy Old Men | B61: 59 | D61: Grumpy Old Men | F61: 0 | H61: Grumpy Old Men | J61: 0 | L61: Grumpy Old Men | N61: 0 | P61: Grumpy Old Men | R61: 0
A62: Fantasy Hockey Club | B62: 52 | D62: Highlanders | F62: 0 | H62: Just Chillin | J62: 0 | L62: Slappers | N62: 0 | P62: Riketorians | R62: 0
A64: Game 2 | B64: Score | D64: Game 7 | F64: Score | H64: Game 12 | J64: Score | L64: Game 17 | N64: Score | P64: Game 22 | R64: Score
A65: Grumpy Old Men | B65: 53 | D65: Grumpy Old Men | F65: 0 | H65: Grumpy Old Men | J65: 0 | L65: Grumpy Old Men | N65: 0 | P65: Grumpy Old Men | R65: 0
A66: Team LIRHL | B66: 44 | D66: Just Chillin | F66: 0 | H66: District 5 | J66: 0 | L66: Team LIRHL | N66: 0 | P66: Fantasy Hockey Club | R66: 0
A68: Game 3 | B68: Score | D68: Game 8 | F68: Score | H68: Game 13 | J68: Score | L68: Game 18 | N68: Score
A69: Grumpy Old Men | B69: 0 | D69: Grumpy Old Men | F69: 0 | H69: Grumpy Old Men | J69: 0 | L69: Grumpy Old Men | N69: 0
A70: Riketorians | B70: 0 | D70: Damn Yankees | F70: 0 | H70: Riketorians | J70: 0 | L70: Damn Yankees | N70: 0
A72: Game 4 | B72: Score | D72: Game 9 | F72: Score | H72: Game 14 | J72: Score | L72: Game 19 | N72: Score
A73: Grumpy Old Men | B73: 0 | D73: Grumpy Old Men | F73: 0 | H73: Grumpy Old Men | J73: 0 | L73: Grumpy Old Men | N73: 0
A74: Damn Yankees | B74: 0 | D74: Team LIRHL | F74: 0 | H74: Fantasy Hockey Club | J74: 0 | L74: Highlanders | N74: 0
A76: Game 5 | B76: Score | D76: Game 10 | F76: Score | H76: Game 15 | J76: Score | L76: Game 20 | N76: Score
A77: Grumpy Old Men | B77: 0 | D77: Grumpy Old Men | F77: 0 | H77: Grumpy Old Men | J77: 0 | L77: Grumpy Old Men | N77: 0
A78: Shawnee Tribe | B78: 0 | D78: Slappers | F78: 0 | H78: Shawnee Tribe | J78: 0 | L78: District 5 | N78: 0

Sheet Highlanders
A1: Team: Highlanders | C1: General Manager: Anthony J. Porfido
D3: Scoring This Week | N3: Players Overall Scoring
A4: Forwards | B4: Gls | C4: Ast | D4: PP | E4: SH | F4: GW | G4: OT | H4: PSG | I4: PTS | K4: Gls | L4: Ast | M4: PP | N4: SH | O4: GW | P4: OT | Q4: PSG | R4: PTS
A5: Seth Jarvis | B5: 3 | C5: 2 | D5: 1 | E5: 0 | F5: 2 | G5: 1 | H5: 0 | I5: =(B5+C5+D5+(2*E5)+(2*F5)+G5+(4*H5)) -> 11 | K5: 6 | L5: 2 | M5: 1 | N5: 0 | O5: 4 | P5: 2 | Q5: 0 | R5: =(K5+L5+M5+(2*N5)+(2*O5)+P5+(4*Q5)) -> 19
A6: Mitchell Marner | B6: 2 | C6: 4 | D6: 1 | E6: 0 | F6: 0 | G6: 0 | H6: 0 | I6: 7 | K6: 2 | L6: 6 | M6: 1 | N6: 0 | O6: 0 | P6: 0 | Q6: 0 | R6: 9
A7: Kirill Kaprizov | B7: 2 | C7: 1 | D7: 2 | E7: 0 | F7: 0 | G7: 0 | H7: 0 | I7: 5 | K7: 4 | L7: 5 | M7: 4 | N7: 0 | O7: 0 | P7: 0 | Q7: 0 | R7: 13
A8: Kirill Marchenko | B8: 2 | C8: 1 | D8: 0 | E8: 0 | F8: 1 | G8: 0 | H8: 0 | I8: 5 | K8: 5 | L8: 1 | M8: 1 | N8: 0 | O8: 2 | P8: 0 | Q8: 0 | R8: 11
A9: JJ Peterka | B9: 2 | C9: 0 | D9: 0 | E9: 0 | F9: 1 | G9: 0 | H9: 0 | I9: 4 | K9: 2 | L9: 1 | M9: 0 | N9: 0 | O9: 1 | P9: 0 | Q9: 0 | R9: 5
A10: Nick Suzuki | B10: 1 | C10: 2 | D10: 1 | E10: 0 | F10: 0 | G10: 0 | H10: 0 | I10: 4 | K10: 1 | L10: 7 | M10: 1 | N10: 0 | O10: 0 | P10: 0 | Q10: 0 | R10: 9
A11: Frank Nazar | B11: 1 | C11: 0 | D11: 0 | E11: 0 | F11: 1 | G11: 0 | H11: 0 | I11: 3 | K11: 2 | L11: 4 | M11: 0 | N11: 0 | O11: 1 | P11: 0 | Q11: 0 | R11: 8
A12: Brock Boeser | B12: 1 | C12: 0 | D12: 1 | E12: 0 | F12: 0 | G12: 0 | H12: 0 | I12: 2 | K12: 3 | L12: 0 | M12: 1 | N12: 0 | O12: 0 | P12: 0 | Q12: 0 | R12: 4
A13: Marco Rossi | B13: 0 | C13: 2 | D13: 0 | E13: 0 | F13: 0 | G13: 0 | H13: 0 | I13: 2 | K13: 1 | L13: 4 | M13: 0 | N13: 0 | O13: 0 | P13: 0 | Q13: 0 | R13: 5
A14: William Eklund | B14: 1 | C14: 0 | D14: 0 | E14: 0 | F14: 0 | G14: 0 | H14: 0 | I14: 1 | K14: 1 | L14: 1 | M14: 0 | N14: 0 | O14: 0 | P14: 0 | Q14: 0 | R14: 2
A15: Dylan Holloway | B15: 1 | C15: 0 | D15: 0 | E15: 0 | F15: 0 | G15: 0 | H15: 0 | I15: 1 | K15: 1 | L15: 0 | M15: 0 | N15: 0 | O15: 0 | P15: 0 | Q15: 0 | R15: 1
A18: Defense | B18: Gls | C18: Ast | D18: PP | E18: SH | F18: GW | G18: OT | H18: PSG | I18: PTS | K18: Gls | L18: Ast | M18: PP | N18: SH | O18: GW | P18: OT | Q18: PSG | R18: PTS
A19: Adam Fox | B19: 0 | C19: 2 | D19: 0 | E19: 0 | F19: 0 | G19: 0 | H19: 0 | I19: =(B19+C19+D19+(2*E19)+(2*F19)+G19+(4*H19)) -> 2 | K19: 3 | L19: 3 | M19: 1 | N19: 0 | O19: 1 | P19: 0 | Q19: 0 | R19: =(K19+L19+M19+(2*N19)+(2*O19)+P19+(4*Q19)) -> 9
A20: Thomas Harley | B20: 0 | C20: 2 | D20: 0 | E20: 0 | F20: 0 | G20: 0 | H20: 0 | I20: 2 | K20: 1 | L20: 5 | M20: 0 | N20: 0 | O20: 0 | P20: 0 | Q20: 0 | R20: 6
A21: Aaron Ekblad | B21: 0 | C21: 0 | D21: 0 | E21: 0 | F21: 0 | G21: 0 | H21: 0 | I21: 0 | K21: 1 | L21: 1 | M21: 1 | N21: 0 | O21: 1 | P21: 0 | Q21: 0 | R21: 5
A22: Luke Hughes | B22: 0 | C22: 0 | D22: 0 | E22: 0 | F22: 0 | G22: 0 | H22: 0 | I22: 0 | K22: 0 | L22: 4 | M22: 0 | N22: 0 | O22: 0 | P22: 0 | Q22: 0 | R22: 4
A23: Darren Raddysh | B23: 0 | C23: 0 | D23: 0 | E23: 0 | F23: 0 | G23: 0 | H23: 0 | I23: 0 | K23: 1 | L23: 2 | M23: 0 | N23: 0 | O23: 0 | P23: 0 | Q23: 0 | R23: 3
A24: Simon Edvinsson | B24: 0 | C24: 0 | D24: 0 | E24: 0 | F24: 0 | G24: 0 | H24: 0 | I24: 0 | K24: 1 | L24: 0 | M24: 0 | N24: 0 | O24: 0 | P24: 0 | Q24: 0 | R24: 1
A25: Jackson LaCombe | B25: 0 | C25: 0 | D25: 0 | E25: 0 | F25: 0 | G25: 0 | H25: 0 | I25: 0 | K25: 0 | L25: 0 | M25: 0 | N25: 0 | O25: 0 | P25: 0 | Q25: 0 | R25: 0
A27: Goalie | B27: W | C27: OT | D27: SO | E27: Gls | F27: Ast | G27: GAA | H27: SP | I27: PTS | K27: W | L27: OT | M27: SO | N27: Gls | O27: Ast | P27: GAA | Q27: SP | R27: PTS
A28: Thatcher Demko | B28: 1 | C28: 0 | D28: 0 | E28: 0 | F28: 0 | G28: 3 | H28: 0.903 | I28: =((3*B28)+C28+(3*D28)+(10*E28)+(3*F28)+G29+H29) -> 4 | K28: 2 | L28: 0 | M28: 0 | N28: 0 | O28: 0 | P28: 2.03 | Q28: 0.929 | R28: =((3*K28)+L28+(3*M28)+(10*N28)+(3*O28)+P29+Q29) -> 15
B29: 3 | C29: 60 | D29: 28 | E29: 31 | G29: 0 | H29: 1 | I29: =((3*B28)+C28+(3*D28)+(10*E28)+(3*F28)+G29+H29) -> 4 | P29: 3 | Q29: 6 | R29: =((2*K28)+L28+(3*M28)+(10*N28)+(3*O28)+P29+Q29) -> 13
A30: Ilya Sorokin | B30: 1 | C30: 0 | D30: 0 | E30: 0 | F30: 0 | G30: 4.06 | H30: 0.862 | I30: =((3*B30)+C30+(3*D30)+(10*E30)+(3*F30)+G31+H31) -> 3 | K30: 1 | L30: 0 | M30: 0 | N30: 0 | O30: 0 | P30: 4.13 | Q30: 0.861 | R30: =((3*K30)+L30+(3*M30)+(10*N30)+(3*O30)+P31+Q31) -> 3
B31: 8 | C31: 118.3 | D31: 50 | E31: 58 | G31: 0 | H31: 0 | I31: =((3*B30)+C30+(3*D30)+(10*E30)+(3*F30)+G31+H31) -> 3 | P31: 0 | Q31: 0 | R31: =((2*K30)+L30+(3*M30)+(10*N30)+(3*O30)+P31+Q31) -> 2
D32: All Playes Scoring This Week | N32: Cumulative Points
B33: Gls | C33: Ast | D33: PP | E33: SH | F33: GW | G33: OT | H33: PSG | K33: Gls | L33: Ast | M33: PP | N33: SH | O33: GW | P33: OT | Q33: PSG | R33: PTS
A34: Forwards | B34: =SUM(B5:B15) -> 16 | C34: =SUM(C5:C15) -> 12 | D34: 6 | E34: 0 | F34: 5 | G34: 1 | H34: 0 | K34: 27 | L34: 27 | M34: 9 | N34: 0 | O34: 8 | P34: 2 | Q34: 0 | R34: =(K34+L34+M34+(2*N34)+(2*O34)+P34+(4*Q34)) -> 81
A35: Defense | B35: =SUM(B19:B25) -> 0 | C35: =SUM(C19:C25) -> 4 | D35: 0 | E35: 0 | F35: 0 | G35: 0 | H35: 0 | K35: 7 | L35: 15 | M35: 2 | N35: 0 | O35: 2 | P35: 0 | Q35: 0 | R35: =(K35+L35+M35+(2*N35)+(2*O35)+P35+(4*Q35)) -> 28
A36: Total Scorers | B36: =SUM(B34:B35) -> 16 | C36: =SUM(C34:C35) -> 16 | D36: 6 | E36: 0 | F36: 5 | G36: 1 | H36: 0 | K36: =SUM(K34:K35) -> 34 | L36: 42 | M36: 11 | N36: 0 | O36: 10 | P36: 2 | Q36: 0 | R36: =(K36+L36+M36+(2*N36)+(2*O36)+P36+(4*Q36)) -> 109
B37: W | C37: OT | D37: SO | E37: Gls | F37: Ast | G37: GAA | H37: SP | K37: W | L37: OT | M37: SO | N37: Gls | O37: Ast | P37: GAA | Q37: SP | R37: PTS
A38: Goalie Totals | B38: =SUM(B28,B30) -> 2 | C38: =SUM(C28,C30) -> 0 | D38: =SUM(D28,D30) -> 0 | E38: =SUM(E28,E30) -> 0 | F38: =SUM(F28,F30) -> 0 | G38: =IF(C39=0,0,B39/(C39/60)) -> 3.701626472 | H38: =IF(E39=0,0,D39/E39) -> 0.8764044944 | K38: 3 | L38: 0 | M38: 0 | N38: 0 | O38: 0 | P38: =IF(L39=0,0,K39/(L39/60)) -> 3.226042965 | Q38: =IF(N39=0,0,M39/N39) -> 0.89 | R38: =((3*K38)+L38+(3*M38)+(10*N38)+(3*O38)+P39+Q39) -> 18
B39: =SUM(B29,B31) -> 11 | C39: =SUM(C29,C31) -> 178.3 | D39: =SUM(D29,D31) -> 78 | E39: =SUM(E29,E31) -> 89 | K39: 22 | L39: 409.17 | M39: 178 | N39: 200 | P39: 3 | Q39: 6
K40: GA | L40: Time | M40: Saves | N40: Shots
B42: Injured Reserve | M42: This Weeks Totals
A43: Player | B43: P | C43: GP | D43: IR Weeks | E43: Pts | L43: Forwards | N43: =SUM(I5:I12) -> 41
A44: Matthew Tkachuk | B44: F | C44: 0 | D44: 2 | E44: 0 | L44: Defense | N44: =SUM(I19:I23) -> 4
B45: D | L45: Goalie | N45: =I28 -> 4
B46: G
A47: Michael Misa | B47: F | C47: 2 | D47: 1 | E47: 0 | L47: Total Points | N47: =SUM(N43:N45) -> 49
A51: Warning, Michael Misa must be returned to lineup by start of Week 4
A56: Team Record | B56: W | C56: L | D56: T | E56: Pts | F56: CP | G56: BPF | H56: BFA | I56: Streak
A57: Highlanders | B57: 1 | C57: 1 | D57: 0 | E57: =2*B57+D57 -> 2 | F57: =R36+R38 -> 127 | G57: =SUM(B61,B65,B69,B73,B77,F61,F65,F69,F73,F77,J61,J65,J69,J73,J77,N61,N65,N69,N73,N77,R61,R65) -> 118 | H57: =SUM(B62,B66,B70,B74,B78,F62,F66,F70,F74,F78,J62,J66,J70,J74,J78,N62,N66,N70,N74,N78,R62,R66) -> 100 | I57: Lost 1
A60: Game 1 | B60: Score | D60: Game 6 | F60: Score | H60: Game 11 | J60: Score | L60: Game 16 | N60: Score | P60: Game 21 | R60: Score
A61: Highlanders | B61: 69 | D61: Highlanders | F61: 0 | H61: Highlanders | J61: 0 | L61: Highlanders | N61: 0 | P61: Highlanders | R61: 0
A62: Shawnee Tribe | B62: 33 | D62: Grumpy Old Men | F62: 0 | H62: Team LIRHL | J62: 0 | L62: Damn Yankees | N62: 0 | P62: Just Chillin | R62: 0
A64: Game 2 | B64: Score | D64: Game 7 | F64: Score | H64: Game 12 | J64: Score | L64: Game 17 | N64: Score | P64: Game 22 | R64: Score
A65: Highlanders | B65: 49 | D65: Highlanders | F65: 0 | H65: Highlanders | J65: 0 | L65: Highlanders | N65: 0 | P65: Highlanders | R65: 0
A66: Just Chillin | B66: 67 | D66: Damn Yankees | F66: 0 | H66: Shawnee Tribe | J66: 0 | L66: District 5 | N66: 0 | P66: Shawnee Tribe | R66: 0
A68: Game 3 | B68: Score | D68: Game 8 | F68: Score | H68: Game 13 | J68: Score | L68: Game 18 | N68: Score
A69: Highlanders | B69: 0 | D69: Highlanders | F69: 0 | H69: Highlanders | J69: 0 | L69: Highlanders | N69: 0
A70: District 5 | B70: 0 | D70: District 5 | F70: 0 | H70: Just Chillin | J70: 0 | L70: Riketorians | N70: 0
A72: Game 4 | B72: Score | D72: Game 9 | F72: Score | H72: Game 14 | J72: Score | L72: Game 19 | N72: Score
A73: Highlanders | B73: 0 | D73: Highlanders | F73: 0 | H73: Highlanders | J73: 0 | L73: Highlanders | N73: 0
A74: Fantasy Hockey Club | B74: 0 | D74: Slappers | F74: 0 | H74: Team LIRHL | J74: 0 | L74: Grumpy Old Men | N74: 0
A76: Game 5 | B76: Score | D76: Game 10 | F76: Score | H76: Game 15 | J76: Score | L76: Game 20 | N76: Score
A77: Highlanders | B77: 0 | D77: Highlanders | F77: 0 | H77: Highlanders | J77: 0 | L77: Highlanders | N77: 0
A78: Slappers | B78: 0 | D78: Riketorians | F78: 0 | H78: Slappers | J78: 0 | L78: Fantasy Hockey Club | N78: 0

Sheet Team LIRHL
A1: Team: Team LIRHL | D1: General Manager: Vacant
D3: Scoring This Week | N3: Players Overall Scoring
A4: Forwards | B4: Gls | C4: Ast | D4: PP | E4: SH | F4: GW | G4: OT | H4: PSG | I4: PTS | K4: Gls | L4: Ast | M4: PP | N4: SH | O4: GW | P4: OT | Q4: PSG | R4: PTS
A5: Dylan Larkin | B5: 2 | C5: 3 | D5: 1 | E5: 0 | F5: 1 | G5: 1 | H5: 0 | I5: =(B5+C5+D5+(2*E5)+(2*F5)+G5+(4*H5)) -> 9 | K5: 3 | L5: 4 | M5: 2 | N5: 0 | O5: 1 | P5: 1 | Q5: 0 | R5: =(K5+L5+M5+(2*N5)+(2*O5)+P5+(4*Q5)) -> 12
A6: Mikko Rantanen | B6: 2 | C6: 1 | D6: 1 | E6: 0 | F6: 0 | G6: 0 | H6: 0 | I6: 4 | K6: 3 | L6: 4 | M6: 1 | N6: 0 | O6: 0 | P6: 0 | Q6: 0 | R6: 8
A7: Adrian Kempe | B7: 1 | C7: 3 | D7: 0 | E7: 0 | F7: 0 | G7: 0 | H7: 0 | I7: 4 | K7: 2 | L7: 5 | M7: 0 | N7: 0 | O7: 0 | P7: 0 | Q7: 0 | R7: 7
A8: Nico Hischier | B8: 1 | C8: 3 | D8: 0 | E8: 0 | F8: 0 | G8: 0 | H8: 0 | I8: 4 | K8: 2 | L8: 4 | M8: 0 | N8: 0 | O8: 0 | P8: 0 | Q8: 0 | R8: 6
A9: Roope Hintz | B9: 1 | C9: 3 | D9: 0 | E9: 0 | F9: 0 | G9: 0 | H9: 0 | I9: 4 | K9: 1 | L9: 5 | M9: 0 | N9: 0 | O9: 0 | P9: 0 | Q9: 0 | R9: 6
A10: Kevin Fiala | B10: 3 | C10: 0 | D10: 0 | E10: 0 | F10: 0 | G10: 0 | H10: 0 | I10: 3 | K10: 4 | L10: 1 | M10: 1 | N10: 0 | O10: 0 | P10: 0 | Q10: 0 | R10: 6
A11: Tim Stützle | B11: 2 | C11: 1 | D11: 0 | E11: 0 | F11: 0 | G11: 0 | H11: 0 | I11: 3 | K11: 2 | L11: 2 | M11: 0 | N11: 0 | O11: 0 | P11: 0 | Q11: 0 | R11: 4
A12: Nazem Kadri | B12: 0 | C12: 2 | D12: 0 | E12: 0 | F12: 0 | G12: 0 | H12: 0 | I12: 2 | K12: 0 | L12: 4 | M12: 0 | N12: 0 | O12: 0 | P12: 0 | Q12: 0 | R12: 4
A13: Nikita Kucherov | B13: 0 | C13: 1 | D13: 0 | E13: 0 | F13: 0 | G13: 0 | H13: 0 | I13: 1 | K13: 2 | L13: 1 | M13: 1 | N13: 0 | O13: 0 | P13: 0 | Q13: 0 | R13: 4
A14: Filip Forsberg | B14: 0 | C14: 1 | D14: 0 | E14: 0 | F14: 0 | G14: 0 | H14: 0 | I14: 1 | K14: 1 | L14: 2 | M14: 0 | N14: 0 | O14: 0 | P14: 0 | Q14: 0 | R14: 3
A15: Brady Tkachuk | B15: 0 | C15: 0 | D15: 0 | E15: 0 | F15: 0 | G15: 0 | H15: 0 | I15: 0 | K15: 0 | L15: 3 | M15: 0 | N15: 0 | O15: 0 | P15: 0 | Q15: 0 | R15: 3
A18: Defense | B18: Gls | C18: Ast | D18: PP | E18: SH | F18: GW | G18: OT | H18: PSG | I18: PTS | K18: Gls | L18: Ast | M18: PP | N18: SH | O18: GW | P18: OT | Q18: PSG | R18: PTS
A19: Zeev Buium | B19: 0 | C19: 3 | D19: 0 | E19: 0 | F19: 0 | G19: 0 | H19: 0 | I19: =(B19+C19+D19+(2*E19)+(2*F19)+G19+(4*H19)) -> 3 | K19: 1 | L19: 4 | M19: 1 | N19: 0 | O19: 0 | P19: 0 | Q19: 0 | R19: =(K19+L19+M19+(2*N19)+(2*O19)+P19+(4*Q19)) -> 6
A20: Brent Burns | B20: 0 | C20: 3 | D20: 0 | E20: 0 | F20: 0 | G20: 0 | H20: 0 | I20: 3 | K20: 0 | L20: 4 | M20: 0 | N20: 0 | O20: 0 | P20: 0 | Q20: 0 | R20: 4
A21: Alexander Nikishin | B21: 1 | C21: 1 | D21: 0 | E21: 0 | F21: 0 | G21: 0 | H21: 0 | I21: 2 | K21: 1 | L21: 3 | M21: 0 | N21: 0 | O21: 0 | P21: 0 | Q21: 0 | R21: 4
A22: Gustav Forsling | B22: 0 | C22: 0 | D22: 0 | E22: 0 | F22: 0 | G22: 0 | H22: 0 | I22: 0 | K22: 0 | L22: 3 | M22: 0 | N22: 0 | O22: 0 | P22: 0 | Q22: 0 | R22: 3
A23: Elias Pettersson D | B23: 0 | C23: 0 | D23: 0 | E23: 0 | F23: 0 | G23: 0 | H23: 0 | I23: 0 | K23: 0 | L23: 0 | M23: 0 | N23: 0 | O23: 0 | P23: 0 | Q23: 0 | R23: 0
A24: Jake Walman | B24: 0 | C24: 0 | D24: 0 | E24: 0 | F24: 0 | G24: 0 | H24: 0 | I24: 0 | K24: 0 | L24: 0 | M24: 0 | N24: 0 | O24: 0 | P24: 0 | Q24: 0 | R24: 0
A25: Jacob Trouba | B25: 0 | C25: 0 | D25: 0 | E25: 0 | F25: 0 | G25: 0 | H25: 0 | I25: 0 | K25: 0 | L25: 0 | M25: 0 | N25: 0 | O25: 0 | P25: 0 | Q25: 0 | R25: 0
A27: Goalie | B27: W | C27: OT | D27: SO | E27: Gls | F27: Ast | G27: GAA | H27: SP | I27: PTS | K27: W | L27: OT | M27: SO | N27: Gls | O27: Ast | P27: GAA | Q27: SP | R27: PTS
A28: Linus Ullmark | B28: 1 | C28: 0 | D28: 0 | E28: 0 | F28: 0 | G28: 3.32 | H28: 0.875 | I28: =((3*B28)+C28+(3*D28)+(10*E28)+(3*F28)+G29+H29) -> 3 | K28: 2 | L28: 0 | M28: 0 | N28: 0 | O28: 0 | P28: 3.99 | Q28: 0.848 | R28: =((3*K28)+L28+(3*M28)+(10*N28)+(3*O28)+P29+Q29) -> 6
B29: 10 | C29: 180.68 | D29: 70 | E29: 80 | G29: 0 | H29: 0 | I29: =((3*B28)+C28+(3*D28)+(10*E28)+(3*F28)+G29+H29) -> 3 | P29: 0 | Q29: 0 | R29: =((2*K28)+L28+(3*M28)+(10*N28)+(3*O28)+P29+Q29) -> 4
A30: Jeremy Swayman | B30: 0 | C30: 0 | D30: 0 | E30: 0 | F30: 0 | G30: 4.55 | H30: 0.878 | I30: =((3*B30)+C30+(3*D30)+(10*E30)+(3*F30)+G31+H31) -> 0 | K30: 2 | L30: 0 | M30: 0 | N30: 0 | O30: 0 | P30: 2.76 | Q30: 0.917 | R30: =((3*K30)+L30+(3*M30)+(10*N30)+(3*O30)+P31+Q31) -> 15
B31: 9 | C31: 118.75 | D31: 65 | E31: 74 | G31: 0 | H31: 0 | I31: =((3*B30)+C30+(3*D30)+(10*E30)+(3*F30)+G31+H31) -> 0 | P31: 4 | Q31: 5 | R31: =((2*K30)+L30+(3*M30)+(10*N30)+(3*O30)+P31+Q31) -> 13
D32: All Playes Scoring This Week | N32: Cumulative Points
B33: Gls | C33: Ast | D33: PP | E33: SH | F33: GW | G33: OT | H33: PSG | K33: Gls | L33: Ast | M33: PP | N33: SH | O33: GW | P33: OT | Q33: PSG | R33: PTS
A34: Forwards | B34: =SUM(B5:B15) -> 12 | C34: =SUM(C5:C15) -> 18 | D34: 2 | E34: 0 | F34: 1 | G34: 1 | H34: 0 | K34: 20 | L34: 35 | M34: 5 | N34: 0 | O34: 1 | P34: 1 | Q34: 0 | R34: =(K34+L34+M34+(2*N34)+(2*O34)+P34+(4*Q34)) -> 63
A35: Defense | B35: =SUM(B19:B25) -> 1 | C35: =SUM(C19:C25) -> 7 | D35: 0 | E35: 0 | F35: 0 | G35: 0 | H35: 0 | K35: 2 | L35: 14 | M35: 1 | N35: 0 | O35: 0 | P35: 0 | Q35: 0 | R35: =(K35+L35+M35+(2*N35)+(2*O35)+P35+(4*Q35)) -> 17
A36: Total Scorers | B36: =SUM(B34:B35) -> 13 | C36: =SUM(C34:C35) -> 25 | D36: 2 | E36: 0 | F36: 1 | G36: 1 | H36: 0 | K36: =SUM(K34:K35) -> 22 | L36: 49 | M36: 6 | N36: 0 | O36: 1 | P36: 1 | Q36: 0 | R36: =(K36+L36+M36+(2*N36)+(2*O36)+P36+(4*Q36)) -> 80
B37: W | C37: OT | D37: SO | E37: Gls | F37: Ast | G37: GAA | H37: SP | K37: W | L37: OT | M37: SO | N37: Gls | O37: Ast | P37: GAA | Q37: SP | R37: PTS
A38: Goalie Totals | B38: =SUM(B28,B30) -> 1 | C38: =SUM(C28,C30) -> 0 | D38: =SUM(D28,D30) -> 0 | E38: =SUM(E28,E30) -> 0 | F38: =SUM(F28,F30) -> 0 | G38: =IF(C39=0,0,B39/(C39/60)) -> 3.807233744 | H38: =IF(E39=0,0,D39/E39) -> 0.8766233766 | K38: 4 | L38: 0 | M38: 0 | N38: 0 | O38: 0 | P38: =IF(L39=0,0,K39/(L39/60)) -> 3.448915261 | Q38: =IF(N39=0,0,M39/N39) -> 0.8825757576 | R38: =((3*K38)+L38+(3*M38)+(10*N38)+(3*O38)+P39+Q39) -> 21
B39: =SUM(B29,B31) -> 19 | C39: =SUM(C29,C31) -> 299.43 | D39: =SUM(D29,D31) -> 135 | E39: =SUM(E29,E31) -> 154 | K39: 31 | L39: 539.3 | M39: 233 | N39: 264 | P39: 4 | Q39: 5
K40: GA | L40: Time | M40: Saves | N40: Shots
B42: Injured Reserve | M42: This Weeks Totals
A43: Player | B43: P | C43: GP | D43: IR Weeks | E43: Pts | L43: Forwards | N43: =SUM(I5:I12) -> 33
B44: F | L44: Defense | N44: =SUM(I19:I23) -> 8
B45: D | L45: Goalie | N45: =I28 -> 3
B46: G
B47: Flex | L47: Total Points | N47: =SUM(N43:N45) -> 44
A56: Team Record | B56: W | C56: L | D56: T | E56: Pts | F56: CP | G56: BPF | H56: BFA | I56: Streak
A57: Team LIRHL | B57: 1 | C57: 1 | D57: 0 | E57: =2*B57+D57 -> 2 | F57: =R36+R38 -> 101 | G57: =SUM(B61,B65,B69,B73,B77,F61,F65,F69,F73,F77,J61,J65,J69,J73,J77,N61,N65,N69,N73,N77,R61,R65) -> 91 | H57: =SUM(B62,B66,B70,B74,B78,F62,F66,F70,F74,F78,J62,J66,J70,J74,J78,N62,N66,N70,N74,N78,R62,R66) -> 94 | I57: Lost 1
A60: Game 1 | B60: Score | D60: Game 6 | F60: Score | H60: Game 11 | J60: Score | L60: Game 16 | N60: Score | P60: Game 21 | R60: Score
A61: Team LIRHL | B61: 47 | D61: Team LIRHL | F61: 0 | H61: Team LIRHL | J61: 0 | L61: Team LIRHL | N61: 0 | P61: Team LIRHL | R61: 0
A62: Damn Yankees | B62: 41 | D62: Slappers | F62: 0 | H62: Highlanders | J62: 0 | L62: Just Chillin | N62: 0 | P62: Damn Yankees | R62: 0
A64: Game 2 | B64: Score | D64: Game 7 | F64: Score | H64: Game 12 | J64: Score | L64: Game 17 | N64: Score | P64: Game 22 | R64: Score
A65: Team LIRHL | B65: 44 | D65: Team LIRHL | F65: 0 | H65: Team LIRHL | J65: 0 | L65: Team LIRHL | N65: 0 | P65: Team LIRHL | R65: 0
A66: Grumpy Old Men | B66: 53 | D66: District 5 | F66: 0 | H66: Riketorians | J66: 0 | L66: Grumpy Old Men | N66: 0 | P66: District 5 | R66: 0
A68: Game 3 | B68: Score | D68: Game 8 | F68: Score | H68: Game 13 | J68: Score | L68: Game 18 | N68: Score
A69: Team LIRHL | B69: 0 | D69: Team LIRHL | F69: 0 | H69: Team LIRHL | J69: 0 | L69: Team LIRHL | N69: 0
A70: Just Chillin | B70: 0 | D70: Fantasy Hockey Club | F70: 0 | H70: Damn Yankees | J70: 0 | L70: Fantasy Hockey Club | N70: 0
A72: Game 4 | B72: Score | D72: Game 9 | F72: Score | H72: Game 14 | J72: Score | L72: Game 19 | N72: Score
A73: Team LIRHL | B73: 0 | D73: Team LIRHL | F73: 0 | H73: Team LIRHL | J73: 0 | L73: Team LIRHL | N73: 0
A74: Riketorians | B74: 0 | D74: Grumpy Old Men | F74: 0 | H74: Highlanders | J74: 0 | L74: Shawnee Tribe | N74: 0
A76: Game 5 | B76: Score | D76: Game 10 | F76: Score | H76: Game 15 | J76: Score | L76: Game 20 | N76: Score
A77: Team LIRHL | B77: 0 | D77: Team LIRHL | F77: 0 | H77: Team LIRHL | J77: 0 | L77: Team LIRHL | N77: 0
A78: Fantasy Hockey Club | B78: 0 | D78: Shawnee Tribe | F78: 0 | H78: Riketorians | J78: 0 | L78: Slappers | N78: 0

Sheet District 5
A1: Team: District 5 | D1: General Manager: Sean Wachter
D3: Scoring This Week | N3: Players Overall Scoring
A4: Forwards | B4: Gls | C4: Ast | D4: PP | E4: SH | F4: GW | G4: OT | H4: PSG | I4: PTS | K4: Gls | L4: Ast | M4: PP | N4: SH | O4: GW | P4: OT | Q4: PSG | R4: PTS
A5: Tomas Hertl | B5: 3 | C5: 2 | D5: 2 | E5: 0 | F5: 1 | G5: 0 | H5: 0 | I5: =(B5+C5+D5+(2*E5)+(2*F5)+G5+(4*H5)) -> 9 | K5: 3 | L5: 3 | M5: 2 | N5: 0 | O5: 1 | P5: 0 | Q5: 0 | R5: =(K5+L5+M5+(2*N5)+(2*O5)+P5+(4*Q5)) -> 10
A6: Matthew Knies | B6: 2 | C6: 5 | D6: 1 | E6: 0 | F6: 0 | G6: 0 | H6: 0 | I6: 8 | K6: 2 | L6: 6 | M6: 1 | N6: 0 | O6: 0 | P6: 0 | Q6: 0 | R6: 9
A7: William Nylander | B7: 1 | C7: 6 | D7: 0 | E7: 0 | F7: 0 | G7: 0 | H7: 0 | I7: 7 | K7: 2 | L7: 9 | M7: 0 | N7: 0 | O7: 0 | P7: 0 | Q7: 0 | R7: 11
A8: Matt Boldy | B8: 2 | C8: 1 | D8: 2 | E8: 0 | F8: 0 | G8: 0 | H8: 0 | I8: 5 | K8: 4 | L8: 5 | M8: 3 | N8: 0 | O8: 0 | P8: 0 | Q8: 0 | R8: 12
A9: Sam Reinhart | B9: 1 | C9: 1 | D9: 0 | E9: 1 | F9: 0 | G9: 0 | H9: 0 | I9: 4 | K9: 2 | L9: 1 | M9: 0 | N9: 1 | O9: 0 | P9: 0 | Q9: 0 | R9: 5
A10: Tage Thompson | B10: 1 | C10: 3 | D10: 0 | E10: 0 | F10: 0 | G10: 0 | H10: 0 | I10: 4 | K10: 1 | L10: 3 | M10: 0 | N10: 0 | O10: 0 | P10: 0 | Q10: 0 | R10: 4
A11: Brad Marchand | B11: 1 | C11: 2 | D11: 0 | E11: 0 | F11: 0 | G11: 0 | H11: 0 | I11: 3 | K11: 3 | L11: 3 | M11: 0 | N11: 0 | O11: 1 | P11: 0 | Q11: 0 | R11: 8
A12: Steven Stamkos | B12: 1 | C12: 1 | D12: 1 | E12: 0 | F12: 0 | G12: 0 | H12: 0 | I12: 3 | K12: 1 | L12: 1 | M12: 1 | N12: 0 | O12: 0 | P12: 0 | Q12: 0 | R12: 3
A13: Owen Tippett | B13: 2 | C13: 0 | D13: 0 | E13: 0 | F13: 0 | G13: 0 | H13: 0 | I13: 2 | K13: 3 | L13: 0 | M13: 1 | N13: 0 | O13: 0 | P13: 0 | Q13: 0 | R13: 4
A14: Patrik Laine | B14: 0 | C14: 1 | D14: 0 | E14: 0 | F14: 0 | G14: 0 | H14: 0 | I14: 1 | K14: 0 | L14: 1 | M14: 0 | N14: 0 | O14: 0 | P14: 0 | Q14: 0 | R14: 1
A15: Mason McTavish | B15: 0 | C15: 0 | D15: 0 | E15: 0 | F15: 0 | G15: 0 | H15: 0 | I15: 0 | K15: 0 | L15: 4 | M15: 0 | N15: 0 | O15: 0 | P15: 0 | Q15: 0 | R15: 4
A18: Defense | B18: Gls | C18: Ast | D18: PP | E18: SH | F18: GW | G18: OT | H18: PSG | I18: PTS | K18: Gls | L18: Ast | M18: PP | N18: SH | O18: GW | P18: OT | Q18: PSG | R18: PTS
A19: Cale Makar | B19: 2 | C19: 2 | D19: 0 | E19: 0 | F19: 1 | G19: 0 | H19: 0 | I19: =(B19+C19+D19+(2*E19)+(2*F19)+G19+(4*H19)) -> 6 | K19: 2 | L19: 5 | M19: 0 | N19: 0 | O19: 1 | P19: 0 | Q19: 0 | R19: =(K19+L19+M19+(2*N19)+(2*O19)+P19+(4*Q19)) -> 9
A20: Brandon Montour | B20: 0 | C20: 3 | D20: 0 | E20: 0 | F20: 0 | G20: 0 | H20: 0 | I20: 3 | K20: 0 | L20: 4 | M20: 0 | N20: 0 | O20: 0 | P20: 0 | Q20: 0 | R20: 4
A21: Rasmus Andersson | B21: 1 | C21: 0 | D21: 1 | E21: 0 | F21: 0 | G21: 0 | H21: 0 | I21: 2 | K21: 1 | L21: 0 | M21: 1 | N21: 0 | O21: 0 | P21: 0 | Q21: 0 | R21: 2
A22: Sam Rinzel | B22: 0 | C22: 1 | D22: 0 | E22: 0 | F22: 0 | G22: 0 | H22: 0 | I22: 1 | K22: 1 | L22: 1 | M22: 0 | N22: 0 | O22: 0 | P22: 0 | Q22: 0 | R22: 2
A23: Moritz Seider | B23: 0 | C23: 1 | D23: 0 | E23: 0 | F23: 0 | G23: 0 | H23: 0 | I23: 1 | K23: 0 | L23: 2 | M23: 0 | N23: 0 | O23: 0 | P23: 0 | Q23: 0 | R23: 2
A24: Anthony DeAngelo | B24: 0 | C24: 1 | D24: 0 | E24: 0 | F24: 0 | G24: 0 | H24: 0 | I24: 1 | K24: 0 | L24: 1 | M24: 0 | N24: 0 | O24: 0 | P24: 0 | Q24: 0 | R24: 1
A25: Mikhail Sergachev | B25: 0 | C25: 0 | D25: 0 | E25: 0 | F25: 0 | G25: 0 | H25: 0 | I25: 0 | K25: 0 | L25: 0 | M25: 0 | N25: 0 | O25: 0 | P25: 0 | Q25: 0 | R25: 0
A27: Goalie | B27: W | C27: OT | D27: SO | E27: Gls | F27: Ast | G27: GAA | H27: SP | I27: PTS | K27: W | L27: OT | M27: SO | N27: Gls | O27: Ast | P27: GAA | Q27: SP | R27: PTS
A28: Juuse Saros | B28: 1 | C28: 1 | D28: 0 | E28: 0 | F28: 0 | G28: 2.61 | H28: 0.907 | I28: =((3*B28)+C28+(3*D28)+(10*E28)+(3*F28)+G29+H29) -> 6 | K28: 2 | L28: 2 | M28: 0 | N28: 0 | O28: 0 | P28: 2.35 | Q28: 0.919 | R28: =((3*K28)+L28+(3*M28)+(10*N28)+(3*O28)+P29+Q29) -> 17
B29: 8 | C29: 184 | D29: 78 | E29: 86 | G29: 1 | H29: 1 | I29: =((3*B28)+C28+(3*D28)+(10*E28)+(3*F28)+G29+H29) -> 6 | P29: 4 | Q29: 5 | R29: =((2*K28)+L28+(3*M28)+(10*N28)+(3*O28)+P29+Q29) -> 15
A30: Filip Gustavsson | B30: 0 | C30: 0 | D30: 0 | E30: 0 | F30: 0 | G30: 4.09 | H30: 0.882 | I30: =((3*B30)+C30+(3*D30)+(10*E30)+(3*F30)+G31+H31) -> 0 | K30: 1 | L30: 0 | M30: 1 | N30: 0 | O30: 0 | P30: 3.56 | Q30: 0.888 | R30: =((3*K30)+L30+(3*M30)+(10*N30)+(3*O30)+P31+Q31) -> 6
B31: 8 | C31: 117.43 | D31: 60 | E31: 68 | G31: 0 | H31: 0 | I31: =((3*B30)+C30+(3*D30)+(10*E30)+(3*F30)+G31+H31) -> 0 | P31: 0 | Q31: 0 | R31: =((2*K30)+L30+(3*M30)+(10*N30)+(3*O30)+P31+Q31) -> 5
D32: All Playes Scoring This Week | N32: Cumulative Points
B33: Gls | C33: Ast | D33: PP | E33: SH | F33: GW | G33: OT | H33: PSG | K33: Gls | L33: Ast | M33: PP | N33: SH | O33: GW | P33: OT | Q33: PSG | R33: PTS
A34: Forwards | B34: =SUM(B5:B15) -> 14 | C34: =SUM(C5:C15) -> 22 | D34: 6 | E34: 1 | F34: 1 | G34: 0 | H34: 0 | K34: 21 | L34: 36 | M34: 8 | N34: 1 | O34: 2 | P34: 0 | Q34: 0 | R34: =(K34+L34+M34+(2*N34)+(2*O34)+P34+(4*Q34)) -> 71
A35: Defense | B35: =SUM(B19:B25) -> 3 | C35: 9 | D35: =SUM(D19:D25) -> 1 | E35: 0 | F35: 1 | G35: 0 | H35: 0 | K35: 4 | L35: 13 | M35: 1 | N35: 0 | O35: 1 | P35: 0 | Q35: 0 | R35: =(K35+L35+M35+(2*N35)+(2*O35)+P35+(4*Q35)) -> 20
A36: Total Scorers | B36: =SUM(B34:B35) -> 17 | C36: =SUM(C34:C35) -> 31 | D36: 7 | E36: 1 | F36: 2 | G36: 0 | H36: 0 | K36: =SUM(K34:K35) -> 25 | L36: 49 | M36: 9 | N36: 1 | O36: 3 | P36: 0 | Q36: 0 | R36: =(K36+L36+M36+(2*N36)+(2*O36)+P36+(4*Q36)) -> 91
B37: W | C37: OT | D37: SO | E37: Gls | F37: Ast | G37: GAA | H37: SP | K37: W | L37: OT | M37: SO | N37: Gls | O37: Ast | P37: GAA | Q37: SP | R37: PTS
A38: Goalie Totals | B38: =SUM(B28,B30) -> 1 | C38: =SUM(C28,C30) -> 1 | D38: =SUM(D28,D30) -> 0 | E38: =SUM(E28,E30) -> 0 | F38: =SUM(F28,F30) -> 0 | G38: =IF(C39=0,0,B39/(C39/60)) -> 3.184819029 | H38: =IF(E39=0,0,D39/E39) -> 0.8961038961 | K38: 3 | L38: 2 | M38: 1 | N38: 0 | O38: 0 | P38: =IF(L39=0,0,K39/(L39/60)) -> 2.874145587 | Q38: =IF(N39=0,0,M39/N39) -> 0.9047619048 | R38: =((3*K38)+L38+(3*M38)+(10*N38)+(3*O38)+P39+Q39) -> 23
B39: =SUM(B29,B31) -> 16 | C39: =SUM(C29,C31) -> 301.43 | D39: =SUM(D29,D31) -> 138 | E39: =SUM(E29,E31) -> 154 | K39: 26 | L39: 542.77 | M39: 247 | N39: 273 | P39: 4 | Q39: 5
K40: GA | L40: Time | M40: Saves | N40: Shots
B42: Injured Reserve | M42: This Weeks Totals
A43: Player | B43: P | C43: GP | D43: IR Weeks | E43: Pts | L43: Forwards | N43: =SUM(I5:I12) -> 43
B44: F | L44: Defense | N44: =SUM(I19:I23) -> 13
B45: D | L45: Goalie | N45: =I28 -> 6
B46: G
B47: Flex | L47: Total Points | N47: =SUM(N43:N45) -> 62
A56: Team Record | B56: W | C56: L | D56: T | E56: Pts | F56: CP | G56: BPF | H56: BFA | I56: Streak
A57: District 5 | B57: 1 | C57: 0 | D57: 1 | E57: =2*B57+D57 -> 3 | F57: =R36+R38 -> 114 | G57: =SUM(B61,B65,B69,B73,B77,F61,F65,F69,F73,F77,J61,J65,J69,J73,J77,N61,N65,N69,N73,N77,R61,R65) -> 104 | H57: =SUM(B62,B66,B70,B74,B78,F62,F66,F70,F74,F78,J62,J66,J70,J74,J78,N62,N66,N70,N74,N78,R62,R66) -> 75 | I57: Won 1
A60: Game 1 | B60: Score | D60: Game 6 | F60: Score | H60: Game 11 | J60: Score | L60: Game 16 | N60: Score | P60: Game 21 | R60: Score
A61: District 5 | B61: 42 | D61: District 5 | F61: 0 | H61: District 5 | J61: 0 | L61: District 5 | N61: 0 | P61: District 5 | R61: 0
A62: Riketorians | B62: 42 | D62: Damn Yankees | F62: 0 | H62: Riketorians | J62: 0 | L62: Fantasy Hockey Club | N62: 0 | P62: Shawnee Tribe | R62: 0
A64: Game 2 | B64: Score | D64: Game 7 | F64: Score | H64: Game 12 | J64: Score | L64: Game 17 | N64: Score | P64: Game 22 | R64: Score
A65: District 5 | B65: 62 | D65: District 5 | F65: 0 | H65: District 5 | J65: 0 | L65: District 5 | N65: 0 | P65: District 5 | R65: 0
A66: Shawnee Tribe | B66: 33 | D66: Team LIRHL | F66: 0 | H66: Grumpy Old Men | J66: 0 | L66: Highlanders | N66: 0 | P66: Team LIRHL | R66: 0
A68: Game 3 | B68: Score | D68: Game 8 | F68: Score | H68: Game 13 | J68: Score | L68: Game 18 | N68: Score
A69: District 5 | B69: 0 | D69: District 5 | F69: 0 | H69: District 5 | J69: 0 | L69: District 5 | N69: 0
A70: Highlanders | B70: 0 | D70: Highlanders | F70: 0 | H70: Shawnee Tribe | J70: 0 | L70: Slappers | N70: 0
A72: Game 4 | B72: Score | D72: Game 9 | F72: Score | H72: Game 14 | J72: Score | L72: Game 19 | N72: Score
A73: District 5 | B73: 0 | D73: District 5 | F73: 0 | H73: District 5 | J73: 0 | L73: District 5 | N73: 0
A74: Slappers | B74: 0 | D74: Just Chillin | F74: 0 | H74: Slappers | J74: 0 | L74: Damn Yankees | N74: 0
A76: Game 5 | B76: Score | D76: Game 10 | F76: Score | H76: Game 15 | J76: Score | L76: Game 20 | N76: Score
A77: District 5 | B77: 0 | D77: District 5 | F77: 0 | H77: District 5 | J77: 0 | L77: District 5 | N77: 0
A78: Just Chillin | B78: 0 | D78: Fantasy Hockey Club | F78: 0 | H78: Just Chillin | J78: 0 | L78: Grumpy Old Men | N78: 0

Sheet Riketorians
A1: Team: Riketorians | D1: General Manager: Jonathan Riker
D3: Scoring This Week | N3: Players Overall Scoring
A4: Forwards | B4: Gls | C4: Ast | D4: PP | E4: SH | F4: GW | G4: OT | H4: PSG | I4: PTS | K4: Gls | L4: Ast | M4: PP | N4: SH | O4: GW | P4: OT | Q4: PSG | R4: PTS
A5: Tom Wilson | B5: 2 | C5: 3 | D5: 2 | E5: 0 | F5: 0 | G5: 0 | H5: 0 | I5: =(B5+C5+D5+(2*E5)+(2*F5)+G5+(4*H5)) -> 7 | K5: 3 | L5: 4 | M5: 2 | N5: 0 | O5: 0 | P5: 0 | Q5: 0 | R5: =(K5+L5+M5+(2*N5)+(2*O5)+P5+(4*Q5)) -> 9
A6: Kyle Connor | B6: 0 | C6: 4 | D6: 0 | E6: 0 | F6: 0 | G6: 0 | H6: 0 | I6: 4 | K6: 3 | L6: 5 | M6: 0 | N6: 1 | O6: 0 | P6: 0 | Q6: 0 | R6: 10
A7: David Pastrnak | B7: 1 | C7: 1 | D7: 1 | E7: 0 | F7: 0 | G7: 0 | H7: 0 | I7: 3 | K7: 2 | L7: 4 | M7: 1 | N7: 0 | O7: 0 | P7: 0 | Q7: 0 | R7: 7
A8: Alex Ovechkin | B8: 1 | C8: 2 | D8: 0 | E8: 0 | F8: 0 | G8: 0 | H8: 0 | I8: 3 | K8: 1 | L8: 3 | M8: 0 | N8: 0 | O8: 0 | P8: 0 | Q8: 0 | R8: 4
A9: Brock nelson | B9: 1 | C9: 0 | D9: 0 | E9: 0 | F9: 1 | G9: 0 | H9: 0 | I9: 3 | K9: 1 | L9: 1 | M9: 0 | N9: 0 | O9: 1 | P9: 0 | Q9: 0 | R9: 4
A10: Connor Bedard | B10: 0 | C10: 3 | D10: 0 | E10: 0 | F10: 0 | G10: 0 | H10: 0 | I10: 3 | K10: 2 | L10: 4 | M10: 1 | N10: 0 | O10: 0 | P10: 0 | Q10: 0 | R10: 7
A11: Drake Batherson | B11: 0 | C11: 3 | D11: 0 | E11: 0 | F11: 0 | G11: 0 | H11: 0 | I11: 3 | K11: 0 | L11: 3 | M11: 0 | N11: 0 | O11: 0 | P11: 0 | Q11: 0 | R11: 3
A12: Travis Konecny | B12: 0 | C12: 1 | D12: 0 | E12: 0 | F12: 0 | G12: 0 | H12: 0 | I12: 1 | K12: 0 | L12: 2 | M12: 0 | N12: 0 | O12: 0 | P12: 0 | Q12: 0 | R12: 2
A13: Carter Verhaeghe | B13: 0 | C13: 0 | D13: 0 | E13: 0 | F13: 0 | G13: 0 | H13: 0 | I13: 0 | K13: 1 | L13: 1 | M13: 1 | N13: 0 | O13: 0 | P13: 0 | Q13: 0 | R13: 3
A14: Vincent Trocheck | B14: 0 | C14: 0 | D14: 0 | E14: 0 | F14: 0 | G14: 0 | H14: 0 | I14: 0 | K14: 0 | L14: 1 | M14: 0 | N14: 0 | O14: 0 | P14: 0 | Q14: 0 | R14: 1
A15: Andrei Svechnikov | B15: 0 | C15: 0 | D15: 0 | E15: 0 | F15: 0 | G15: 0 | H15: 0 | I15: 0 | K15: 0 | L15: 0 | M15: 0 | N15: 0 | O15: 0 | P15: 0 | Q15: 0 | R15: 0
A18: Defense | B18: Gls | C18: Ast | D18: PP | E18: SH | F18: GW | G18: OT | H18: PSG | I18: PTS | K18: Gls | L18: Ast | M18: PP | N18: SH | O18: GW | P18: OT | Q18: PSG | R18: PTS
A19: Jake Sanderson | B19: 1 | C19: 2 | D19: 1 | E19: 0 | F19: 0 | G19: 0 | H19: 0 | I19: =(B19+C19+D19+(2*E19)+(2*F19)+G19+(4*H19)) -> 4 | K19: 1 | L19: 4 | M19: 1 | N19: 0 | O19: 0 | P19: 0 | Q19: 0 | R19: =(K19+L19+M19+(2*N19)+(2*O19)+P19+(4*Q19)) -> 6
A20: Erik Karlsson | B20: 0 | C20: 3 | D20: 0 | E20: 0 | F20: 0 | G20: 0 | H20: 0 | I20: 3 | K20: 0 | L20: 3 | M20: 0 | N20: 0 | O20: 0 | P20: 0 | Q20: 0 | R20: 3
A21: Mike Matheson | B21: 0 | C21: 2 | D21: 0 | E21: 0 | F21: 0 | G21: 0 | H21: 0 | I21: 2 | K21: 1 | L21: 3 | M21: 0 | N21: 0 | O21: 0 | P21: 0 | Q21: 0 | R21: 4
A22: Kris Letang | B22: 0 | C22: 1 | D22: 0 | E22: 0 | F22: 0 | G22: 0 | H22: 0 | I22: 1 | K22: 0 | L22: 1 | M22: 0 | N22: 0 | O22: 0 | P22: 0 | Q22: 0 | R22: 1
A23: Justin Faulk | B23: 0 | C23: 0 | D23: 0 | E23: 0 | F23: 0 | G23: 0 | H23: 0 | I23: 0 | K23: 0 | L23: 1 | M23: 0 | N23: 0 | O23: 0 | P23: 0 | Q23: 0 | R23: 1
A24: Devon Toews | B24: 0 | C24: 0 | D24: 0 | E24: 0 | F24: 0 | G24: 0 | H24: 0 | I24: 0 | K24: 0 | L24: 0 | M24: 0 | N24: 0 | O24: 0 | P24: 0 | Q24: 0 | R24: 0
A25: Neal Pionk | B25: 0 | C25: 0 | D25: 0 | E25: 0 | F25: 0 | G25: 0 | H25: 0 | I25: 0 | K25: 0 | L25: 0 | M25: 0 | N25: 0 | O25: 0 | P25: 0 | Q25: 0 | R25: 0
A27: Goalie | B27: W | C27: OT | D27: SO | E27: Gls | F27: Ast | G27: GAA | H27: SP | I27: PTS | K27: W | L27: OT | M27: SO | N27: Gls | O27: Ast | P27: GAA | Q27: SP | R27: PTS
A28: Sergei Bobrovsky | B28: 0 | C28: 0 | D28: 0 | E28: 0 | F28: 0 | G28: 2.55 | H28: 0.907 | I28: =((3*B28)+C28+(3*D28)+(10*E28)+(3*F28)+G29+H29) -> 2 | K28: 3 | L28: 0 | M28: 0 | N28: 0 | O28: 0 | P28: 2.02 | Q28: 0.917 | R28: =((3*K28)+L28+(3*M28)+(10*N28)+(3*O28)+P29+Q29) -> 17
B29: 5 | C29: 117.57 | D29: 49 | E29: 54 | G29: 1 | H29: 1 | I29: =((3*B28)+C28+(3*D28)+(10*E28)+(3*F28)+G29+H29) -> 2 | P29: 4 | Q29: 4 | R29: =((2*K28)+L28+(3*M28)+(10*N28)+(3*O28)+P29+Q29) -> 14
A30: Dustin Wolf | B30: 0 | C30: 0 | D30: 0 | E30: 0 | F30: 0 | G30: 4.88 | H30: 0.833 | I30: =((3*B30)+C30+(3*D30)+(10*E30)+(3*F30)+G31+H31) -> 0 | K30: 1 | L30: 0 | M30: 0 | N30: 0 | O30: 0 | P30: 4.3 | Q30: 0.854 | R30: =((3*K30)+L30+(3*M30)+(10*N30)+(3*O30)+P31+Q31) -> 3
B31: 8 | C31: 98.27 | D31: 40 | E31: 48 | G31: 0 | H31: 0 | I31: =((3*B30)+C30+(3*D30)+(10*E30)+(3*F30)+G31+H31) -> 0 | P31: 0 | Q31: 0 | R31: =((2*K30)+L30+(3*M30)+(10*N30)+(3*O30)+P31+Q31) -> 2
D32: All Playes Scoring This Week | N32: Cumulative Points
B33: Gls | C33: Ast | D33: PP | E33: SH | F33: GW | G33: OT | H33: PSG | K33: Gls | L33: Ast | M33: PP | N33: SH | O33: GW | P33: OT | Q33: PSG | R33: PTS
A34: Forwards | B34: =SUM(B5:B15) -> 5 | C34: =SUM(C5:C15) -> 17 | D34: 3 | E34: 0 | F34: 1 | G34: 0 | H34: 0 | K34: 13 | L34: 28 | M34: 5 | N34: 1 | O34: 1 | P34: 0 | Q34: 0 | R34: =(K34+L34+M34+(2*N34)+(2*O34)+P34+(4*Q34)) -> 50
A35: Defense | B35: =SUM(B19:B25) -> 1 | C35: =SUM(C19:C25) -> 8 | D35: 1 | E35: 0 | F35: 0 | G35: 0 | H35: 0 | K35: 2 | L35: 12 | M35: 1 | N35: 0 | O35: 0 | P35: 0 | Q35: 0 | R35: =(K35+L35+M35+(2*N35)+(2*O35)+P35+(4*Q35)) -> 15
A36: Total Scorers | B36: =SUM(B34:B35) -> 6 | C36: =SUM(C34:C35) -> 25 | D36: 4 | E36: 0 | F36: 1 | G36: 0 | H36: 0 | K36: =SUM(K34:K35) -> 15 | L36: 40 | M36: 6 | N36: 1 | O36: 1 | P36: 0 | Q36: 0 | R36: =(K36+L36+M36+(2*N36)+(2*O36)+P36+(4*Q36)) -> 65
B37: W | C37: OT | D37: SO | E37: Gls | F37: Ast | G37: GAA | H37: SP | K37: W | L37: OT | M37: SO | N37: Gls | O37: Ast | P37: GAA | Q37: SP | R37: PTS
A38: Goalie Totals | B38: =SUM(B28,B30) -> 0 | C38: =SUM(C28,C30) -> 0 | D38: =SUM(D28,D30) -> 0 | E38: =SUM(E28,E30) -> 0 | F38: =SUM(F28,F30) -> 0 | G38: =IF(C39=0,0,B39/(C39/60)) -> 3.613787991 | H38: =IF(E39=0,0,D39/E39) -> 0.8725490196 | K38: 4 | L38: 0 | M38: 0 | N38: 0 | O38: 0 | P38: =IF(L39=0,0,K39/(L39/60)) -> 3.125705454 | Q38: =IF(N39=0,0,M39/N39) -> 0.8837209302 | R38: =((3*K38)+L38+(3*M38)+(10*N38)+(3*O38)+P39+Q39) -> 20
B39: =SUM(B29,B31) -> 13 | C39: =SUM(C29,C31) -> 215.84 | D39: =SUM(D29,D31) -> 89 | E39: =SUM(E29,E31) -> 102 | K39: 30 | L39: 575.87 | M39: 228 | N39: 258 | P39: 4 | Q39: 4
K40: GA | L40: Time | M40: Saves | N40: Shots
B42: Injured Reserve | M42: This Weeks Totals
A43: Player | B43: P | C43: GP | D43: IR Weeks | E43: Pts | L43: Forwards | N43: =SUM(I5:I12) -> 27
B44: F | L44: Defense | N44: =SUM(I19:I23) -> 10
B45: D | L45: Goalie | N45: =I28 -> 2
B46: G
B47: Flex | L47: Total Points | N47: =SUM(N43:N45) -> 39
A56: Team Record | B56: W | C56: L | D56: T | E56: Pts | F56: CP | G56: BPF | H56: BFA | I56: Streak
A57: Riketorians | B57: 0 | C57: 1 | D57: 1 | E57: =2*B57+D57 -> 1 | F57: =R36+R38 -> 85 | G57: =SUM(B61,B65,B69,B73,B77,F61,F65,F69,F73,F77,J61,J65,J69,J73,J77,N61,N65,N69,N73,N77,R61,R65) -> 81 | H57: =SUM(B62,B66,B70,B74,B78,F62,F66,F70,F74,F78,J62,J66,J70,J74,J78,N62,N66,N70,N74,N78,R62,R66) -> 112 | I57: Lost 1
A60: Game 1 | B60: Score | D60: Game 6 | F60: Score | H60: Game 11 | J60: Score | L60: Game 16 | N60: Score | P60: Game 21 | R60: Score
A61: Riketorians | B61: 42 | D61: Riketorians | F61: 0 | H61: Riketorians | J61: 0 | L61: Riketorians | N61: 0 | P61: Riketorians | R61: 0
A62: District 5 | B62: 42 | D62: Shawnee Tribe | F62: 0 | H62: District 5 | J62: 0 | L62: Shawnee Tribe | N62: 0 | P62: Grumpy Old Men | R62: 0
A64: Game 2 | B64: Score | D64: Game 7 | F64: Score | H64: Game 12 | J64: Score | L64: Game 17 | N64: Score | P64: Game 22 | R64: Score
A65: Riketorians | B65: 39 | D65: Riketorians | F65: 0 | H65: Riketorians | J65: 0 | L65: Riketorians | N65: 0 | P65: Riketorians | R65: 0
A66: Fantasy Hockey Club | B66: 70 | D66: Slappers | F66: 0 | H66: Team LIRHL | J66: 0 | L66: Fantasy Hockey Club | N66: 0 | P66: Damn Yankees | R66: 0
A68: Game 3 | B68: Score | D68: Game 8 | F68: Score | H68: Game 13 | J68: Score | L68: Game 18 | N68: Score
A69: Riketorians | B69: 0 | D69: Riketorians | F69: 0 | H69: Riketorians | J69: 0 | L69: Riketorians | N69: 0
A70: Grumpy Old Men | B70: 0 | D70: Just Chillin | F70: 0 | H70: Grumpy Old Men | J70: 0 | L70: Highlanders | N70: 0
A72: Game 4 | B72: Score | D72: Game 9 | F72: Score | H72: Game 14 | J72: Score | L72: Game 19 | N72: Score
A73: Riketorians | B73: 0 | D73: Riketorians | F73: 0 | H73: Riketorians | J73: 0 | L73: Riketorians | N73: 0
A74: Team LIRHL | B74: 0 | D74: Fantasy Hockey Club | F74: 0 | H74: Damn Yankees | J74: 0 | L74: Slappers | N74: 0
A76: Game 5 | B76: Score | D76: Game 10 | F76: Score | H76: Game 15 | J76: Score | L76: Game 20 | N76: Score
A77: Riketorians | B77: 0 | D77: Riketorians | F77: 0 | H77: Riketorians | J77: 0 | L77: Riketorians | N77: 0
A78: Damn Yankees | B78: 0 | D78: Highlanders | F78: 0 | H78: Team LIRHL | J78: 0 | L78: Just Chillin | N78: 0

Sheet Just Chillin
A1: Team: Just Chillin | C1: General Manager: Mike Willoughby
D3: Scoring This Week | N3: Players Overall Scoring
A4: Forwards | B4: Gls | C4: Ast | D4: PP | E4: SH | F4: GW | G4: OT | H4: PSG | I4: PTS | K4: Gls | L4: Ast | M4: PP | N4: SH | O4: GW | P4: OT | Q4: PSG | R4: PTS
A5: Jack Eichel | B5: 3 | C5: 5 | D5: 0 | E5: 0 | F5: 1 | G5: 0 | H5: 0 | I5: =(B5+C5+D5+(2*E5)+(2*F5)+G5+(4*H5)) -> 10 | K5: 5 | L5: 10 | M5: 0 | N5: 0 | O5: 1 | P5: 0 | Q5: 0 | R5: =(K5+L5+M5+(2*N5)+(2*O5)+P5+(4*Q5)) -> 17
A6: Sidney Crosby | B6: 2 | C6: 3 | D6: 0 | E6: 0 | F6: 1 | G6: 0 | H6: 0 | I6: 7 | K6: 3 | L6: 4 | M6: 1 | N6: 0 | O6: 1 | P6: 0 | Q6: 0 | R6: 10
A7: Mark Scheifele | B7: 4 | C7: 0 | D7: 2 | E7: 0 | F7: 0 | G7: 0 | H7: 0 | I7: 6 | K7: 6 | L7: 3 | M7: 2 | N7: 0 | O7: 1 | P7: 0 | Q7: 0 | R7: 13
A8: John Tavares | B8: 3 | C8: 2 | D8: 1 | E8: 0 | F8: 0 | G8: 0 | H8: 0 | I8: 6 | K8: 3 | L8: 4 | M8: 1 | N8: 0 | O8: 0 | P8: 0 | Q8: 0 | R8: 8
A9: Wyatt Johnston | B9: 2 | C9: 2 | D9: 2 | E9: 0 | F9: 0 | G9: 0 | H9: 0 | I9: 6 | K9: 4 | L9: 2 | M9: 2 | N9: 0 | O9: 1 | P9: 0 | Q9: 0 | R9: 10
A10: Aliaksei Protas | B10: 2 | C10: 0 | D10: 0 | E10: 0 | F10: 1 | G10: 0 | H10: 0 | I10: 4 | K10: 4 | L10: 2 | M10: 0 | N10: 0 | O10: 1 | P10: 0 | Q10: 0 | R10: 8
A11: Patrick Kane | B11: 1 | C11: 0 | D11: 1 | E11: 0 | F11: 1 | G11: 0 | H11: 0 | I11: 4 | K11: 2 | L11: 3 | M11: 1 | N11: 0 | O11: 1 | P11: 0 | Q11: 0 | R11: 8
A12: Ryan Nugent-Hopkins | B12: 3 | C12: 0 | D12: 0 | E12: 0 | F12: 0 | G12: 0 | H12: 0 | I12: 3 | K12: 4 | L12: 2 | M12: 1 | N12: 0 | O12: 0 | P12: 0 | Q12: 0 | R12: 7
A13: Kent Johnson | B13: 1 | C13: 0 | D13: 0 | E13: 0 | F13: 0 | G13: 0 | H13: 0 | I13: 1 | K13: 1 | L13: 0 | M13: 0 | N13: 0 | O13: 0 | P13: 0 | Q13: 0 | R13: 1
A14: Anze Kopitar | B14: 0 | C14: 1 | D14: 0 | E14: 0 | F14: 0 | G14: 0 | H14: 0 | I14: 1 | K14: 0 | L14: 4 | M14: 0 | N14: 0 | O14: 0 | P14: 0 | Q14: 0 | R14: 4
A15: Sean Monahan | B15: 0 | C15: 0 | D15: 0 | E15: 0 | F15: 0 | G15: 0 | H15: 0 | I15: 0 | K15: 0 | L15: 0 | M15: 0 | N15: 0 | O15: 0 | P15: 0 | Q15: 0 | R15: 0
A18: Defense | B18: Gls | C18: Ast | D18: PP | E18: SH | F18: GW | G18: OT | H18: PSG | I18: PTS | K18: Gls | L18: Ast | M18: PP | N18: SH | O18: GW | P18: OT | Q18: PSG | R18: PTS
A19: Roman Josi | B19: 1 | C19: 2 | D19: 0 | E19: 0 | F19: 0 | G19: 0 | H19: 0 | I19: =(B19+C19+D19+(2*E19)+(2*F19)+G19+(4*H19)) -> 3 | K19: 1 | L19: 3 | M19: 0 | N19: 0 | O19: 0 | P19: 0 | Q19: 0 | R19: =(K19+L19+M19+(2*N19)+(2*O19)+P19+(4*Q19)) -> 4
A20: Morgan Rielly | B20: 1 | C20: 1 | D20: 0 | E20: 0 | F20: 0 | G20: 0 | H20: 0 | I20: 2 | K20: 2 | L20: 4 | M20: 0 | N20: 0 | O20: 1 | P20: 0 | Q20: 0 | R20: 8
A21: John Carlson | B21: 0 | C21: 2 | D21: 0 | E21: 0 | F21: 0 | G21: 0 | H21: 0 | I21: 2 | K21: 0 | L21: 3 | M21: 0 | N21: 0 | O21: 0 | P21: 0 | Q21: 0 | R21: 3
A22: Zach Werenski | B22: 0 | C22: 1 | D22: 0 | E22: 0 | F22: 0 | G22: 0 | H22: 0 | I22: 1 | K22: 1 | L22: 3 | M22: 0 | N22: 0 | O22: 0 | P22: 0 | Q22: 0 | R22: 4
A23: Cam Fowler | B23: 0 | C23: 0 | D23: 0 | E23: 0 | F23: 0 | G23: 0 | H23: 0 | I23: 0 | K23: 0 | L23: 1 | M23: 0 | N23: 0 | O23: 0 | P23: 0 | Q23: 0 | R23: 1
A24: Brock Faber | B24: 0 | C24: 0 | D24: 0 | E24: 0 | F24: 0 | G24: 0 | H24: 0 | I24: 0 | K24: 0 | L24: 0 | M24: 0 | N24: 0 | O24: 0 | P24: 0 | Q24: 0 | R24: 0
A25: Noah Hanifin | B25: 0 | C25: 0 | D25: 0 | E25: 0 | F25: 0 | G25: 0 | H25: 0 | I25: 0 | K25: 0 | L25: 0 | M25: 0 | N25: 0 | O25: 0 | P25: 0 | Q25: 0 | R25: 0
A27: Goalie | B27: W | C27: OT | D27: SO | E27: Gls | F27: Ast | G27: GAA | H27: SP | I27: PTS | K27: W | L27: OT | M27: SO | N27: Gls | O27: Ast | P27: GAA | Q27: SP | R27: PTS
A28: Connor Hellebuyck | B28: 2 | C28: 0 | D28: 0 | E28: 0 | F28: 0 | G28: 1.5 | H28: 0.938 | I28: =((3*B28)+C28+(3*D28)+(10*E28)+(3*F28)+G29+H29) -> 13 | K28: 3 | L28: 0 | M28: 0 | N28: 0 | O28: 0 | P28: 2.51 | Q28: 0.915 | R28: =((3*K28)+L28+(3*M28)+(10*N28)+(3*O28)+P29+Q29) -> 16
B29: 3 | C29: 119.85 | D29: 45 | E29: 48 | G29: 3 | H29: 4 | I29: =((3*B28)+C28+(3*D28)+(10*E28)+(3*F28)+G29+H29) -> 13 | P29: 3 | Q29: 4 | R29: =((2*K28)+L28+(3*M28)+(10*N28)+(3*O28)+P29+Q29) -> 13
A30: Jordan Binnington | B30: 2 | C30: 0 | D30: 0 | E30: 0 | F30: 0 | G30: 1.81 | H30: 0.927 | I30: =((3*B30)+C30+(3*D30)+(10*E30)+(3*F30)+G31+H31) -> 12 | K30: 2 | L30: 0 | M30: 0 | N30: 0 | O30: 0 | P30: 2.81 | Q30: 0.882 | R30: =((3*K30)+L30+(3*M30)+(10*N30)+(3*O30)+P31+Q31) -> 12
B31: 4 | C31: 132.25 | D31: 51 | E31: 55 | G31: 3 | H31: 3 | I31: =((3*B30)+C30+(3*D30)+(10*E30)+(3*F30)+G31+H31) -> 12 | P31: 3 | Q31: 3 | R31: =((2*K30)+L30+(3*M30)+(10*N30)+(3*O30)+P31+Q31) -> 10
D32: All Playes Scoring This Week | N32: Cumulative Points
B33: Gls | C33: Ast | D33: PP | E33: SH | F33: GW | G33: OT | H33: PSG | K33: Gls | L33: Ast | M33: PP | N33: SH | O33: GW | P33: OT | Q33: PSG | R33: PTS
A34: Forwards | B34: =SUM(B5:B15) -> 21 | C34: =SUM(C5:C15) -> 13 | D34: 6 | E34: 0 | F34: 4 | G34: 0 | H34: 0 | K34: 31 | L34: 31 | M34: 8 | N34: 0 | O34: 6 | P34: 0 | Q34: 0 | R34: =(K34+L34+M34+(2*N34)+(2*O34)+P34+(4*Q34)) -> 82
A35: Defense | B35: =SUM(B19:B25) -> 2 | C35: =SUM(C19:C25) -> 6 | D35: 0 | E35: 0 | F35: 0 | G35: 0 | H35: 0 | K35: 4 | L35: 14 | M35: 0 | N35: 0 | O35: 1 | P35: 0 | Q35: 0 | R35: =(K35+L35+M35+(2*N35)+(2*O35)+P35+(4*Q35)) -> 20
A36: Total Scorers | B36: =SUM(B34:B35) -> 23 | C36: =SUM(C34:C35) -> 19 | D36: 6 | E36: 0 | F36: 4 | G36: 0 | H36: 0 | K36: =SUM(K34:K35) -> 35 | L36: 45 | M36: 8 | N36: 0 | O36: 7 | P36: 0 | Q36: 0 | R36: =(K36+L36+M36+(2*N36)+(2*O36)+P36+(4*Q36)) -> 102
B37: W | C37: OT | D37: SO | E37: Gls | F37: Ast | G37: GAA | H37: SP | K37: W | L37: OT | M37: SO | N37: Gls | O37: Ast | P37: GAA | Q37: SP | R37: PTS
A38: Goalie Totals | B38: =SUM(B28,B30) -> 4 | C38: =SUM(C28,C30) -> 0 | D38: =SUM(D28,D30) -> 0 | E38: =SUM(E28,E30) -> 0 | F38: =SUM(F28,F30) -> 0 | G38: =IF(C39=0,0,B39/(C39/60)) -> 1.666005553 | H38: =IF(E39=0,0,D39/E39) -> 0.932038835 | K38: 5 | L38: 0 | M38: 0 | N38: 0 | O38: 0 | P38: =IF(L39=0,0,K39/(L39/60)) -> 2.646055289 | Q38: =IF(N39=0,0,M39/N39) -> 0.9015544041 | R38: =((3*K38)+L38+(3*M38)+(10*N38)+(3*O38)+P39+Q39) -> 28
B39: =SUM(B29,B31) -> 7 | C39: =SUM(C29,C31) -> 252.1 | D39: =SUM(D29,D31) -> 96 | E39: =SUM(E29,E31) -> 103 | K39: 19 | L39: 430.83 | M39: 174 | N39: 193 | P39: 6 | Q39: 7
K40: GA | L40: Time | M40: Saves | N40: Shots
B42: Injured Reserve | M42: This Weeks Totals
A43: Player | B43: P | C43: GP | D43: IR Weeks | E43: Pts | L43: Forwards | N43: =SUM(I5:I12) -> 46
B44: F | L44: Defense | N44: =SUM(I19:I23) -> 8
B45: D | L45: Goalie | N45: =I28 -> 13
B46: G
B47: Flex | L47: Total Points | N47: =SUM(N43:N45) -> 67
A56: Team Record | B56: W | C56: L | D56: T | E56: Pts | F56: CP | G56: BPF | H56: BFA | I56: Streak
A57: Just Chillin | B57: 2 | C57: 0 | D57: 0 | E57: =2*B57+D57 -> 4 | F57: =R36+R38 -> 130 | G57: =SUM(B61,B65,B69,B73,B77,F61,F65,F69,F73,F77,J61,J65,J69,J73,J77,N61,N65,N69,N73,N77,R61,R65) -> 116 | H57: =SUM(B62,B66,B70,B74,B78,F62,F66,F70,F74,F78,J62,J66,J70,J74,J78,N62,N66,N70,N74,N78,R62,R66) -> 87 | I57: Won 2
A60: Game 1 | B60: Score | D60: Game 6 | F60: Score | H60: Game 11 | J60: Score | L60: Game 16 | N60: Score | P60: Game 21 | R60: Score
A61: Just Chillin | B61: 49 | D61: Just Chillin | F61: 0 | H61: Just Chillin | J61: 0 | L61: Just Chillin | N61: 0 | P61: Just Chillin | R61: 0
A62: Slappers | B62: 38 | D62: Fantasy Hockey Club | F62: 0 | H62: Grumpy Old Men | J62: 0 | L62: Team LIRHL | N62: 0 | P62: Highlanders | R62: 0
A64: Game 2 | B64: Score | D64: Game 7 | F64: Score | H64: Game 12 | J64: Score | L64: Game 17 | N64: Score | P64: Game 22 | R64: Score
A65: Just Chillin | B65: 67 | D65: Just Chillin | F65: 0 | H65: Just Chillin | J65: 0 | L65: Just Chillin | N65: 0 | P65: Just Chillin | R65: 0
A66: Highlanders | B66: 49 | D66: Grumpy Old Men | F66: 0 | H66: Slappers | J66: 0 | L66: Damn Yankees | N66: 0 | P66: Slappers | R66: 0
A68: Game 3 | B68: Score | D68: Game 8 | F68: Score | H68: Game 13 | J68: Score | L68: Game 18 | N68: Score
A69: Just Chillin | B69: 0 | D69: Just Chillin | F69: 0 | H69: Just Chillin | J69: 0 | L69: Just Chillin | N69: 0
A70: Team LIRHL | B70: 0 | D70: Riketorians | F70: 0 | H70: Highlanders | J70: 0 | L70: Shawnee Tribe | N70: 0
A72: Game 4 | B72: Score | D72: Game 9 | F72: Score | H72: Game 14 | J72: Score | L72: Game 19 | N72: Score
A73: Just Chillin | B73: 0 | D73: Just Chillin | F73: 0 | H73: Just Chillin | J73: 0 | L73: Just Chillin | N73: 0
A74: Shawnee Tribe | B74: 0 | D74: District 5 | F74: 0 | H74: Shawnee Tribe | J74: 0 | L74: Fantasy Hockey Club | N74: 0
A76: Game 5 | B76: Score | D76: Game 10 | F76: Score | H76: Game 15 | J76: Score | L76: Game 20 | N76: Score
A77: Just Chillin | B77: 0 | D77: Just Chillin | F77: 0 | H77: Just Chillin | J77: 0 | L77: Just Chillin | N77: 0
A78: District 5 | B78: 0 | D78: Damn Yankees | F78: 0 | H78: District 5 | J78: 0 | L78: Riketorians | N78: 0

Sheet Damn Yankees
A1: Team: Damn Yankees | C1: General Manager: Ken Chmela
D3: Scoring This Week | N3: Players Overall Scoring
A4: Forwards | B4: Gls | C4: Ast | D4: PP | E4: SH | F4: GW | G4: OT | H4: PSG | I4: PTS | K4: Gls | L4: Ast | M4: PP | N4: SH | O4: GW | P4: OT | Q4: PSG | R4: PTS
A5: Nick Schmaltz | B5: 3 | C5: 2 | D5: 1 | E5: 0 | F5: 1 | G5: 0 | H5: 0 | I5: =(B5+C5+D5+(2*E5)+(2*F5)+G5+(4*H5)) -> 8 | K5: 3 | L5: 4 | M5: 1 | N5: 0 | O5: 1 | P5: 0 | Q5: 0 | R5: =(K5+L5+M5+(2*N5)+(2*O5)+P5+(4*Q5)) -> 10
A6: Martin Necas | B6: 1 | C6: 3 | D6: 0 | E6: 0 | F6: 0 | G6: 0 | H6: 0 | I6: 4 | K6: 4 | L6: 6 | M6: 1 | N6: 0 | O6: 0 | P6: 0 | Q6: 0 | R6: 11
A7: Jake Guentzel | B7: 1 | C7: 3 | D7: 0 | E7: 0 | F7: 0 | G7: 0 | H7: 0 | I7: 4 | K7: 1 | L7: 5 | M7: 0 | N7: 0 | O7: 0 | P7: 0 | Q7: 0 | R7: 6
A8: Matt Duchene | B8: 1 | C8: 0 | D8: 1 | E8: 0 | F8: 1 | G8: 0 | H8: 0 | I8: 4 | K8: 1 | L8: 1 | M8: 1 | N8: 0 | O8: 1 | P8: 0 | Q8: 0 | R8: 5
A9: Alex Tuch | B9: 1 | C9: 3 | D9: 0 | E9: 0 | F9: 0 | G9: 0 | H9: 0 | I9: 4 | K9: 1 | L9: 3 | M9: 0 | N9: 0 | O9: 0 | P9: 0 | Q9: 0 | R9: 4
A10: Mathew Barzal | B10: 1 | C10: 2 | D10: 0 | E10: 0 | F10: 0 | G10: 0 | H10: 0 | I10: 3 | K10: 1 | L10: 3 | M10: 0 | N10: 0 | O10: 0 | P10: 0 | Q10: 0 | R10: 4
A11: Jonathan Huberdeau | B11: 1 | C11: 0 | D11: 1 | E11: 0 | F11: 0 | G11: 0 | H11: 0 | I11: 2 | K11: 1 | L11: 0 | M11: 1 | N11: 0 | O11: 0 | P11: 0 | Q11: 0 | R11: 2
A12: J.T. Miller | B12: 1 | C12: 0 | D12: 0 | E12: 0 | F12: 0 | G12: 0 | H12: 0 | I12: 1 | K12: 2 | L12: 2 | M12: 0 | N12: 0 | O12: 0 | P12: 0 | Q12: 0 | R12: 4
A13: Lucas Raymond | B13: 0 | C13: 1 | D13: 0 | E13: 0 | F13: 0 | G13: 0 | H13: 0 | I13: 1 | K13: 2 | L13: 1 | M13: 1 | N13: 0 | O13: 1 | P13: 0 | Q13: 0 | R13: 6
A14: Troy Terry | B14: 0 | C14: 1 | D14: 0 | E14: 0 | F14: 0 | G14: 0 | H14: 0 | I14: 1 | K14: 0 | L14: 3 | M14: 0 | N14: 0 | O14: 0 | P14: 0 | Q14: 0 | R14: 3
A15: Brandon Hagel | B15: 0 | C15: 0 | D15: 0 | E15: 0 | F15: 0 | G15: 0 | H15: 0 | I15: 0 | K15: 0 | L15: 1 | M15: 0 | N15: 0 | O15: 0 | P15: 0 | Q15: 0 | R15: 1
A18: Defense | B18: Gls | C18: Ast | D18: PP | E18: SH | F18: GW | G18: OT | H18: PSG | I18: PTS | K18: Gls | L18: Ast | M18: PP | N18: SH | O18: GW | P18: OT | Q18: PSG | R18: PTS
A19: Quinn Hughes | B19: 1 | C19: 2 | D19: 1 | E19: 0 | F19: 0 | G19: 0 | H19: 0 | I19: =(B19+C19+D19+(2*E19)+(2*F19)+G19+(4*H19)) -> 4 | K19: 1 | L19: 3 | M19: 1 | N19: 0 | O19: 0 | P19: 0 | Q19: 0 | R19: =(K19+L19+M19+(2*N19)+(2*O19)+P19+(4*Q19)) -> 5
A20: Victor Hedman | B20: 0 | C20: 3 | D20: 0 | E20: 0 | F20: 0 | G20: 0 | H20: 0 | I20: 3 | K20: 0 | L20: 5 | M20: 0 | N20: 0 | O20: 0 | P20: 0 | Q20: 0 | R20: 5
A21: Filip Hronek | B21: 0 | C21: 3 | D21: 0 | E21: 0 | F21: 0 | G21: 0 | H21: 0 | I21: 3 | K21: 0 | L21: 3 | M21: 0 | N21: 0 | O21: 0 | P21: 0 | Q21: 0 | R21: 3
A22: Jared Spurgeon | B22: 1 | C22: 0 | D22: 1 | E22: 0 | F22: 0 | G22: 0 | H22: 0 | I22: 2 | K22: 1 | L22: 0 | M22: 1 | N22: 0 | O22: 0 | P22: 0 | Q22: 0 | R22: 2
A23: Colton Parayko | B23: 0 | C23: 1 | D23: 0 | E23: 0 | F23: 0 | G23: 0 | H23: 0 | I23: 1 | K23: 0 | L23: 2 | M23: 0 | N23: 0 | O23: 0 | P23: 0 | Q23: 0 | R23: 2
A24: Sean Durzi | B24: 0 | C24: 0 | D24: 0 | E24: 0 | F24: 0 | G24: 0 | H24: 0 | I24: 0 | K24: 0 | L24: 1 | M24: 0 | N24: 0 | O24: 0 | P24: 0 | Q24: 0 | R24: 1
A25: Mattias Ekholm | B25: 0 | C25: 0 | D25: 0 | E25: 0 | F25: 0 | G25: 0 | H25: 0 | I25: 0 | K25: 0 | L25: 0 | M25: 0 | N25: 0 | O25: 0 | P25: 0 | Q25: 0 | R25: 0
A27: Goalie | B27: W | C27: OT | D27: SO | E27: Gls | F27: Ast | G27: GAA | H27: SP | I27: PTS | K27: W | L27: OT | M27: SO | N27: Gls | O27: Ast | P27: GAA | Q27: SP | R27: PTS
A28: Scott Wedgewood | B28: 3 | C28: 0 | D28: 0 | E28: 0 | F28: 0 | G28: 1 | H28: 0.954 | I28: =((3*B28)+C28+(3*D28)+(10*E28)+(3*F28)+G29+H29) -> 18 | K28: 5 | L28: 1 | M28: 0 | N28: 0 | O28: 0 | P28: 1.48 | Q28: 0.938 | R28: =((3*K28)+L28+(3*M28)+(10*N28)+(3*O28)+P29+Q29) -> 31
B29: 3 | C29: 179.5 | D29: 62 | E29: 65 | G29: 4 | H29: 5 | I29: =((3*B28)+C28+(3*D28)+(10*E28)+(3*F28)+G29+H29) -> 18 | P29: 7 | Q29: 8 | R29: =((2*K28)+L28+(3*M28)+(10*N28)+(3*O28)+P29+Q29) -> 26
A30: Andrei Vasilevskiy | B30: 0 | C30: 2 | D30: 0 | E30: 0 | F30: 0 | G30: 2.41 | H30: 0.918 | I30: =((3*B30)+C30+(3*D30)+(10*E30)+(3*F30)+G31+H31) -> 6 | K30: 0 | L30: 2 | M30: 0 | N30: 0 | O30: 0 | P30: 3.5 | Q30: 0.886 | R30: =((3*K30)+L30+(3*M30)+(10*N30)+(3*O30)+P31+Q31) -> 6
B31: 5 | C31: 124.62 | D31: 56 | E31: 61 | G31: 2 | H31: 2 | I31: =((3*B30)+C30+(3*D30)+(10*E30)+(3*F30)+G31+H31) -> 6 | P31: 2 | Q31: 2 | R31: =((2*K30)+L30+(3*M30)+(10*N30)+(3*O30)+P31+Q31) -> 6
D32: All Playes Scoring This Week | N32: Cumulative Points
B33: Gls | C33: Ast | D33: PP | E33: SH | F33: GW | G33: OT | H33: PSG | K33: Gls | L33: Ast | M33: PP | N33: SH | O33: GW | P33: OT | Q33: PSG | R33: PTS
A34: Forwards | B34: =SUM(B5:B15) -> 10 | C34: =SUM(C5:C15) -> 15 | D34: 3 | E34: 0 | F34: 2 | G34: 0 | H34: 0 | K34: 16 | L34: 29 | M34: 5 | N34: 0 | O34: 3 | P34: 0 | Q34: 0 | R34: =(K34+L34+M34+(2*N34)+(2*O34)+P34+(4*Q34)) -> 56
A35: Defense | B35: =SUM(B19:B25) -> 2 | C35: =SUM(C19:C25) -> 9 | D35: 2 | E35: 0 | F35: 0 | G35: 0 | H35: 0 | K35: 2 | L35: 14 | M35: 2 | N35: 0 | O35: 0 | P35: 0 | Q35: 0 | R35: =(K35+L35+M35+(2*N35)+(2*O35)+P35+(4*Q35)) -> 18
A36: Total Scorers | B36: =SUM(B34:B35) -> 12 | C36: =SUM(C34:C35) -> 24 | D36: 5 | E36: 0 | F36: 2 | G36: 0 | H36: 0 | K36: =SUM(K34:K35) -> 18 | L36: 43 | M36: 7 | N36: 0 | O36: 3 | P36: 0 | Q36: 0 | R36: =(K36+L36+M36+(2*N36)+(2*O36)+P36+(4*Q36)) -> 74
B37: W | C37: OT | D37: SO | E37: Gls | F37: Ast | G37: GAA | H37: SP | K37: W | L37: OT | M37: SO | N37: Gls | O37: Ast | P37: GAA | Q37: SP | R37: PTS
A38: Goalie Totals | B38: =SUM(B28,B30) -> 3 | C38: =SUM(C28,C30) -> 2 | D38: =SUM(D28,D30) -> 0 | E38: =SUM(E28,E30) -> 0 | F38: =SUM(F28,F30) -> 0 | G38: =IF(C39=0,0,B39/(C39/60)) -> 1.578324346 | H38: =IF(E39=0,0,D39/E39) -> 0.9365079365 | K38: 5 | L38: 3 | M38: 0 | N38: 0 | O38: 0 | P38: =IF(L39=0,0,K39/(L39/60)) -> 2.282614089 | Q38: =IF(N39=0,0,M39/N39) -> 0.9141791045 | R38: =((3*K38)+L38+(3*M38)+(10*N38)+(3*O38)+P39+Q39) -> 37
B39: =SUM(B29,B31) -> 8 | C39: =SUM(C29,C31) -> 304.12 | D39: =SUM(D29,D31) -> 118 | E39: =SUM(E29,E31) -> 126 | K39: 23 | L39: 604.57 | M39: 245 | N39: 268 | P39: 9 | Q39: 10
K40: GA | L40: Time | M40: Saves | N40: Shots
B42: Injured Reserve | M42: This Weeks Totals
A43: Player | B43: P | C43: GP | D43: IR Weeks | E43: Pts | L43: Forwards | N43: =SUM(I5:I12) -> 30
A44: Zach Hyman | B44: F | C44: 0 | D44: 2 | E44: 0 | L44: Defense | N44: =SUM(I19:I23) -> 13
B45: D | L45: Goalie | N45: =I28 -> 18
A46: Mackenzie Blackwood | B46: G | C46: 0 | D46: 2 | E46: 0
B47: Flex | L47: Total Points | N47: =SUM(N43:N45) -> 61
A56: Team Record | B56: W | C56: L | D56: T | E56: Pts | F56: CP | G56: BPF | H56: BFA | I56: Streak
A57: Damn Yankees | B57: 0 | C57: 2 | D57: 0 | E57: =2*B57+D57 -> 0 | F57: =R36+R38 -> 111 | G57: =SUM(B61,B65,B69,B73,B77,F61,F65,F69,F73,F77,J61,J65,J69,J73,J77,N61,N65,N69,N73,N77,R61,R65) -> 102 | H57: =SUM(B62,B66,B70,B74,B78,F62,F66,F70,F74,F78,J62,J66,J70,J74,J78,N62,N66,N70,N74,N78,R62,R66) -> 110 | I57: Lost 2
A60: Game 1 | B60: Score | D60: Game 6 | F60: Score | H60: Game 11 | J60: Score | L60: Game 16 | N60: Score | P60: Game 21 | R60: Score
A61: Damn Yankees | B61: 41 | D61: Damn Yankees | F61: 0 | H61: Damn Yankees | J61: 0 | L61: Damn Yankees | N61: 0 | P61: Damn Yankees | R61: 0
A62: Team LIRHL | B62: 47 | D62: District 5 | F62: 0 | H62: Slappers | J62: 0 | L62: Highlanders | N62: 0 | P62: Team LIRHL | R62: 0
A64: Game 2 | B64: Score | D64: Game 7 | F64: Score | H64: Game 12 | J64: Score | L64: Game 17 | N64: Score | P64: Game 22 | R64: Score
A65: Damn Yankees | B65: 61 | D65: Damn Yankees | F65: 0 | H65: Damn Yankees | J65: 0 | L65: Damn Yankees | N65: 0 | P65: Damn Yankees | R65: 0
A66: Slappers | B66: 63 | D66: Highlanders | F66: 0 | H66: Fantasy Hockey Club | J66: 0 | L66: Just Chillin | N66: 0 | P66: Riketorians | R66: 0
A68: Game 3 | B68: Score | D68: Game 8 | F68: Score | H68: Game 13 | J68: Score | L68: Game 18 | N68: Score
A69: Damn Yankees | B69: 0 | D69: Damn Yankees | F69: 0 | H69: Damn Yankees | J69: 0 | L69: Damn Yankees | N69: 0
A70: Fantasy Hockey Club | B70: 0 | D70: Grumpy Old Men | F70: 0 | H70: Team LIRHL | J70: 0 | L70: Grumpy Old Men | N70: 0
A72: Game 4 | B72: Score | D72: Game 9 | F72: Score | H72: Game 14 | J72: Score | L72: Game 19 | N72: Score
A73: Damn Yankees | B73: 0 | D73: Damn Yankees | F73: 0 | H73: Damn Yankees | J73: 0 | L73: Damn Yankees | N73: 0
A74: Grumpy Old Men | B74: 0 | D74: Shawnee Tribe | F74: 0 | H74: Riketorians | J74: 0 | L74: District 5 | N74: 0
A76: Game 5 | B76: Score | D76: Game 10 | F76: Score | H76: Game 15 | J76: Score | L76: Game 20 | N76: Score
A77: Damn Yankees | B77: 0 | D77: Damn Yankees | F77: 0 | H77: Damn Yankees | J77: 0 | L77: Damn Yankees | N77: 0
A78: Riketorians | B78: 0 | D78: Just Chillin | F78: 0 | H78: Fantasy Hockey Club | J78: 0 | L78: Shawnee Tribe | N78: 0

Sheet Slappers
A1: Team: Slappers | C1: General Manager: Vince Kovacs
D3: Scoring This Week | N3: Players Overall Scoring
A4: Forwards | B4: Gls | C4: Ast | D4: PP | E4: SH | F4: GW | G4: OT | H4: PSG | I4: PTS | K4: Gls | L4: Ast | M4: PP | N4: SH | O4: GW | P4: OT | Q4: PSG | R4: PTS
A5: Auston Matthews | B5: 3 | C5: 2 | D5: 0 | E5: 0 | F5: 2 | G5: 1 | H5: 0 | I5: =(B5+C5+D5+(2*E5)+(2*F5)+G5+(4*H5)) -> 10 | K5: 4 | L5: 2 | M5: 0 | N5: 0 | O5: 2 | P5: 1 | Q5: 0 | R5: =(K5+L5+M5+(2*N5)+(2*O5)+P5+(4*Q5)) -> 11
A6: Jack Hughes | B6: 3 | C6: 2 | D6: 1 | E6: 0 | F6: 1 | G6: 0 | H6: 0 | I6: 8 | K6: 3 | L6: 3 | M6: 1 | N6: 0 | O6: 1 | P6: 0 | Q6: 0 | R6: 9
A7: Timo Meier | B7: 2 | C7: 1 | D7: 1 | E7: 0 | F7: 1 | G7: 0 | H7: 0 | I7: 6 | K7: 3 | L7: 2 | M7: 1 | N7: 0 | O7: 1 | P7: 0 | Q7: 0 | R7: 8
A8: Dylan Strome | B8: 2 | C8: 4 | D8: 0 | E8: 0 | F8: 0 | G8: 0 | H8: 0 | I8: 6 | K8: 2 | L8: 4 | M8: 0 | N8: 0 | O8: 0 | P8: 0 | Q8: 0 | R8: 6
A9: Jesper Bratt | B9: 1 | C9: 3 | D9: 1 | E9: 0 | F9: 0 | G9: 0 | H9: 0 | I9: 5 | K9: 3 | L9: 4 | M9: 1 | N9: 1 | O9: 1 | P9: 0 | Q9: 0 | R9: 12
A10: Quinton Byfield | B10: 1 | C10: 3 | D10: 1 | E10: 0 | F10: 0 | G10: 0 | H10: 0 | I10: 5 | K10: 2 | L10: 4 | M10: 1 | N10: 0 | O10: 0 | P10: 0 | Q10: 0 | R10: 7
A11: Jordan Kyrou | B11: 1 | C11: 2 | D11: 0 | E11: 0 | F11: 0 | G11: 0 | H11: 0 | I11: 3 | K11: 1 | L11: 2 | M11: 0 | N11: 0 | O11: 0 | P11: 0 | Q11: 0 | R11: 3
A12: Dylan Guenther | B12: 0 | C12: 1 | D12: 0 | E12: 0 | F12: 0 | G12: 0 | H12: 0 | I12: 1 | K12: 2 | L12: 2 | M12: 1 | N12: 0 | O12: 1 | P12: 1 | Q12: 0 | R12: 8
A13: Gabriel Vilardi | B13: 0 | C13: 1 | D13: 0 | E13: 0 | F13: 0 | G13: 0 | H13: 0 | I13: 1 | K13: 0 | L13: 4 | M13: 0 | N13: 0 | O13: 0 | P13: 0 | Q13: 0 | R13: 4
A14: Adam Fantilli | B14: 0 | C14: 1 | D14: 0 | E14: 0 | F14: 0 | G14: 0 | H14: 0 | I14: 1 | K14: 1 | L14: 2 | M14: 0 | N14: 0 | O14: 0 | P14: 0 | Q14: 0 | R14: 3
A15: Logan Cooley | B15: 0 | C15: 1 | D15: 0 | E15: 0 | F15: 0 | G15: 0 | H15: 0 | I15: 1 | K15: 1 | L15: 1 | M15: 0 | N15: 0 | O15: 0 | P15: 0 | Q15: 0 | R15: 2
A18: Defense | B18: Gls | C18: Ast | D18: PP | E18: SH | F18: GW | G18: OT | H18: PSG | I18: PTS | K18: Gls | L18: Ast | M18: PP | N18: SH | O18: GW | P18: OT | Q18: PSG | R18: PTS
A19: Travis Sanheim | B19: 0 | C19: 3 | D19: 0 | E19: 0 | F19: 0 | G19: 0 | H19: 0 | I19: =(B19+C19+D19+(2*E19)+(2*F19)+G19+(4*H19)) -> 3 | K19: 1 | L19: 3 | M19: 0 | N19: 0 | O19: 0 | P19: 0 | Q19: 0 | R19: =(K19+L19+M19+(2*N19)+(2*O19)+P19+(4*Q19)) -> 4
A20: Noah Dobson | B20: 1 | C20: 1 | D20: 0 | E20: 0 | F20: 0 | G20: 0 | H20: 0 | I20: 2 | K20: 1 | L20: 2 | M20: 0 | N20: 0 | O20: 0 | P20: 0 | Q20: 0 | R20: 3
A21: Ivan Provorov | B21: 1 | C21: 1 | D21: 0 | E21: 0 | F21: 0 | G21: 0 | H21: 0 | I21: 2 | K21: 1 | L21: 2 | M21: 0 | N21: 0 | O21: 0 | P21: 0 | Q21: 0 | R21: 3
A22: Charlie McAvoy | B22: 0 | C22: 2 | D22: 0 | E22: 0 | F22: 0 | G22: 0 | H22: 0 | I22: 2 | K22: 0 | L22: 3 | M22: 0 | N22: 0 | O22: 0 | P22: 0 | Q22: 0 | R22: 3
A23: Seth Jones | B23: 0 | C23: 1 | D23: 0 | E23: 0 | F23: 0 | G23: 0 | H23: 0 | I23: 1 | K23: 0 | L23: 3 | M23: 0 | N23: 0 | O23: 0 | P23: 0 | Q23: 0 | R23: 3
A24: Drew Doughty | B24: 0 | C24: 1 | D24: 0 | E24: 0 | F24: 0 | G24: 0 | H24: 0 | I24: 1 | K24: 0 | L24: 3 | M24: 0 | N24: 0 | O24: 0 | P24: 0 | Q24: 0 | R24: 3
A25: Dougie Hamilton | B25: 0 | C25: 0 | D25: 0 | E25: 0 | F25: 0 | G25: 0 | H25: 0 | I25: 0 | K25: 1 | L25: 0 | M25: 0 | N25: 0 | O25: 0 | P25: 0 | Q25: 0 | R25: 1
A27: Goalie | B27: W | C27: OT | D27: SO | E27: Gls | F27: Ast | G27: GAA | H27: SP | I27: PTS | K27: W | L27: OT | M27: SO | N27: Gls | O27: Ast | P27: GAA | Q27: SP | R27: PTS
A28: Jake Oettinger | B28: 1 | C28: 0 | D28: 0 | E28: 0 | F28: 0 | G28: 2.02 | H28: 0.935 | I28: =((3*B28)+C28+(3*D28)+(10*E28)+(3*F28)+G29+H29) -> 9 | K28: 3 | L28: 0 | M28: 0 | N28: 0 | O28: 0 | P28: 2.95 | Q28: 0.905 | R28: =((3*K28)+L28+(3*M28)+(10*N28)+(3*O28)+P29+Q29) -> 15
B29: 4 | C29: 118.83 | D29: 58 | E29: 62 | G29: 2 | H29: 4 | I29: =((3*B28)+C28+(3*D28)+(10*E28)+(3*F28)+G29+H29) -> 9 | P29: 2 | Q29: 4 | R29: =((2*K28)+L28+(3*M28)+(10*N28)+(3*O28)+P29+Q29) -> 12
A30: Darcy Kuemper | B30: 0 | C30: 1 | D30: 0 | E30: 0 | F30: 0 | G30: 2.85 | H30: 0.885 | I30: =((3*B30)+C30+(3*D30)+(10*E30)+(3*F30)+G31+H31) -> 2 | K30: 0 | L30: 1 | M30: 0 | N30: 0 | O30: 0 | P30: 3.35 | Q30: 0.868 | R30: =((3*K30)+L30+(3*M30)+(10*N30)+(3*O30)+P31+Q31) -> 2
B31: 3 | C31: 63.24 | D31: 23 | E31: 26 | G31: 1 | H31: 0 | I31: =((3*B30)+C30+(3*D30)+(10*E30)+(3*F30)+G31+H31) -> 2 | P31: 1 | Q31: 0 | R31: =((2*K30)+L30+(3*M30)+(10*N30)+(3*O30)+P31+Q31) -> 2
D32: All Playes Scoring This Week | N32: Cumulative Points
B33: Gls | C33: Ast | D33: PP | E33: SH | F33: GW | G33: OT | H33: PSG | K33: Gls | L33: Ast | M33: PP | N33: SH | O33: GW | P33: OT | Q33: PSG | R33: PTS
A34: Forwards | B34: =SUM(B5:B15) -> 13 | C34: =SUM(C5:C15) -> 21 | D34: 4 | E34: 0 | F34: 4 | G34: 1 | H34: 0 | K34: 22 | L34: 30 | M34: 5 | N34: 1 | O34: 6 | P34: 2 | Q34: 0 | R34: =(K34+L34+M34+(2*N34)+(2*O34)+P34+(4*Q34)) -> 73
A35: Defense | B35: =SUM(B19:B25) -> 2 | C35: =SUM(C19:C25) -> 9 | D35: 0 | E35: 0 | F35: 0 | G35: 0 | H35: 0 | K35: 4 | L35: 16 | M35: 0 | N35: 0 | O35: 0 | P35: 0 | Q35: 0 | R35: =(K35+L35+M35+(2*N35)+(2*O35)+P35+(4*Q35)) -> 20
A36: Total Scorers | B36: =SUM(B34:B35) -> 15 | C36: =SUM(C34:C35) -> 30 | D36: 4 | E36: 0 | F36: 4 | G36: 1 | H36: 0 | K36: =SUM(K34:K35) -> 26 | L36: 46 | M36: 5 | N36: 1 | O36: 6 | P36: 2 | Q36: 0 | R36: =(K36+L36+M36+(2*N36)+(2*O36)+P36+(4*Q36)) -> 93
B37: W | C37: OT | D37: SO | E37: Gls | F37: Ast | G37: GAA | H37: SP | K37: W | L37: OT | M37: SO | N37: Gls | O37: Ast | P37: GAA | Q37: SP | R37: PTS
A38: Goalie Totals | B38: =SUM(B28,B30) -> 1 | C38: =SUM(C28,C30) -> 1 | D38: =SUM(D28,D30) -> 0 | E38: =SUM(E28,E30) -> 0 | F38: =SUM(F28,F30) -> 0 | G38: =IF(C39=0,0,B39/(C39/60)) -> 2.306805075 | H38: =IF(E39=0,0,D39/E39) -> 0.9204545455 | K38: 3 | L38: 1 | M38: 0 | N38: 0 | O38: 0 | P38: =IF(L39=0,0,K39/(L39/60)) -> 3.121674353 | Q38: =IF(N39=0,0,M39/N39) -> 0.8910891089 | R38: =((3*K38)+L38+(3*M38)+(10*N38)+(3*O38)+P39+Q39) -> 17
B39: =SUM(B29,B31) -> 7 | C39: =SUM(C29,C31) -> 182.07 | D39: =SUM(D29,D31) -> 81 | E39: =SUM(E29,E31) -> 88 | K39: 22 | L39: 422.85 | M39: 180 | N39: 202 | P39: 3 | Q39: 4
K40: GA | L40: Time | M40: Saves | N40: Shots
B42: Injured Reserve | M42: This Weeks Totals
A43: Player | B43: P | C43: GP | D43: IR Weeks | E43: Pts | L43: Forwards | N43: =SUM(I5:I12) -> 44
B44: F | L44: Defense | N44: =SUM(I19:I23) -> 10
B45: D | L45: Goalie | N45: =I28 -> 9
B46: G
B47: Flex | L47: Total Points | N47: =SUM(N43:N45) -> 63
A56: Team Record | B56: W | C56: L | D56: T | E56: Pts | F56: CP | G56: BPF | H56: BFA | I56: Streak
A57: Slappers | B57: 1 | C57: 1 | D57: 0 | E57: =2*B57+D57 -> 2 | F57: =R36+R38 -> 110 | G57: =SUM(B61,B65,B69,B73,B77,F61,F65,F69,F73,F77,J61,J65,J69,J73,J77,N61,N65,N69,N73,N77,R61,R65) -> 101 | H57: =SUM(B62,B66,B70,B74,B78,F62,F66,F70,F74,F78,J62,J66,J70,J74,J78,N62,N66,N70,N74,N78,R62,R66) -> 110 | I57: Won 1
A60: Game 1 | B60: Score | D60: Game 6 | F60: Score | H60: Game 11 | J60: Score | L60: Game 16 | N60: Score | P60: Game 21 | R60: Score
A61: Slappers | B61: 38 | D61: Slappers | F61: 0 | H61: Slappers | J61: 0 | L61: Slappers | N61: 0 | P61: Slappers | R61: 0
A62: Just Chillin | B62: 49 | D62: Team LIRHL | F62: 0 | H62: Damn Yankees | J62: 0 | L62: Grumpy Old Men | N62: 0 | P62: Fantasy Hockey Club | R62: 0
A64: Game 2 | B64: Score | D64: Game 7 | F64: Score | H64: Game 12 | J64: Score | L64: Game 17 | N64: Score | P64: Game 22 | R64: Score
A65: Slappers | B65: 63 | D65: Slappers | F65: 0 | H65: Slappers | J65: 0 | L65: Slappers | N65: 0 | P65: Slappers | R65: 0
A66: Damn Yankees | B66: 61 | D66: Riketorians | F66: 0 | H66: Just Chillin | J66: 0 | L66: Shawnee Tribe | N66: 0 | P66: Just Chillin | R66: 0
A68: Game 3 | B68: Score | D68: Game 8 | F68: Score | H68: Game 13 | J68: Score | L68: Game 18 | N68: Score
A69: Slappers | B69: 0 | D69: Slappers | F69: 0 | H69: Slappers | J69: 0 | L69: Slappers | N69: 0
A70: Shawnee Tribe | B70: 0 | D70: Shawnee Tribe | F70: 0 | H70: Fantasy Hockey Club | J70: 0 | L70: District 5 | N70: 0
A72: Game 4 | B72: Score | D72: Game 9 | F72: Score | H72: Game 14 | J72: Score | L72: Game 19 | N72: Score
A73: Slappers | B73: 0 | D73: Slappers | F73: 0 | H73: Slappers | J73: 0 | L73: Slappers | N73: 0
A74: District 5 | B74: 0 | D74: Highlanders | F74: 0 | H74: District 5 | J74: 0 | L74: Riketorians | N74: 0
A76: Game 5 | B76: Score | D76: Game 10 | F76: Score | H76: Game 15 | J76: Score | L76: Game 20 | N76: Score
A77: Slappers | B77: 0 | D77: Slappers | F77: 0 | H77: Slappers | J77: 0 | L77: Slappers | N77: 0
A78: Highlanders | B78: 0 | D78: Grumpy Old Men | F78: 0 | H78: Highlanders | J78: 0 | L78: Team LIRHL | N78: 0

Sheet Boxscores
A1: Box Scores Week 1 | G1: Box Scores Week 2
A3: Grumpy Old Men | B3: 34 | C3: 6 | D3: 19 | E3: 59 | G3: Grumpy Old Men | H3: 35 | I3: 10 | J3: 8 | K3: 53
A4: Fantasy Hockey Club | B4: 36 | C4: 7 | D4: 9 | E4: 52 | G4: Team LIRHL | H4: 33 | I4: 8 | J4: 3 | K4: 44
A6: Team LIRHL | B6: 23 | C6: 9 | D6: 15 | E6: 47 | G6: Fantasy Hockey Club | H6: 43 | I6: 16 | J6: 11 | K6: 70
A7: Damn Yankees | B7: 23 | C7: 5 | D7: 13 | E7: 41 | G7: Riketorians | H7: 27 | I7: 10 | J7: 2 | K7: 39
A9: Riketorians | B9: 22 | C9: 5 | D9: 15 | E9: 42 | G9: Damn Yankees | H9: 30 | I9: 13 | J9: 18 | K9: 61
A10: District 5 | B10: 25 | C10: 6 | D10: 11 | E10: 42 | G10: Slappers | H10: 44 | I10: 10 | J10: 9 | K10: 63
A12: Slappers | B12: 25 | C12: 7 | D12: 6 | E12: 38 | G12: District 5 | H12: 43 | I12: 13 | J12: 6 | K12: 62
A13: Just Chillin | B13: 34 | C13: 12 | D13: 3 | E13: 49 | G13: Shawnee Tribe | H13: 24 | I13: 6 | J13: 3 | K13: 33
A15: Highlanders | B15: 35 | C15: 23 | D15: 11 | E15: 69 | G15: Just Chillin | H15: 46 | I15: 8 | J15: 13 | K15: 67
A16: Shawnee Tribe | B16: 20 | C16: 9 | D16: 4 | E16: 33 | G16: Highlanders | H16: 41 | I16: 4 | J16: 4 | K16: 49
A18: Box Scores Week 3 | G18: Box Scores Week 4
A20: Grumpy Old Men | B20: 0 | C20: 0 | D20: 0 | E20: 0 | G20: Grumpy Old Men | H20: 0 | I20: 0 | J20: 0 | K20: 0
A21: Riketorians | B21: 0 | C21: 0 | D21: 0 | E21: 0 | G21: Damn Yankees | H21: 0 | I21: 0 | J21: 0 | K21: 0
A23: Fantasy Hockey Club | B23: 0 | C23: 0 | D23: 0 | E23: 0 | G23: Fantasy Hockey Club | H23: 0 | I23: 0 | J23: 0 | K23: 0
A24: Damn Yankees | B24: 0 | C24: 0 | D24: 0 | E24: 0 | G24: Highlanders | H24: 0 | I24: 0 | J24: 0 | K24: 0
A26: Team LIRHL | B26: 0 | C26: 0 | D26: 0 | E26: 0 | G26: Team LIRHL | H26: 0 | I26: 0 | J26: 0 | K26: 0
A27: Just Chillin | B27: 0 | C27: 0 | D27: 0 | E27: 0 | G27: Riketorians | H27: 0 | I27: 0 | J27: 0 | K27: 0
A29: District 5 | B29: 0 | C29: 0 | D29: 0 | E29: 0 | G29: District 5 | H29: 0 | I29: 0 | J29: 0 | K29: 0
A30: Highlanders | B30: 0 | C30: 0 | D30: 0 | E30: 0 | G30: Slappers | H30: 0 | I30: 0 | J30: 0 | K30: 0
A32: Slappers | B32: 0 | C32: 0 | D32: 0 | E32: 0 | G32: Just Chillin | H32: 0 | I32: 0 | J32: 0 | K32: 0
A33: Shawnee Tribe | B33: 0 | C33: 0 | D33: 0 | E33: 0 | G33: Shawnee Tribe | H33: 0 | I33: 0 | J33: 0 | K33: 0
A35: Box Scores Week 5 | G35: Box Scores Week 6
A37: Grumpy Old Men | B37: 0 | C37: 0 | D37: 0 | E37: 0 | G37: Grumpy Old Men | H37: 0 | I37: 0 | J37: 0 | K37: 0
A38: Shawnee Tribe | B38: 0 | C38: 0 | D38: 0 | E38: 0 | G38: Highlanders | H38: 0 | I38: 0 | J38: 0 | K38: 0
A40: Fantasy Hockey Club | B40: 0 | C40: 0 | D40: 0 | E40: 0 | G40: Fantasy Hockey Club | H40: 0 | I40: 0 | J40: 0 | K40: 0
A41: Team LIRHL | B41: 0 | C41: 0 | D41: 0 | E41: 0 | G41: Just Chillin | H41: 0 | I41: 0 | J41: 0 | K41: 0
A43: Damn Yankees | B43: 0 | C43: 0 | D43: 0 | E43: 0 | G43: Team LIRHL | H43: 0 | I43: 0 | J43: 0 | K43: 0
A44: Riketorians | B44: 0 | C44: 0 | D44: 0 | E44: 0 | G44: Slappers | H44: 0 | I44: 0 | J44: 0 | K44: 0
A46: District 5 | B46: 0 | C46: 0 | D46: 0 | E46: 0 | G46: Damn Yankees | H46: 0 | I46: 0 | J46: 0 | K46: 0
A47: Just Chillin | B47: 0 | C47: 0 | D47: 0 | E47: 0 | G47: District 5 | H47: 0 | I47: 0 | J47: 0 | K47: 0
A49: Slappers | B49: 0 | C49: 0 | D49: 0 | E49: 0 | G49: Riketorians | H49: 0 | I49: 0 | J49: 0 | K49: 0
A50: Highlanders | B50: 0 | C50: 0 | D50: 0 | E50: 0 | G50: Shawnee Tribe | H50: 0 | I50: 0 | J50: 0 | K50: 0
A52: Box Scores Week 7 | G52: Box Scores Week 8
A54: Grumpy Old Men | B54: 0 | C54: 0 | D54: 0 | E54: 0 | G54: Grumpy Old Men | H54: 0 | I54: 0 | J54: 0 | K54: 0
A55: Just Chillin | B55: 0 | C55: 0 | D55: 0 | E55: 0 | G55: Damn Yankees | H55: 0 | I55: 0 | J55: 0 | K55: 0
A57: Fantasy Hockey Club | B57: 0 | C57: 0 | D57: 0 | E57: 0 | G57: Fantasy Hockey Club | H57: 0 | I57: 0 | J57: 0 | K57: 0
A58: Shawnee Tribe | B58: 0 | C58: 0 | D58: 0 | E58: 0 | G58: Team LIRHL | H58: 0 | I58: 0 | J58: 0 | K58: 0
A60: Team LIRHL | B60: 0 | C60: 0 | D60: 0 | E60: 0 | G60: Riketorians | H60: 0 | I60: 0 | J60: 0 | K60: 0
A61: District 5 | B61: 0 | C61: 0 | D61: 0 | E61: 0 | G61: Just Chillin | H61: 0 | I61: 0 | J61: 0 | K61: 0
A63: Damn Yankees | B63: 0 | C63: 0 | D63: 0 | E63: 0 | G63: District 5 | H63: 0 | I63: 0 | J63: 0 | K63: 0
A64: Highlanders | B64: 0 | C64: 0 | D64: 0 | E64: 0 | G64: Highlanders | H64: 0 | I64: 0 | J64: 0 | K64: 0
A66: Riketorians | B66: 0 | C66: 0 | D66: 0 | E66: 0 | G66: Slappers | H66: 0 | I66: 0 | J66: 0 | K66: 0
A67: Slappers | B67: 0 | C67: 0 | D67: 0 | E67: 0 | G67: Shawnee Tribe | H67: 0 | I67: 0 | J67: 0 | K67: 0
A69: Box Scores Week 9 | G69: Box Scores Week 10
A71: Grumpy Old Men | B71: 0 | C71: 0 | D71: 0 | E71: 0 | G71: Grumpy Old Men | H71: 0 | I71: 0 | J71: 0 | K71: 0
A72: Team LIRHL | B72: 0 | C72: 0 | D72: 0 | E72: 0 | G72: Slappers | H72: 0 | I72: 0 | J72: 0 | K72: 0
A74: Fantasy Hockey Club | B74: 0 | C74: 0 | D74: 0 | E74: 0 | G74: Fantasy Hockey Club | H74: 0 | I74: 0 | J74: 0 | K74: 0
A75: Riketorians | B75: 0 | C75: 0 | D75: 0 | E75: 0 | G75: District 5 | H75: 0 | I75: 0 | J75: 0 | K75: 0
A77: Damn Yankees | B77: 0 | C77: 0 | D77: 0 | E77: 0 | G77: Team LIRHL | H77: 0 | I77: 0 | J77: 0 | K77: 0
A78: Shawnee Tribe | B78: 0 | C78: 0 | D78: 0 | E78: 0 | G78: Shawnee Tribe | H78: 0 | I78: 0 | J78: 0 | K78: 0
A80: District 5 | B80: 0 | C80: 0 | D80: 0 | E80: 0 | G80: Damn Yankees | H80: 0 | I80: 0 | J80: 0 | K80: 0
A81: Just Chillin | B81: 0 | C81: 0 | D81: 0 | E81: 0 | G81: Just Chillin | H81: 0 | I81: 0 | J81: 0 | K81: 0
A83: Slappers | B83: 0 | C83: 0 | D83: 0 | E83: 0 | G83: Riketorians | H83: 0 | I83: 0 | J83: 0 | K83: 0
A84: Highlanders | B84: 0 | C84: 0 | D84: 0 | E84: 0 | G84: Highlanders | H84: 0 | I84: 0 | J84: 0 | K84: 0
A86: Box Scores Week 11 | G86: Box Scores Week 12
A88: Grumpy Old Men | B88: 0 | C88: 0 | D88: 0 | E88: 0 | G88: Grumpy Old Men | H88: 0 | I88: 0 | J88: 0 | K88: 0
A89: Just Chillin | B89: 0 | C89: 0 | D89: 0 | E89: 0 | G89: District 5 | H89: 0 | I89: 0 | J89: 0 | K89: 0
A91: Fantasy Hockey Club | B91: 0 | C91: 0 | D91: 0 | E91: 0 | G91: Fantasy Hockey Club | H91: 0 | I91: 0 | J91: 0 | K91: 0
A92: Shawnee Tribe | B92: 0 | C92: 0 | D92: 0 | E92: 0 | G92: Damn Yankees | H92: 0 | I92: 0 | J92: 0 | K92: 0
A94: Team LIRHL | B94: 0 | C94: 0 | D94: 0 | E94: 0 | G94: Team LIRHL | H94: 0 | I94: 0 | J94: 0 | K94: 0
A95: Highlanders | B95: 0 | C95: 0 | D95: 0 | E95: 0 | G95: Riketorians | H95: 0 | I95: 0 | J95: 0 | K95: 0
A97: Damn Yankees | B97: 0 | C97: 0 | D97: 0 | E97: 0 | G97: Slappers | H97: 0 | I97: 0 | J97: 0 | K97: 0
A98: Slappers | B98: 0 | C98: 0 | D98: 0 | E98: 0 | G98: Just Chillin | H98: 0 | I98: 0 | J98: 0 | K98: 0
A100: Riketorians | B100: 0 | C100: 0 | D100: 0 | E100: 0 | G100: Highlanders | H100: 0 | I100: 0 | J100: 0 | K100: 0
A101: District 5 | B101: 0 | C101: 0 | D101: 0 | E101: 0 | G101: Shawnee Tribe | H101: 0 | I101: 0 | J101: 0 | K101: 0
A103: Box Scores Week 13 | G103: Box Scores Week 14
A105: Grumpy Old Men | B105: 0 | C105: 0 | D105: 0 | E105: 0 | G105: Grumpy Old Men | H105: 0 | I105: 0 | J105: 0 | K105: 0
A106: Riketorians | B106: 0 | C106: 0 | D106: 0 | E106: 0 | G106: Fantasy Hockey Club | H106: 0 | I106: 0 | J106: 0 | K106: 0
A108: Fantasy Hockey Club | B108: 0 | C108: 0 | D108: 0 | E108: 0 | G108: Team LIRHL | H108: 0 | I108: 0 | J108: 0 | K108: 0
A109: Slappers | B109: 0 | C109: 0 | D109: 0 | E109: 0 | G109: Highlanders | H109: 0 | I109: 0 | J109: 0 | K109: 0
A111: Team LIRHL | B111: 0 | C111: 0 | D111: 0 | E111: 0 | G111: Damn Yankees | H111: 0 | I111: 0 | J111: 0 | K111: 0
A112: Damn Yankees | B112: 0 | C112: 0 | D112: 0 | E112: 0 | G112: Riketorians | H112: 0 | I112: 0 | J112: 0 | K112: 0
A114: District 5 | B114: 0 | C114: 0 | D114: 0 | E114: 0 | G114: District 5 | H114: 0 | I114: 0 | J114: 0 | K114: 0
A115: Shawnee Tribe | B115: 0 | C115: 0 | D115: 0 | E115: 0 | G115: Slappers | H115: 0 | I115: 0 | J115: 0 | K115: 0
A117: Just Chillin | B117: 0 | C117: 0 | D117: 0 | E117: 0 | G117: Just Chillin | H117: 0 | I117: 0 | J117: 0 | K117: 0
A118: Highlanders | B118: 0 | C118: 0 | D118: 0 | E118: 0 | G118: Shawnee Tribe | H118: 0 | I118: 0 | J118: 0 | K118: 0
A120: Box Scores Week 15 | G120: Box Scores Week 16
A122: Grumpy Old Men | B122: 0 | C122: 0 | D122: 0 | E122: 0 | G122: Grumpy Old Men | H122: 0 | I122: 0 | J122: 0 | K122: 0
A123: Shawnee Tribe | B123: 0 | C123: 0 | D123: 0 | E123: 0 | G123: Slappers | H123: 0 | I123: 0 | J123: 0 | K123: 0
A125: Fantasy Hockey Club | B125: 0 | C125: 0 | D125: 0 | E125: 0 | G125: Fantasy Hockey Club | H125: 0 | I125: 0 | J125: 0 | K125: 0
A126: Damn Yankees | B126: 0 | C126: 0 | D126: 0 | E126: 0 | G126: District 5 | H126: 0 | I126: 0 | J126: 0 | K126: 0
A128: Team LIRHL | B128: 0 | C128: 0 | D128: 0 | E128: 0 | G128: Team LIRHL | H128: 0 | I128: 0 | J128: 0 | K128: 0
A129: Riketorians | B129: 0 | C129: 0 | D129: 0 | E129: 0 | G129: Just Chillin | H129: 0 | I129: 0 | J129: 0 | K129: 0
A131: District 5 | B131: 0 | C131: 0 | D131: 0 | E131: 0 | G131: Damn Yankees | H131: 0 | I131: 0 | J131: 0 | K131: 0
A132: Just Chillin | B132: 0 | C132: 0 | D132: 0 | E132: 0 | G132: Highlanders | H132: 0 | I132: 0 | J132: 0 | K132: 0
A134: Slappers | B134: 0 | C134: 0 | D134: 0 | E134: 0 | G134: Riketorians | H134: 0 | I134: 0 | J134: 0 | K134: 0
A135: Highlanders | B135: 0 | C135: 0 | D135: 0 | E135: 0 | G135: Shawnee Tribe | H135: 0 | I135: 0 | J135: 0 | K135: 0
A137: Box Scores Week 17 | G137: Box Scores Week 18
A139: Grumpy Old Men | B139: 0 | C139: 0 | D139: 0 | E139: 0 | G139: Grumpy Old Men | H139: 0 | I139: 0 | J139: 0 | K139: 0
A140: Team LIRHL | B140: 0 | C140: 0 | D140: 0 | E140: 0 | G140: Damn Yankees | H140: 0 | I140: 0 | J140: 0 | K140: 0
A142: Fantasy Hockey Club | B142: 0 | C142: 0 | D142: 0 | E142: 0 | G142: Fantasy Hockey Club | H142: 0 | I142: 0 | J142: 0 | K142: 0
A143: Riketorians | B143: 0 | C143: 0 | D143: 0 | E143: 0 | G143: Team LIRHL | H143: 0 | I143: 0 | J143: 0 | K143: 0
A145: Damn Yankees | B145: 0 | C145: 0 | D145: 0 | E145: 0 | G145: Riketorians | H145: 0 | I145: 0 | J145: 0 | K145: 0
A146: Just Chillin | B146: 0 | C146: 0 | D146: 0 | E146: 0 | G146: Highlanders | H146: 0 | I146: 0 | J146: 0 | K146: 0
A148: District 5 | B148: 0 | C148: 0 | D148: 0 | E148: 0 | G148: District 5 | H148: 0 | I148: 0 | J148: 0 | K148: 0
A149: Highlanders | B149: 0 | C149: 0 | D149: 0 | E149: 0 | G149: Slappers | H149: 0 | I149: 0 | J149: 0 | K149: 0
A151: Slappers | B151: 0 | C151: 0 | D151: 0 | E151: 0 | G151: Just Chillin | H151: 0 | I151: 0 | J151: 0 | K151: 0
A152: Shawnee Tribe | B152: 0 | C152: 0 | D152: 0 | E152: 0 | G152: Shawnee Tribe | H152: 0 | I152: 0 | J152: 0 | K152: 0
A154: Box Scores Week 19 | G154: Box Scores Week 20
A156: Grumpy Old Men | B156: 0 | C156: 0 | D156: 0 | E156: 0 | G156: Grumpy Old Men | H156: 0 | I156: 0 | J156: 0 | K156: 0
A157: Highlanders | B157: 0 | C157: 0 | D157: 0 | E157: 0 | G157: District 5 | H157: 0 | I157: 0 | J157: 0 | K157: 0
A159: Fantasy Hockey Club | B159: 0 | C159: 0 | D159: 0 | E159: 0 | G159: Fantasy Hockey Club | H159: 0 | I159: 0 | J159: 0 | K159: 0
A160: Just Chillin | B160: 0 | C160: 0 | D160: 0 | E160: 0 | G160: Highlanders | H160: 0 | I160: 0 | J160: 0 | K160: 0
A162: Team LIRHL | B162: 0 | C162: 0 | D162: 0 | E162: 0 | G162: Team LIRHL | H162: 0 | I162: 0 | J162: 0 | K162: 0
A163: Shawnee Tribe | B163: 0 | C163: 0 | D163: 0 | E163: 0 | G163: Slappers | H163: 0 | I163: 0 | J163: 0 | K163: 0
A165: Damn Yankees | B165: 0 | C165: 0 | D165: 0 | E165: 0 | G165: Damn Yankees | H165: 0 | I165: 0 | J165: 0 | K165: 0
A166: District 5 | B166: 0 | C166: 0 | D166: 0 | E166: 0 | G166: Shawnee Tribe | H166: 0 | I166: 0 | J166: 0 | K166: 0
A168: Riketorians | B168: 0 | C168: 0 | D168: 0 | E168: 0 | G168: Riketorians | H168: 0 | I168: 0 | J168: 0 | K168: 0
A169: Slappers | B169: 0 | C169: 0 | D169: 0 | E169: 0 | G169: Just Chillin | H169: 0 | I169: 0 | J169: 0 | K169: 0
A171: Box Scores Week 21 | G171: Box Scores Week 22
A173: Grumpy Old Men | B173: 0 | C173: 0 | D173: 0 | E173: 0 | G173: Grumpy Old Men | H173: 0 | I173: 0 | J173: 0 | K173: 0
A174: Riketorians | B174: 0 | C174: 0 | D174: 0 | E174: 0 | G174: Fantasy Hockey Club | H174: 0 | I174: 0 | J174: 0 | K174: 0
A176: Fantasy Hockey Club | B176: 0 | C176: 0 | D176: 0 | E176: 0 | G176: Team LIRHL | H176: 0 | I176: 0 | J176: 0 | K176: 0
A177: Slappers | B177: 0 | C177: 0 | D177: 0 | E177: 0 | G177: District 5 | H177: 0 | I177: 0 | J177: 0 | K177: 0
A179: Team LIRHL | B179: 0 | C179: 0 | D179: 0 | E179: 0 | G179: Damn Yankees | H179: 0 | I179: 0 | J179: 0 | K179: 0
A180: Damn Yankees | B180: 0 | C180: 0 | D180: 0 | E180: 0 | G180: Riketorians | H180: 0 | I180: 0 | J180: 0 | K180: 0
A182: District 5 | B182: 0 | C182: 0 | D182: 0 | E182: 0 | G182: Slappers | H182: 0 | I182: 0 | J182: 0 | K182: 0
A183: Shawnee Tribe | B183: 0 | C183: 0 | D183: 0 | E183: 0 | G183: Just Chillin | H183: 0 | I183: 0 | J183: 0 | K183: 0
A185: Just Chillin | B185: 0 | C185: 0 | D185: 0 | E185: 0 | G185: Highlanders | H185: 0 | I185: 0 | J185: 0 | K185: 0
A186: Highlanders | B186: 0 | C186: 0 | D186: 0 | E186: 0 | G186: Shawnee Tribe | H186: 0 | I186: 0 | J186: 0 | K186: 0

Sheet Weekly Calc
A1: Forwards | C1: Points | E1: Defense | G1: Points | I1: Goalie | K1: Points
A2: ='Fantasy Hockey Club'!A5 -> Cole Caufield | B2: (FHC) | C2: ='Fantasy Hockey Club'!I5 -> 11 | E2: ='District 5'!A19 -> Cale Makar | F2: (DI5) | G2: ='District 5'!I19 -> 6 | I2: ='Damn Yankees'!A28 -> Scott Wedgewood | J2: (DYK) | K2: ='Damn Yankees'!I28 -> 18
A3: =Highlanders!A5 -> Seth Jarvis | B3: (HGL) | C3: =Highlanders!I5 -> 11 | E3: ='Fantasy Hockey Club'!A19 -> Jakob Chychrun | F3: (FHC) | G3: ='Fantasy Hockey Club'!I19 -> 4 | I3: ='Just Chillin'!A28 -> Connor Hellebuyck | J3: (JCH) | K3: ='Just Chillin'!I28 -> 13
A4: =Slappers!A5 -> Auston Matthews | B4: (SLP) | C4: =Slappers!I5 -> 10 | E4: ='Fantasy Hockey Club'!A20 -> Shayne Gostisbehere | F4: (FHC) | G4: ='Fantasy Hockey Club'!I20 -> 4 | I4: ='Just Chillin'!A30 -> Jordan Binnington | J4: (JCH) | K4: ='Just Chillin'!I30 -> 12
A5: ='Just Chillin'!A5 -> Jack Eichel | B5: (JCH) | C5: ='Just Chillin'!I5 -> 10 | E5: ='Damn Yankees'!A19 -> Quinn Hughes | F5: (DYK) | G5: ='Damn Yankees'!I19 -> 4 | I5: ='Fantasy Hockey Club'!A28 -> Logan Thompson | J5: (FHC) | K5: ='Fantasy Hockey Club'!I28 -> 11
A6: ='Grumpy Old Men'!A5 -> Mark Stone | B6: (GOM) | C6: ='Grumpy Old Men'!I5 -> 9 | E6: =Riketorians!A19 -> Jake Sanderson | F6: (RIK) | G6: =Riketorians!I19 -> 4 | I6: =Slappers!A28 -> Jake Oettinger | J6: (SLP) | K6: =Slappers!I28 -> 9
A7: ='District 5'!A5 -> Tomas Hertl | B7: (DI5) | C7: ='District 5'!I5 -> 9 | E7: ='Fantasy Hockey Club'!A21 -> Rasmus Dahlin | F7: (FHC) | G7: ='Fantasy Hockey Club'!I21 -> 4 | I7: ='Grumpy Old Men'!A28 -> Igor Shesterkin | J7: (GOM) | K7: ='Grumpy Old Men'!I28 -> 8
A8: ='Fantasy Hockey Club'!A6 -> Bo Horvat | B8: (FHC) | C8: ='Fantasy Hockey Club'!I6 -> 9 | E8: ='Just Chillin'!A19 -> Roman Josi | F8: (JCH) | G8: ='Just Chillin'!I19 -> 3 | I8: ='Fantasy Hockey Club'!A30 -> Adin Hill | J8: (FHC) | K8: ='Fantasy Hockey Club'!I30 -> 7
A9: ='Team LIRHL'!A5 -> Dylan Larkin | B9: (LIR) | C9: ='Team LIRHL'!I5 -> 9 | E9: ='Shawnee Tribe'!A19 -> Lane Hutson | F9: (SHW) | G9: ='Shawnee Tribe'!I19 -> 3 | I9: ='District 5'!A28 -> Juuse Saros | J9: (DI5) | K9: ='District 5'!I28 -> 6
A10: =Slappers!A6 -> Jack Hughes | B10: (SLP) | C10: =Slappers!I6 -> 8 | E10: ='Grumpy Old Men'!A19 -> Matthew Schaefer | F10: (GOM) | G10: ='Grumpy Old Men'!I19 -> 3 | I10: ='Damn Yankees'!A30 -> Andrei Vasilevskiy | J10: (DYK) | K10: ='Damn Yankees'!I30 -> 6
A11: ='Damn Yankees'!A5 -> Nick Schmaltz | B11: (DYK) | C11: ='Damn Yankees'!I5 -> 8 | E11: ='Team LIRHL'!A19 -> Zeev Buium | F11: (LIR) | G11: ='Team LIRHL'!I19 -> 3 | I11: ='Grumpy Old Men'!A30 -> Anthony Stolarz | J11: (GOM) | K11: ='Grumpy Old Men'!I30 -> 5
A12: ='District 5'!A6 -> Matthew Knies | B12: (DI5) | C12: ='District 5'!I6 -> 8 | E12: ='Team LIRHL'!A20 -> Brent Burns | F12: (LIR) | G12: ='Team LIRHL'!I20 -> 3 | I12: =Highlanders!A28 -> Thatcher Demko | J12: (HGL) | K12: =Highlanders!I28 -> 4
A13: =Highlanders!A6 -> Mitchell Marner | B13: (HGL) | C13: =Highlanders!I6 -> 7 | E13: =Slappers!A19 -> Travis Sanheim | F13: (SLP) | G13: =Slappers!I19 -> 3 | I13: ='Team LIRHL'!A28 -> Linus Ullmark | J13: (LIR) | K13: ='Team LIRHL'!I28 -> 3
A14: ='Just Chillin'!A6 -> Sidney Crosby | B14: (JCH) | C14: ='Just Chillin'!I6 -> 7 | E14: =Riketorians!A20 -> Erik Karlsson | F14: (RIK) | G14: =Riketorians!I20 -> 3 | I14: ='Shawnee Tribe'!A28 -> Sam Montembeault | J14: (SHW) | K14: ='Shawnee Tribe'!I28 -> 3
A15: =Riketorians!A5 -> Tom Wilson | B15: (RIK) | C15: =Riketorians!I5 -> 7 | E15: ='Grumpy Old Men'!A20 -> Thomas Chabot | F15: (GOM) | G15: ='Grumpy Old Men'!I20 -> 3 | I15: ='Shawnee Tribe'!A30 -> Jacob Markstrom | J15: (SHW) | K15: ='Shawnee Tribe'!I30 -> 3
A16: ='Grumpy Old Men'!A6 -> Chris Kreider | B16: (GOM) | C16: ='Grumpy Old Men'!I6 -> 7 | E16: ='Damn Yankees'!A20 -> Victor Hedman | F16: (DYK) | G16: ='Damn Yankees'!I20 -> 3 | I16: =Highlanders!A30 -> Ilya Sorokin | J16: (HGL) | K16: =Highlanders!I30 -> 3
A17: ='District 5'!A7 -> William Nylander | B17: (DI5) | C17: ='District 5'!I7 -> 7 | E17: ='Damn Yankees'!A21 -> Filip Hronek | F17: (DYK) | G17: ='Damn Yankees'!I21 -> 3 | I17: =Riketorians!A28 -> Sergei Bobrovsky | J17: (RIK) | K17: =Riketorians!I28 -> 2
A18: ='Just Chillin'!A7 -> Mark Scheifele | B18: (JCH) | C18: ='Just Chillin'!I7 -> 6 | E18: ='District 5'!A20 -> Brandon Montour | F18: (DI5) | G18: ='District 5'!I20 -> 3 | I18: =Slappers!A30 -> Darcy Kuemper | J18: (SLP) | K18: =Slappers!I30 -> 2
A19: ='Just Chillin'!A8 -> John Tavares | B19: (JCH) | C19: ='Just Chillin'!I8 -> 6 | E19: =Highlanders!A19 -> Adam Fox | F19: (HGL) | G19: =Highlanders!I19 -> 2 | I19: ='District 5'!A30 -> Filip Gustavsson | J19: (DI5) | K19: ='District 5'!I30 -> 0
A20: ='Just Chillin'!A9 -> Wyatt Johnston | B20: (JCH) | C20: ='Just Chillin'!I9 -> 6 | E20: =Highlanders!A20 -> Thomas Harley | F20: (HGL) | G20: =Highlanders!I20 -> 2 | I20: =Riketorians!A30 -> Dustin Wolf | J20: (RIK) | K20: =Riketorians!I30 -> 0
A21: ='Shawnee Tribe'!A5 -> Artemi Panarin | B21: (SHW) | C21: ='Shawnee Tribe'!I5 -> 6 | E21: ='Shawnee Tribe'!A20 -> Vince Dunn | F21: (SHW) | G21: ='Shawnee Tribe'!I20 -> 2 | I21: ='Team LIRHL'!A30 -> Jeremy Swayman | J21: (LIR) | K21: ='Team LIRHL'!I30 -> 0
A22: =Slappers!A7 -> Timo Meier | B22: (SLP) | C22: =Slappers!I7 -> 6 | E22: ='Just Chillin'!A20 -> Morgan Rielly | F22: (JCH) | G22: ='Just Chillin'!I20 -> 2
A23: =Slappers!A8 -> Dylan Strome | B23: (SLP) | C23: =Slappers!I8 -> 6 | E23: =Slappers!A20 -> Noah Dobson | F23: (SLP) | G23: =Slappers!I20 -> 2
A24: =Highlanders!A7 -> Kirill Kaprizov | B24: (HGL) | C24: =Highlanders!I7 -> 5 | E24: ='Team LIRHL'!A21 -> Alexander Nikishin | F24: (LIR) | G24: ='Team LIRHL'!I21 -> 2
A25: ='Fantasy Hockey Club'!A7 -> Evgeni Malkin | B25: (FHC) | C25: ='Fantasy Hockey Club'!I7 -> 5 | E25: =Riketorians!A21 -> Mike Matheson | F25: (RIK) | G25: =Riketorians!I21 -> 2
A26: =Highlanders!A8 -> Kirill Marchenko | B26: (HGL) | C26: =Highlanders!I8 -> 5 | E26: ='Grumpy Old Men'!A21 -> MacKenzie Weegar | F26: (GOM) | G26: ='Grumpy Old Men'!I21 -> 2
A27: ='District 5'!A8 -> Matt Boldy | B27: (DI5) | C27: ='District 5'!I8 -> 5 | E27: ='Just Chillin'!A21 -> John Carlson | F27: (JCH) | G27: ='Just Chillin'!I21 -> 2
A28: =Slappers!A9 -> Jesper Bratt | B28: (SLP) | C28: =Slappers!I9 -> 5 | E28: =Slappers!A21 -> Ivan Provorov | F28: (SLP) | G28: =Slappers!I21 -> 2
A29: =Slappers!A10 -> Quinton Byfield | B29: (SLP) | C29: =Slappers!I10 -> 5 | E29: ='Damn Yankees'!A22 -> Jared Spurgeon | F29: (DYK) | G29: ='Damn Yankees'!I22 -> 2
A30: ='Damn Yankees'!A6 -> Martin Necas | B30: (DYK) | C30: ='Damn Yankees'!I6 -> 4 | E30: =Slappers!A22 -> Charlie McAvoy | F30: (SLP) | G30: =Slappers!I22 -> 2
A31: =Riketorians!A6 -> Kyle Connor | B31: (RIK) | C31: =Riketorians!I6 -> 4 | E31: ='District 5'!A21 -> Rasmus Andersson | F31: (DI5) | G31: ='District 5'!I21 -> 2
A32: ='Fantasy Hockey Club'!A8 -> Dylan Cozens | B32: (FHC) | C32: ='Fantasy Hockey Club'!I8 -> 4 | E32: ='Fantasy Hockey Club'!A22 -> Brady Skjei | F32: (FHC) | G32: ='Fantasy Hockey Club'!I22 -> 2
A33: ='Fantasy Hockey Club'!A9 -> Sebastian Aho | B33: (FHC) | C33: ='Fantasy Hockey Club'!I9 -> 4 | E33: ='Fantasy Hockey Club'!A23 -> KAndre Miller | F33: (FHC) | G33: ='Fantasy Hockey Club'!I23 -> 2
A34: ='Grumpy Old Men'!A7 -> Nathan MacKinnon | B34: (GOM) | C34: ='Grumpy Old Men'!I7 -> 4 | E34: ='Shawnee Tribe'!A21 -> Bowen Byram | F34: (SHW) | G34: ='Shawnee Tribe'!I21 -> 1
A35: ='Grumpy Old Men'!A8 -> Clayton Keller | B35: (GOM) | C35: ='Grumpy Old Men'!I8 -> 4 | E35: ='Just Chillin'!A22 -> Zach Werenski | F35: (JCH) | G35: ='Just Chillin'!I22 -> 1
A36: ='Team LIRHL'!A6 -> Mikko Rantanen | B36: (LIR) | C36: ='Team LIRHL'!I6 -> 4 | E36: ='District 5'!A22 -> Sam Rinzel | F36: (DI5) | G36: ='District 5'!I22 -> 1
A37: ='Team LIRHL'!A7 -> Adrian Kempe | B37: (LIR) | C37: ='Team LIRHL'!I7 -> 4 | E37: ='Grumpy Old Men'!A22 -> Miro Heiskanen | F37: (GOM) | G37: ='Grumpy Old Men'!I22 -> 1
A38: ='Team LIRHL'!A8 -> Nico Hischier | B38: (LIR) | C38: ='Team LIRHL'!I8 -> 4 | E38: =Slappers!A23 -> Seth Jones | F38: (SLP) | G38: =Slappers!I23 -> 1
A39: ='Shawnee Tribe'!A6 -> Connor McDavid | B39: (SHW) | C39: ='Shawnee Tribe'!I6 -> 4 | E39: =Slappers!A24 -> Drew Doughty | F39: (SLP) | G39: =Slappers!I24 -> 1
A40: ='Damn Yankees'!A7 -> Jake Guentzel | B40: (DYK) | C40: ='Damn Yankees'!I7 -> 4 | E40: ='Damn Yankees'!A23 -> Colton Parayko | F40: (DYK) | G40: ='Damn Yankees'!I23 -> 1
A41: ='Team LIRHL'!A9 -> Roope Hintz | B41: (LIR) | C41: ='Team LIRHL'!I9 -> 4 | E41: ='Grumpy Old Men'!A23 -> Darnell Nurse | F41: (GOM) | G41: ='Grumpy Old Men'!I23 -> 1
A42: ='Fantasy Hockey Club'!A10 -> Artturi Lehkonen | B42: (FHC) | C42: ='Fantasy Hockey Club'!I10 -> 4 | E42: =Riketorians!A22 -> Kris Letang | F42: (RIK) | G42: =Riketorians!I22 -> 1
A43: ='Just Chillin'!A10 -> Aliaksei Protas | B43: (JCH) | C43: ='Just Chillin'!I10 -> 4 | E43: ='District 5'!A23 -> Moritz Seider | F43: (DI5) | G43: ='District 5'!I23 -> 1
A44: ='Just Chillin'!A11 -> Patrick Kane | B44: (JCH) | C44: ='Just Chillin'!I11 -> 4 | E44: ='Fantasy Hockey Club'!A24 -> Brandt Clarke | F44: (FHC) | G44: ='Fantasy Hockey Club'!I24 -> 1
A45: =Highlanders!A9 -> JJ Peterka | B45: (HGL) | C45: =Highlanders!I9 -> 4 | E45: ='Fantasy Hockey Club'!A25 -> Dylan DeMelo | F45: (FHC) | G45: ='Fantasy Hockey Club'!I25 -> 1
A46: ='Damn Yankees'!A8 -> Matt Duchene | B46: (DYK) | C46: ='Damn Yankees'!I8 -> 4 | E46: =Highlanders!A21 -> Aaron Ekblad | F46: (HGL) | G46: =Highlanders!I21 -> 0
A47: ='District 5'!A9 -> Sam Reinhart | B47: (DI5) | C47: ='District 5'!I9 -> 4 | E47: =Highlanders!A22 -> Luke Hughes | F47: (HGL) | G47: =Highlanders!I22 -> 0
A48: ='Damn Yankees'!A9 -> Alex Tuch | B48: (DYK) | C48: ='Damn Yankees'!I9 -> 4 | E48: =Highlanders!A23 -> Darren Raddysh | F48: (HGL) | G48: =Highlanders!I23 -> 0
A49: =Highlanders!A10 -> Nick Suzuki | B49: (HGL) | C49: =Highlanders!I10 -> 4 | E49: ='Shawnee Tribe'!A22 -> John Klingberg | F49: (SHW) | G49: ='Shawnee Tribe'!I22 -> 0
A50: ='District 5'!A10 -> Tage Thompson | B50: (DI5) | C50: ='District 5'!I10 -> 4 | E50: =Highlanders!A24 -> Simon Edvinsson | F50: (HGL) | G50: =Highlanders!I24 -> 0
A51: =Riketorians!A7 -> David Pastrnak | B51: (RIK) | C51: =Riketorians!I7 -> 3 | E51: ='Shawnee Tribe'!A23 -> Shea Theodore | F51: (SHW) | G51: ='Shawnee Tribe'!I23 -> 0
A52: ='Grumpy Old Men'!A9 -> Jake Neighbours | B52: (GOM) | C52: ='Grumpy Old Men'!I9 -> 3 | E52: ='Team LIRHL'!A22 -> Gustav Forsling | F52: (LIR) | G52: ='Team LIRHL'!I22 -> 0
A53: ='Shawnee Tribe'!A7 -> Rickard Rakell | B53: (SHW) | C53: ='Shawnee Tribe'!I7 -> 3 | E53: ='Just Chillin'!A23 -> Cam Fowler | F53: (JCH) | G53: ='Just Chillin'!I23 -> 0
A54: =Riketorians!A8 -> Alex Ovechkin | B54: (RIK) | C54: =Riketorians!I8 -> 3 | E54: =Slappers!A25 -> Dougie Hamilton | F54: (SLP) | G54: =Slappers!I25 -> 0
A55: ='Shawnee Tribe'!A8 -> Macklin Celebrini | B55: (SHW) | C55: ='Shawnee Tribe'!I8 -> 3 | E55: ='Grumpy Old Men'!A24 -> Josh Morrissey | F55: (GOM) | G55: ='Grumpy Old Men'!I24 -> 0
A56: ='Team LIRHL'!A10 -> Kevin Fiala | B56: (LIR) | C56: ='Team LIRHL'!I10 -> 3 | E56: ='Grumpy Old Men'!A25 -> Artem Zub | F56: (GOM) | G56: ='Grumpy Old Men'!I25 -> 0
A57: ='Grumpy Old Men'!A10 -> Mika Zibanejad | B57: (GOM) | C57: ='Grumpy Old Men'!I10 -> 3 | E57: =Riketorians!A23 -> Justin Faulk | F57: (RIK) | G57: =Riketorians!I23 -> 0
A58: ='Shawnee Tribe'!A9 -> Ivan Demidov | B58: (SHW) | C58: ='Shawnee Tribe'!I9 -> 3 | E58: ='Damn Yankees'!A24 -> Sean Durzi | F58: (DYK) | G58: ='Damn Yankees'!I24 -> 0
A59: ='Fantasy Hockey Club'!A11 -> Tyler Toffoli | B59: (FHC) | C59: ='Fantasy Hockey Club'!I11 -> 3 | E59: =Riketorians!A24 -> Devon Toews | F59: (RIK) | G59: =Riketorians!I24 -> 0
A60: ='Grumpy Old Men'!A11 -> Jason Robertson | B60: (GOM) | C60: ='Grumpy Old Men'!I11 -> 3 | E60: =Riketorians!A25 -> Neal Pionk | F60: (RIK) | G60: =Riketorians!I25 -> 0
A61: =Riketorians!A9 -> Brock nelson | B61: (RIK) | C61: =Riketorians!I9 -> 3 | E61: ='Team LIRHL'!A23 -> Elias Pettersson D | F61: (LIR) | G61: ='Team LIRHL'!I23 -> 0
A62: ='Just Chillin'!A12 -> Ryan Nugent-Hopkins | B62: (JCH) | C62: ='Just Chillin'!I12 -> 3 | E62: ='District 5'!A24 -> Anthony DeAngelo | F62: (DI5) | G62: ='District 5'!I24 -> 1
A63: ='Damn Yankees'!A10 -> Mathew Barzal | B63: (DYK) | C63: ='Damn Yankees'!I10 -> 3 | E63: =Highlanders!A25 -> Jackson LaCombe | F63: (HGL) | G63: =Highlanders!I25 -> 0
A64: ='Fantasy Hockey Club'!A12 -> Alex DeBrincat | B64: (FHC) | C64: ='Fantasy Hockey Club'!I12 -> 3 | E64: ='Team LIRHL'!A24 -> Jake Walman | F64: (LIR) | G64: ='Team LIRHL'!I24 -> 0
A65: ='Team LIRHL'!A11 -> Tim Stützle | B65: (LIR) | C65: ='Team LIRHL'!I11 -> 3 | E65: ='Just Chillin'!A24 -> Brock Faber | F65: (JCH) | G65: ='Just Chillin'!I24 -> 0
A66: ='Shawnee Tribe'!A10 -> Jonathan Toews | B66: (SHW) | C66: ='Shawnee Tribe'!I10 -> 3 | E66: ='Shawnee Tribe'!A24 -> Olen Zellweger | F66: (SHW) | G66: ='Shawnee Tribe'!I24 -> 0
A67: =Highlanders!A11 -> Frank Nazar | B67: (HGL) | C67: =Highlanders!I11 -> 3 | E67: ='District 5'!A25 -> Mikhail Sergachev | F67: (DI5) | G67: ='District 5'!I25 -> 0
A68: =Riketorians!A10 -> Connor Bedard | B68: (RIK) | C68: =Riketorians!I10 -> 3 | E68: ='Damn Yankees'!A25 -> Mattias Ekholm | F68: (DYK) | G68: ='Damn Yankees'!I25 -> 0
A69: =Riketorians!A11 -> Drake Batherson | B69: (RIK) | C69: =Riketorians!I11 -> 3 | E69: ='Just Chillin'!A25 -> Noah Hanifin | F69: (JCH) | G69: ='Just Chillin'!I25 -> 0
A70: ='District 5'!A11 -> Brad Marchand | B70: (DI5) | C70: ='District 5'!I11 -> 3 | E70: ='Team LIRHL'!A25 -> Jacob Trouba | F70: (LIR) | G70: ='Team LIRHL'!I25 -> 0
A71: =Slappers!A11 -> Jordan Kyrou | B71: (SLP) | C71: =Slappers!I11 -> 3 | E71: ='Shawnee Tribe'!A25 -> Evan Bouchard | F71: (SHW) | G71: ='Shawnee Tribe'!I25 -> 0
A72: ='District 5'!A12 -> Steven Stamkos | B72: (DI5) | C72: ='District 5'!I12 -> 3
A73: ='Team LIRHL'!A12 -> Nazem Kadri | B73: (LIR) | C73: ='Team LIRHL'!I12 -> 2
A74: ='Fantasy Hockey Club'!A13 -> Pavel Dorofeyev | B74: (FHC) | C74: ='Fantasy Hockey Club'!I13 -> 2
A75: ='Grumpy Old Men'!A12 -> Sam Bennett | B75: (GOM) | C75: ='Grumpy Old Men'!I12 -> 2
A76: =Highlanders!A12 -> Brock Boeser | B76: (HGL) | C76: =Highlanders!I12 -> 2
A77: =Highlanders!A13 -> Marco Rossi | B77: (HGL) | C77: =Highlanders!I13 -> 2
A78: ='Damn Yankees'!A11 -> Jonathan Huberdeau | B78: (DYK) | C78: ='Damn Yankees'!I11 -> 2
A79: ='Fantasy Hockey Club'!A14 -> Leon Draisaitl | B79: (FHC) | C79: ='Fantasy Hockey Club'!I14 -> 2
A80: ='District 5'!A13 -> Owen Tippett | B80: (DI5) | C80: ='District 5'!I13 -> 2
A81: ='Fantasy Hockey Club'!A15 -> Brayden Point | B81: (FHC) | C81: ='Fantasy Hockey Club'!I15 -> 2
A82: ='Team LIRHL'!A13 -> Nikita Kucherov | B82: (LIR) | C82: ='Team LIRHL'!I13 -> 1
A83: ='Shawnee Tribe'!A11 -> Juraj Slafkovský | B83: (SHW) | C83: ='Shawnee Tribe'!I11 -> 1
A84: ='Team LIRHL'!A14 -> Filip Forsberg | B84: (LIR) | C84: ='Team LIRHL'!I14 -> 1
A85: =Riketorians!A12 -> Travis Konecny | B85: (RIK) | C85: =Riketorians!I12 -> 1
A86: =Slappers!A12 -> Dylan Guenther | B86: (SLP) | C86: =Slappers!I12 -> 1
A87: =Slappers!A13 -> Gabriel Vilardi | B87: (SLP) | C87: =Slappers!I13 -> 1
A88: ='Damn Yankees'!A12 -> J.T. Miller | B88: (DYK) | C88: ='Damn Yankees'!I12 -> 1
A89: ='Damn Yankees'!A13 -> Lucas Raymond | B89: (DYK) | C89: ='Damn Yankees'!I13 -> 1
A90: ='Shawnee Tribe'!A12 -> Matvei Michkov | B90: (SHW) | C90: ='Shawnee Tribe'!I12 -> 1
A91: ='Shawnee Tribe'!A13 -> Will Smith | B91: (SHW) | C91: ='Shawnee Tribe'!I13 -> 1
A92: ='Just Chillin'!A13 -> Kent Johnson | B92: (JCH) | C92: ='Just Chillin'!I13 -> 1
A93: ='District 5'!A14 -> Patrik Laine | B93: (DI5) | C93: ='District 5'!I14 -> 1
A94: =Highlanders!A14 -> William Eklund | B94: (HGL) | C94: =Highlanders!I14 -> 1
A95: ='Just Chillin'!A14 -> Anze Kopitar | B95: (JCH) | C95: ='Just Chillin'!I14 -> 1
A96: ='Grumpy Old Men'!A13 -> Joel Eriksson Ek | B96: (GOM) | C96: ='Grumpy Old Men'!I13 -> 1
A97: =Slappers!A14 -> Adam Fantilli | B97: (SLP) | C97: =Slappers!I14 -> 1
A98: =Highlanders!A15 -> Dylan Holloway | B98: (HGL) | C98: =Highlanders!I15 -> 1
A99: ='Damn Yankees'!A14 -> Troy Terry | B99: (DYK) | C99: ='Damn Yankees'!I14 -> 1
A100: =Slappers!A15 -> Logan Cooley | B100: (SLP) | C100: =Slappers!I15 -> 1
A101: ='Shawnee Tribe'!A14 -> Elias Pettersson | B101: (SHW) | C101: ='Shawnee Tribe'!I14 -> 1
A102: =Riketorians!A13 -> Carter Verhaeghe | B102: (RIK) | C102: =Riketorians!I13 -> 0
A103: ='Team LIRHL'!A15 -> Brady Tkachuk | B103: (LIR) | C103: ='Team LIRHL'!I15 -> 0
A104: =Riketorians!A14 -> Vincent Trocheck | B104: (RIK) | C104: =Riketorians!I14 -> 0
A105: =Riketorians!A15 -> Andrei Svechnikov | B105: (RIK) | C105: =Riketorians!I15 -> 0
A106: ='Grumpy Old Men'!A14 -> Matt Coronato | B106: (GOM) | C106: ='Grumpy Old Men'!I14 -> 0
A107: ='Just Chillin'!A15 -> Sean Monahan | B107: (JCH) | C107: ='Just Chillin'!I15 -> 0
A108: ='District 5'!A15 -> Mason McTavish | B108: (DI5) | C108: ='District 5'!I15 -> 0
A109: ='Damn Yankees'!A15 -> Brandon Hagel | B109: (DYK) | C109: ='Damn Yankees'!I15 -> 0
A110: ='Shawnee Tribe'!A15 -> Robert Thomas | B110: (SHW) | C110: ='Shawnee Tribe'!I15 -> 0
A111: ='Grumpy Old Men'!A15 -> Nikolaj Ehlers | B111: (GOM) | C111: ='Grumpy Old Men'!I15 -> 0

Sheet Total Calc
A1: Forwards | C1: Points | E1: Defense | G1: Points | I1: Goalie | K1: Points
A2: =Highlanders!A5 -> Seth Jarvis | B2: (HGL) | C2: =Highlanders!R5 -> 19 | E2: =Highlanders!A19 -> Adam Fox | F2: (HGL) | G2: =Highlanders!R19 -> 9 | I2: ='Damn Yankees'!A28 -> Scott Wedgewood | J2: (DYK) | K2: ='Damn Yankees'!R28 -> 31
A3: ='Just Chillin'!A5 -> Jack Eichel | B3: (JCH) | C3: ='Just Chillin'!R5 -> 17 | E3: ='District 5'!A19 -> Cale Makar | F3: (DI5) | G3: ='District 5'!R19 -> 9 | I3: ='Grumpy Old Men'!A28 -> Igor Shesterkin | J3: (GOM) | K3: ='Grumpy Old Men'!R28 -> 27
A4: ='Fantasy Hockey Club'!A5 -> Cole Caufield | B4: (FHC) | C4: ='Fantasy Hockey Club'!R5 -> 15 | E4: ='Just Chillin'!A20 -> Morgan Rielly | F4: (JCH) | G4: ='Just Chillin'!R20 -> 8 | I4: ='Fantasy Hockey Club'!A28 -> Logan Thompson | J4: (FHC) | K4: ='Fantasy Hockey Club'!R28 -> 20
A5: ='Grumpy Old Men'!A5 -> Mark Stone | B5: (GOM) | C5: ='Grumpy Old Men'!R5 -> 14 | E5: ='Fantasy Hockey Club'!A19 -> Jakob Chychrun | F5: (FHC) | G5: ='Fantasy Hockey Club'!R19 -> 7 | I5: =Riketorians!A28 -> Sergei Bobrovsky | J5: (RIK) | K5: =Riketorians!R28 -> 17
A6: ='Grumpy Old Men'!A7 -> Nathan MacKinnon | B6: (GOM) | C6: ='Grumpy Old Men'!R7 -> 14 | E6: ='Fantasy Hockey Club'!A20 -> Shayne Gostisbehere | F6: (FHC) | G6: ='Fantasy Hockey Club'!R20 -> 7 | I6: ='District 5'!A28 -> Juuse Saros | J6: (DI5) | K6: ='District 5'!R28 -> 17
A7: =Highlanders!A7 -> Kirill Kaprizov | B7: (HGL) | C7: =Highlanders!R7 -> 13 | E7: =Highlanders!A20 -> Thomas Harley | F7: (HGL) | G7: =Highlanders!R20 -> 6 | I7: ='Just Chillin'!A28 -> Connor Hellebuyck | J7: (JCH) | K7: ='Just Chillin'!R28 -> 16
A8: ='Just Chillin'!A7 -> Mark Scheifele | B8: (JCH) | C8: ='Just Chillin'!R7 -> 13 | E8: ='Grumpy Old Men'!A19 -> Matthew Schaefer | F8: (GOM) | G8: ='Grumpy Old Men'!R19 -> 6 | I8: =Highlanders!A28 -> Thatcher Demko | J8: (HGL) | K8: =Highlanders!R28 -> 15
A9: ='Team LIRHL'!A5 -> Dylan Larkin | B9: (LIR) | C9: ='Team LIRHL'!R5 -> 12 | E9: ='Team LIRHL'!A19 -> Zeev Buium | F9: (LIR) | G9: ='Team LIRHL'!R19 -> 6 | I9: =Slappers!A28 -> Jake Oettinger | J9: (SLP) | K9: =Slappers!R28 -> 15
A10: ='District 5'!A8 -> Matt Boldy | B10: (DI5) | C10: ='District 5'!R8 -> 12 | E10: =Riketorians!A19 -> Jake Sanderson | F10: (RIK) | G10: =Riketorians!R19 -> 6 | I10: ='Team LIRHL'!A30 -> Jeremy Swayman | J10: (LIR) | K10: ='Team LIRHL'!R30 -> 15
A11: =Slappers!A9 -> Jesper Bratt | B11: (SLP) | C11: =Slappers!R9 -> 12 | E11: =Highlanders!A21 -> Aaron Ekblad | F11: (HGL) | G11: =Highlanders!R21 -> 5 | I11: ='Just Chillin'!A30 -> Jordan Binnington | J11: (JCH) | K11: ='Just Chillin'!R30 -> 12
A12: =Slappers!A5 -> Auston Matthews | B12: (SLP) | C12: =Slappers!R5 -> 11 | E12: ='Shawnee Tribe'!A20 -> Vince Dunn | F12: (SHW) | G12: ='Shawnee Tribe'!R20 -> 5 | I12: ='Grumpy Old Men'!A30 -> Anthony Stolarz | J12: (GOM) | K12: ='Grumpy Old Men'!R30 -> 9
A13: ='Fantasy Hockey Club'!A6 -> Bo Horvat | B13: (FHC) | C13: ='Fantasy Hockey Club'!R6 -> 11 | E13: ='Damn Yankees'!A19 -> Quinn Hughes | F13: (DYK) | G13: ='Damn Yankees'!R19 -> 5 | I13: ='Fantasy Hockey Club'!A30 -> Adin Hill | J13: (FHC) | K13: ='Fantasy Hockey Club'!R30 -> 9
A14: ='Damn Yankees'!A6 -> Martin Necas | B14: (DYK) | C14: ='Damn Yankees'!R6 -> 11 | E14: ='Fantasy Hockey Club'!A23 -> KAndre Miller | F14: (FHC) | G14: ='Fantasy Hockey Club'!R23 -> 5 | I14: ='Shawnee Tribe'!A28 -> Sam Montembeault | J14: (SHW) | K14: ='Shawnee Tribe'!R28 -> 7
A15: =Highlanders!A8 -> Kirill Marchenko | B15: (HGL) | C15: =Highlanders!R8 -> 11 | E15: ='Damn Yankees'!A20 -> Victor Hedman | F15: (DYK) | G15: ='Damn Yankees'!R20 -> 5 | I15: ='Team LIRHL'!A28 -> Linus Ullmark | J15: (LIR) | K15: ='Team LIRHL'!R28 -> 6
A16: ='District 5'!A7 -> William Nylander | B16: (DI5) | C16: ='District 5'!R7 -> 11 | E16: ='Just Chillin'!A19 -> Roman Josi | F16: (JCH) | G16: ='Just Chillin'!R19 -> 4 | I16: ='District 5'!A30 -> Filip Gustavsson | J16: (DI5) | K16: ='District 5'!R30 -> 6
A17: ='Fantasy Hockey Club'!A13 -> Pavel Dorofeyev | B17: (FHC) | C17: ='Fantasy Hockey Club'!R13 -> 11 | E17: =Highlanders!A22 -> Luke Hughes | F17: (HGL) | G17: =Highlanders!R22 -> 4 | I17: ='Shawnee Tribe'!A30 -> Jacob Markstrom | J17: (SHW) | K17: ='Shawnee Tribe'!R30 -> 6
A18: ='Just Chillin'!A6 -> Sidney Crosby | B18: (JCH) | C18: ='Just Chillin'!R6 -> 10 | E18: ='Shawnee Tribe'!A19 -> Lane Hutson | F18: (SHW) | G18: ='Shawnee Tribe'!R19 -> 4 | I18: ='Damn Yankees'!A30 -> Andrei Vasilevskiy | J18: (DYK) | K18: ='Damn Yankees'!R30 -> 6
A19: ='District 5'!A5 -> Tomas Hertl | B19: (DI5) | C19: ='District 5'!R5 -> 10 | E19: ='Team LIRHL'!A20 -> Brent Burns | F19: (LIR) | G19: ='Team LIRHL'!R20 -> 4 | I19: =Riketorians!A30 -> Dustin Wolf | J19: (RIK) | K19: =Riketorians!R30 -> 3
A20: ='Damn Yankees'!A5 -> Nick Schmaltz | B20: (DYK) | C20: ='Damn Yankees'!R5 -> 10 | E20: =Slappers!A19 -> Travis Sanheim | F20: (SLP) | G20: =Slappers!R19 -> 4 | I20: =Highlanders!A30 -> Ilya Sorokin | J20: (HGL) | K20: =Highlanders!R30 -> 3
A21: ='Fantasy Hockey Club'!A7 -> Evgeni Malkin | B21: (FHC) | C21: ='Fantasy Hockey Club'!R7 -> 10 | E21: ='Team LIRHL'!A21 -> Alexander Nikishin | F21: (LIR) | G21: ='Team LIRHL'!R21 -> 4 | I21: =Slappers!A30 -> Darcy Kuemper | J21: (SLP) | K21: =Slappers!R30 -> 2
A22: ='Grumpy Old Men'!A6 -> Chris Kreider | B22: (GOM) | C22: ='Grumpy Old Men'!R6 -> 10 | E22: =Riketorians!A21 -> Mike Matheson | F22: (RIK) | G22: =Riketorians!R21 -> 4 | I22: ='Damn Yankees'!A46 -> Mackenzie Blackwood | J22: (DYK) | K22: ='Damn Yankees'!E46 -> 0
A23: =Riketorians!A6 -> Kyle Connor | B23: (RIK) | C23: =Riketorians!R6 -> 10 | E23: ='District 5'!A20 -> Brandon Montour | F23: (DI5) | G23: ='District 5'!R20 -> 4
A24: ='Just Chillin'!A9 -> Wyatt Johnston | B24: (JCH) | C24: ='Just Chillin'!R9 -> 10 | E24: ='Fantasy Hockey Club'!A21 -> Rasmus Dahlin | F24: (FHC) | G24: ='Fantasy Hockey Club'!R21 -> 4
A25: =Highlanders!A6 -> Mitchell Marner | B25: (HGL) | C25: =Highlanders!R6 -> 9 | E25: ='Just Chillin'!A22 -> Zach Werenski | F25: (JCH) | G25: ='Just Chillin'!R22 -> 4
A26: =Slappers!A6 -> Jack Hughes | B26: (SLP) | C26: =Slappers!R6 -> 9 | E26: =Highlanders!A23 -> Darren Raddysh | F26: (HGL) | G26: =Highlanders!R23 -> 3
A27: =Riketorians!A5 -> Tom Wilson | B27: (RIK) | C27: =Riketorians!R5 -> 9 | E27: ='Grumpy Old Men'!A25 -> Artem Zub | F27: (GOM) | G27: ='Grumpy Old Men'!R25 -> 3
A28: ='District 5'!A6 -> Matthew Knies | B28: (DI5) | C28: ='District 5'!R6 -> 9 | E28: ='Fantasy Hockey Club'!A25 -> Dylan DeMelo | F28: (FHC) | G28: ='Fantasy Hockey Club'!R25 -> 3
A29: =Highlanders!A10 -> Nick Suzuki | B29: (HGL) | C29: =Highlanders!R10 -> 9 | E29: =Riketorians!A20 -> Erik Karlsson | F29: (RIK) | G29: =Riketorians!R20 -> 3
A30: ='Just Chillin'!A8 -> John Tavares | B30: (JCH) | C30: ='Just Chillin'!R8 -> 8 | E30: =Slappers!A20 -> Noah Dobson | F30: (SLP) | G30: =Slappers!R20 -> 3
A31: ='Shawnee Tribe'!A5 -> Artemi Panarin | B31: (SHW) | C31: ='Shawnee Tribe'!R5 -> 8 | E31: ='Grumpy Old Men'!A20 -> Thomas Chabot | F31: (GOM) | G31: ='Grumpy Old Men'!R20 -> 3
A32: =Slappers!A7 -> Timo Meier | B32: (SLP) | C32: =Slappers!R7 -> 8 | E32: ='Damn Yankees'!A21 -> Filip Hronek | F32: (DYK) | G32: ='Damn Yankees'!R21 -> 3
A33: ='Team LIRHL'!A6 -> Mikko Rantanen | B33: (LIR) | C33: ='Team LIRHL'!R6 -> 8 | E33: =Slappers!A21 -> Ivan Provorov | F33: (SLP) | G33: =Slappers!R21 -> 3
A34: ='Just Chillin'!A11 -> Patrick Kane | B34: (JCH) | C34: ='Just Chillin'!R11 -> 8 | E34: ='Just Chillin'!A21 -> John Carlson | F34: (JCH) | G34: ='Just Chillin'!R21 -> 3
A35: ='Just Chillin'!A10 -> Aliaksei Protas | B35: (JCH) | C35: ='Just Chillin'!R10 -> 8 | E35: =Slappers!A22 -> Charlie McAvoy | F35: (SLP) | G35: =Slappers!R22 -> 3
A36: =Highlanders!A11 -> Frank Nazar | B36: (HGL) | C36: =Highlanders!R11 -> 8 | E36: =Slappers!A23 -> Seth Jones | F36: (SLP) | G36: =Slappers!R23 -> 3
A37: =Slappers!A12 -> Dylan Guenther | B37: (SLP) | C37: =Slappers!R12 -> 8 | E37: =Slappers!A24 -> Drew Doughty | F37: (SLP) | G37: =Slappers!R24 -> 3
A38: ='District 5'!A11 -> Brad Marchand | B38: (DI5) | C38: ='District 5'!R11 -> 8 | E38: ='Shawnee Tribe'!A22 -> John Klingberg | F38: (SHW) | G38: ='Shawnee Tribe'!R22 -> 3
A39: ='Fantasy Hockey Club'!A14 -> Leon Draisaitl | B39: (FHC) | C39: ='Fantasy Hockey Club'!R14 -> 8 | E39: ='Team LIRHL'!A22 -> Gustav Forsling | F39: (LIR) | G39: ='Team LIRHL'!R22 -> 3
A40: =Riketorians!A7 -> David Pastrnak | B40: (RIK) | C40: =Riketorians!R7 -> 7 | E40: ='Grumpy Old Men'!A21 -> MacKenzie Weegar | F40: (GOM) | G40: ='Grumpy Old Men'!R21 -> 2
A41: ='Fantasy Hockey Club'!A9 -> Sebastian Aho | B41: (FHC) | C41: ='Fantasy Hockey Club'!R9 -> 7 | E41: ='District 5'!A22 -> Sam Rinzel | F41: (DI5) | G41: ='District 5'!R22 -> 2
A42: ='Grumpy Old Men'!A9 -> Jake Neighbours | B42: (GOM) | C42: ='Grumpy Old Men'!R9 -> 7 | E42: ='District 5'!A21 -> Rasmus Andersson | F42: (DI5) | G42: ='District 5'!R21 -> 2
A43: ='Team LIRHL'!A7 -> Adrian Kempe | B43: (LIR) | C43: ='Team LIRHL'!R7 -> 7 | E43: ='Grumpy Old Men'!A22 -> Miro Heiskanen | F43: (GOM) | G43: ='Grumpy Old Men'!R22 -> 2
A44: ='Shawnee Tribe'!A6 -> Connor McDavid | B44: (SHW) | C44: ='Shawnee Tribe'!R6 -> 7 | E44: ='Damn Yankees'!A22 -> Jared Spurgeon | F44: (DYK) | G44: ='Damn Yankees'!R22 -> 2
A45: ='Fantasy Hockey Club'!A10 -> Artturi Lehkonen | B45: (FHC) | C45: ='Fantasy Hockey Club'!R10 -> 7 | E45: ='Shawnee Tribe'!A45 -> Owen Power | F45: (SHW) | G45: ='Shawnee Tribe'!E45 -> 2
A46: ='Grumpy Old Men'!A11 -> Jason Robertson | B46: (GOM) | C46: ='Grumpy Old Men'!R11 -> 7 | E46: ='Grumpy Old Men'!A23 -> Darnell Nurse | F46: (GOM) | G46: ='Grumpy Old Men'!R23 -> 2
A47: =Slappers!A10 -> Quinton Byfield | B47: (SLP) | C47: =Slappers!R10 -> 7 | E47: ='Damn Yankees'!A23 -> Colton Parayko | F47: (DYK) | G47: ='Damn Yankees'!R23 -> 2
A48: ='Just Chillin'!A12 -> Ryan Nugent-Hopkins | B48: (JCH) | C48: ='Just Chillin'!R12 -> 7 | E48: ='Fantasy Hockey Club'!A22 -> Brady Skjei | F48: (FHC) | G48: ='Fantasy Hockey Club'!R22 -> 2
A49: =Riketorians!A10 -> Connor Bedard | B49: (RIK) | C49: =Riketorians!R10 -> 7 | E49: ='Fantasy Hockey Club'!A24 -> Brandt Clarke | F49: (FHC) | G49: ='Fantasy Hockey Club'!R24 -> 2
A50: ='Fantasy Hockey Club'!A8 -> Dylan Cozens | B50: (FHC) | C50: ='Fantasy Hockey Club'!R8 -> 6 | E50: ='District 5'!A23 -> Moritz Seider | F50: (DI5) | G50: ='District 5'!R23 -> 2
A51: ='Team LIRHL'!A8 -> Nico Hischier | B51: (LIR) | C51: ='Team LIRHL'!R8 -> 6 | E51: ='Shawnee Tribe'!A21 -> Bowen Byram | F51: (SHW) | G51: ='Shawnee Tribe'!R21 -> 1
A52: ='Damn Yankees'!A7 -> Jake Guentzel | B52: (DYK) | C52: ='Damn Yankees'!R7 -> 6 | E52: ='Shawnee Tribe'!A23 -> Shea Theodore | F52: (SHW) | G52: ='Shawnee Tribe'!R23 -> 1
A53: ='Shawnee Tribe'!A7 -> Rickard Rakell | B53: (SHW) | C53: ='Shawnee Tribe'!R7 -> 6 | E53: =Highlanders!A24 -> Simon Edvinsson | F53: (HGL) | G53: =Highlanders!R24 -> 1
A54: ='Team LIRHL'!A9 -> Roope Hintz | B54: (LIR) | C54: ='Team LIRHL'!R9 -> 6 | E54: =Slappers!A25 -> Dougie Hamilton | F54: (SLP) | G54: =Slappers!R25 -> 1
A55: ='Team LIRHL'!A10 -> Kevin Fiala | B55: (LIR) | C55: ='Team LIRHL'!R10 -> 6 | E55: ='Just Chillin'!A23 -> Cam Fowler | F55: (JCH) | G55: ='Just Chillin'!R23 -> 1
A56: ='Shawnee Tribe'!A8 -> Macklin Celebrini | B56: (SHW) | C56: ='Shawnee Tribe'!R8 -> 6 | E56: ='Grumpy Old Men'!A24 -> Josh Morrissey | F56: (GOM) | G56: ='Grumpy Old Men'!R24 -> 1
A57: ='Grumpy Old Men'!A10 -> Mika Zibanejad | B57: (GOM) | C57: ='Grumpy Old Men'!R10 -> 6 | E57: =Riketorians!A23 -> Justin Faulk | F57: (RIK) | G57: =Riketorians!R23 -> 1
A58: ='Fantasy Hockey Club'!A15 -> Brayden Point | B58: (FHC) | C58: ='Fantasy Hockey Club'!R15 -> 6 | E58: ='Damn Yankees'!A24 -> Sean Durzi | F58: (DYK) | G58: ='Damn Yankees'!R24 -> 1
A59: =Slappers!A8 -> Dylan Strome | B59: (SLP) | C59: =Slappers!R8 -> 6 | E59: =Riketorians!A22 -> Kris Letang | F59: (RIK) | G59: =Riketorians!R22 -> 1
A60: ='Fantasy Hockey Club'!A12 -> Alex DeBrincat | B60: (FHC) | C60: ='Fantasy Hockey Club'!R12 -> 6 | E60: ='Shawnee Tribe'!A24 -> Olen Zellweger | F60: (SHW) | G60: ='Shawnee Tribe'!R24 -> 1
A61: ='Damn Yankees'!A13 -> Lucas Raymond | B61: (DYK) | C61: ='Damn Yankees'!R13 -> 6 | E61: ='Team LIRHL'!A23 -> Elias Pettersson D | F61: (LIR) | G61: ='Team LIRHL'!R23 -> 0
A62: ='Grumpy Old Men'!A8 -> Clayton Keller | B62: (GOM) | C62: ='Grumpy Old Men'!R8 -> 5 | E62: =Riketorians!A24 -> Devon Toews | F62: (RIK) | G62: =Riketorians!R24 -> 0
A63: =Highlanders!A9 -> JJ Peterka | B63: (HGL) | C63: =Highlanders!R9 -> 5 | E63: ='Team LIRHL'!A24 -> Jake Walman | F63: (LIR) | G63: ='Team LIRHL'!R24 -> 0
A64: ='Damn Yankees'!A8 -> Matt Duchene | B64: (DYK) | C64: ='Damn Yankees'!R8 -> 5 | E64: ='Shawnee Tribe'!A25 -> Evan Bouchard | F64: (SHW) | G64: ='Shawnee Tribe'!R25 -> 0
A65: ='District 5'!A9 -> Sam Reinhart | B65: (DI5) | C65: ='District 5'!R9 -> 5 | E65: ='Just Chillin'!A25 -> Noah Hanifin | F65: (JCH) | G65: ='Just Chillin'!R25 -> 0
A66: =Highlanders!A13 -> Marco Rossi | B66: (HGL) | C66: =Highlanders!R13 -> 5 | E66: ='District 5'!A24 -> Anthony DeAngelo | F66: (DI5) | G66: ='District 5'!R24 -> 1
A67: ='Grumpy Old Men'!A13 -> Joel Eriksson Ek | B67: (GOM) | C67: ='Grumpy Old Men'!R13 -> 5 | E67: ='Team LIRHL'!A25 -> Jacob Trouba | F67: (LIR) | G67: ='Team LIRHL'!R25 -> 0
A68: ='Just Chillin'!A14 -> Anze Kopitar | B68: (JCH) | C68: ='Just Chillin'!R14 -> 4 | E68: ='Damn Yankees'!A25 -> Mattias Ekholm | F68: (DYK) | G68: ='Damn Yankees'!R25 -> 0
A69: =Riketorians!A8 -> Alex Ovechkin | B69: (RIK) | C69: =Riketorians!R8 -> 4 | E69: =Riketorians!A25 -> Neal Pionk | F69: (RIK) | G69: =Riketorians!R25 -> 0
A70: ='Shawnee Tribe'!A9 -> Ivan Demidov | B70: (SHW) | C70: ='Shawnee Tribe'!R9 -> 4 | E70: ='District 5'!A25 -> Mikhail Sergachev | F70: (DI5) | G70: ='District 5'!R25 -> 0
A71: ='Fantasy Hockey Club'!A11 -> Tyler Toffoli | B71: (FHC) | C71: ='Fantasy Hockey Club'!R11 -> 4 | E71: ='Just Chillin'!A24 -> Brock Faber | F71: (JCH) | G71: ='Just Chillin'!R24 -> 0
A72: ='Damn Yankees'!A9 -> Alex Tuch | B72: (DYK) | C72: ='Damn Yankees'!R9 -> 4 | E72: =Highlanders!A25 -> Jackson LaCombe | F72: (HGL) | G72: =Highlanders!R25 -> 0
A73: =Riketorians!A9 -> Brock nelson | B73: (RIK) | C73: =Riketorians!R9 -> 4
A74: ='Team LIRHL'!A12 -> Nazem Kadri | B74: (LIR) | C74: ='Team LIRHL'!R12 -> 4
A75: ='Damn Yankees'!A10 -> Mathew Barzal | B75: (DYK) | C75: ='Damn Yankees'!R10 -> 4
A76: ='Team LIRHL'!A11 -> Tim Stützle | B76: (LIR) | C76: ='Team LIRHL'!R11 -> 4
A77: ='Team LIRHL'!A13 -> Nikita Kucherov | B77: (LIR) | C77: ='Team LIRHL'!R13 -> 4
A78: ='District 5'!A10 -> Tage Thompson | B78: (DI5) | C78: ='District 5'!R10 -> 4
A79: =Highlanders!A12 -> Brock Boeser | B79: (HGL) | C79: =Highlanders!R12 -> 4
A80: =Slappers!A13 -> Gabriel Vilardi | B80: (SLP) | C80: =Slappers!R13 -> 4
A81: ='Shawnee Tribe'!A13 -> Will Smith | B81: (SHW) | C81: ='Shawnee Tribe'!R13 -> 4
A82: ='Damn Yankees'!A12 -> J.T. Miller | B82: (DYK) | C82: ='Damn Yankees'!R12 -> 4
A83: ='District 5'!A13 -> Owen Tippett | B83: (DI5) | C83: ='District 5'!R13 -> 4
A84: ='Grumpy Old Men'!A14 -> Matt Coronato | B84: (GOM) | C84: ='Grumpy Old Men'!R14 -> 4
A85: ='District 5'!A15 -> Mason McTavish | B85: (DI5) | C85: ='District 5'!R15 -> 4
A86: ='Shawnee Tribe'!A10 -> Jonathan Toews | B86: (SHW) | C86: ='Shawnee Tribe'!R10 -> 3
A87: ='Team LIRHL'!A14 -> Filip Forsberg | B87: (LIR) | C87: ='Team LIRHL'!R14 -> 3
A88: ='Shawnee Tribe'!A11 -> Juraj Slafkovský | B88: (SHW) | C88: ='Shawnee Tribe'!R11 -> 3
A89: =Slappers!A11 -> Jordan Kyrou | B89: (SLP) | C89: =Slappers!R11 -> 3
A90: =Riketorians!A11 -> Drake Batherson | B90: (RIK) | C90: =Riketorians!R11 -> 3
A91: ='District 5'!A12 -> Steven Stamkos | B91: (DI5) | C91: ='District 5'!R12 -> 3
A92: =Riketorians!A13 -> Carter Verhaeghe | B92: (RIK) | C92: =Riketorians!R13 -> 3
A93: ='Team LIRHL'!A15 -> Brady Tkachuk | B93: (LIR) | C93: ='Team LIRHL'!R15 -> 3
A94: ='Damn Yankees'!A14 -> Troy Terry | B94: (DYK) | C94: ='Damn Yankees'!R14 -> 3
A95: ='Shawnee Tribe'!A15 -> Robert Thomas | B95: (SHW) | C95: ='Shawnee Tribe'!R15 -> 3
A96: =Slappers!A14 -> Adam Fantilli | B96: (SLP) | C96: =Slappers!R14 -> 3
A97: =Riketorians!A12 -> Travis Konecny | B97: (RIK) | C97: =Riketorians!R12 -> 2
A98: ='Grumpy Old Men'!A12 -> Sam Bennett | B98: (GOM) | C98: ='Grumpy Old Men'!R12 -> 2
A99: ='Damn Yankees'!A11 -> Jonathan Huberdeau | B99: (DYK) | C99: ='Damn Yankees'!R11 -> 2
A100: =Highlanders!A14 -> William Eklund | B100: (HGL) | C100: =Highlanders!R14 -> 2
A101: =Slappers!A15 -> Logan Cooley | B101: (SLP) | C101: =Slappers!R15 -> 2
A102: ='Shawnee Tribe'!A14 -> Elias Pettersson | B102: (SHW) | C102: ='Shawnee Tribe'!R14 -> 2
A103: =Highlanders!A15 -> Dylan Holloway | B103: (HGL) | C103: =Highlanders!R15 -> 1
A104: ='Shawnee Tribe'!A12 -> Matvei Michkov | B104: (SHW) | C104: ='Shawnee Tribe'!R12 -> 1
A105: ='District 5'!A14 -> Patrik Laine | B105: (DI5) | C105: ='District 5'!R14 -> 1
A106: =Riketorians!A14 -> Vincent Trocheck | B106: (RIK) | C106: =Riketorians!R14 -> 1
A107: ='Just Chillin'!A13 -> Kent Johnson | B107: (JCH) | C107: ='Just Chillin'!R13 -> 1
A108: ='Damn Yankees'!A15 -> Brandon Hagel | B108: (DYK) | C108: ='Damn Yankees'!R15 -> 1
A109: ='Grumpy Old Men'!A15 -> Nikolaj Ehlers | B109: (GOM) | C109: ='Grumpy Old Men'!R15 -> 0
A110: ='Just Chillin'!A15 -> Sean Monahan | B110: (JCH) | C110: ='Just Chillin'!R15 -> 0
A111: =Riketorians!A15 -> Andrei Svechnikov | B111: (RIK) | C111: =Riketorians!R15 -> 0
A112: ='Grumpy Old Men'!A44 -> Aleksander Barkov | B112: (GOM) | C112: ='Grumpy Old Men'!E44 -> 0
A113: =Highlanders!A44 -> Matthew Tkachuk | B113: (HGL) | C113: =Highlanders!E44 -> 0
A114: =Highlanders!A47 -> Michael Misa | B114: (HGL) | C114: =Highlanders!E47 -> 0
A115: ='Damn Yankees'!A44 -> Zach Hyman | B115: (DYK) | C115: ='Damn Yankees'!E44 -> 0
